Publisher Label,Publisher URI,"Directorate code","Directorate","Service code","Service","Revenue or capital code","Revenue capital","Cost centre","Cost centre description","Bvsub Category","Bvsub description","Bvsum code","Bvsum description","Account code","Account description","Transaction No","Period","Transaction Date","Amount","Classification code","Classification description","Supplier ID","Supplier description","Company registration number","Company registration number Uri","VAT registration number"
"London Borough of Redbridge","http://opendatacommunities.org/doc/london-borough-council/redbridge","1BCENTRALPUB","Central Services to the Public","1CEMERGPLAN","Emergency Planning","REV","Revenue","R9361","Local Land Charges","04-SUPPLIES","Supplies And Services","04H","Grants and subscriptions","5956","Subscriptions","60488127","202301",07/04/2022 00:00:00,130,"74680","Surveyors - Land","REDACTED DATA","LOCAL LAND CHARGES INSTITUTE LTD- LLCI LTD","4102606","http://opencorporates.com/companies/gb/4102606",""
"London Borough of Redbridge","http://opendatacommunities.org/doc/london-borough-council/redbridge","1BCENTRALPUB","Central Services to the Public","1CLOCALTAXCO","Local Tax Collection","REV","Revenue","R5760","Local Tax Collection","04-SUPPLIES","Supplies And Services","04A","Equipment, furniture and materials","5502","Equipment Purchase","60486283","202301",25/03/2022 00:00:00,45.66,"54612","Orthopaedic Care Equipment","REDACTED DATA","BACK CARE SOLUTIONS LTD","1607829","http://opencorporates.com/companies/gb/1607829","812525749"
"London Borough of Redbridge","http://opendatacommunities.org/doc/london-borough-council/redbridge","1BCENTRALPUB","Central Services to the Public","1CLOCALTAXCO","Local Tax Collection","REV","Revenue","R5760","Local Tax Collection","04-SUPPLIES","Supplies And Services","04D","Printing, stationery and general office expenses","5706","Printing","60485701","202301",25/03/2022 00:00:00,200,"49180","Mailing Houses","REDACTED DATA","OPUS TRUST MARKETING LIMITED","3829462","http://opencorporates.com/companies/gb/3829462","232730729"
"London Borough of Redbridge","http://opendatacommunities.org/doc/london-borough-council/redbridge","1BCENTRALPUB","Central Services to the Public","1CLOCALTAXCO","Local Tax Collection","REV","Revenue","R5760","Local Tax Collection","04-SUPPLIES","Supplies And Services","04D","Printing, stationery and general office expenses","5706","Printing","60485703","202301",25/03/2022 00:00:00,396,"49180","Mailing Houses","REDACTED DATA","OPUS TRUST MARKETING LIMITED","3829462","http://opencorporates.com/companies/gb/3829462","232730729"
"London Borough of Redbridge","http://opendatacommunities.org/doc/london-borough-council/redbridge","1BCENTRALPUB","Central Services to the Public","1CLOCALTAXCO","Local Tax Collection","REV","Revenue","R5760","Local Tax Collection","04-SUPPLIES","Supplies And Services","04D","Printing, stationery and general office expenses","5706","Printing","60485705","202301",25/03/2022 00:00:00,214.7,"49180","Mailing Houses","REDACTED DATA","OPUS TRUST MARKETING LIMITED","3829462","http://opencorporates.com/companies/gb/3829462","232730729"
"London Borough of Redbridge","http://opendatacommunities.org/doc/london-borough-council/redbridge","1BCENTRALPUB","Central Services to the Public","1CLOCALTAXCO","Local Tax Collection","REV","Revenue","R5760","Local Tax Collection","04-SUPPLIES","Supplies And Services","04H","Grants and subscriptions","5954","Professional Fees","60487560","202301",31/03/2022 00:00:00,4,"20520","Company Registration Agents","REDACTED DATA","COMPANIES HOUSE","",,""
"London Borough of Redbridge","http://opendatacommunities.org/doc/london-borough-council/redbridge","1BCENTRALPUB","Central Services to the Public","1CLOCALTAXCO","Local Tax Collection","REV","Revenue","R5760","Local Tax Collection","04-SUPPLIES","Supplies And Services","04K","Miscellaneous expenses","6204","Bankruptcy","60488246","202301",22/03/2022 00:00:00,108.82,"72460","Solicitors","REDACTED DATA","WILKIN CHAPMAN SOLICITORS","",,"127942455"
"London Borough of Redbridge","http://opendatacommunities.org/doc/london-borough-council/redbridge","1BCENTRALPUB","Central Services to the Public","1CLOCALTAXCO","Local Tax Collection","REV","Revenue","R5760","Local Tax Collection","04-SUPPLIES","Supplies And Services","04K","Miscellaneous expenses","6204","Bankruptcy","60488245","202301",20/01/2022 00:00:00,85,"72460","Solicitors","REDACTED DATA","WILKIN CHAPMAN SOLICITORS","",,"127942455"
"London Borough of Redbridge","http://opendatacommunities.org/doc/london-borough-council/redbridge","1BCENTRALPUB","Central Services to the Public","1CLOCALTAXCO","Local Tax Collection","REV","Revenue","R5760","Local Tax Collection","04-SUPPLIES","Supplies And Services","04K","Miscellaneous expenses","6204","Bankruptcy","60486164","202301",22/03/2022 00:00:00,317,"72460","Solicitors","REDACTED DATA","WILKIN CHAPMAN SOLICITORS","",,"127942455"
"London Borough of Redbridge","http://opendatacommunities.org/doc/london-borough-council/redbridge","1BCENTRALPUB","Central Services to the Public","1CLOCALTAXCO","Local Tax Collection","REV","Revenue","R5760","Local Tax Collection","04-SUPPLIES","Supplies And Services","04K","Miscellaneous expenses","6204","Bankruptcy","60486165","202301",22/03/2022 00:00:00,317,"72460","Solicitors","REDACTED DATA","WILKIN CHAPMAN SOLICITORS","",,"127942455"
"London Borough of Redbridge","http://opendatacommunities.org/doc/london-borough-council/redbridge","1BCENTRALPUB","Central Services to the Public","1CLOCALTAXCO","Local Tax Collection","REV","Revenue","R9005","Registrar Service","04-SUPPLIES","Supplies And Services","04B","Catering","5602","Refreshments","80041804","202301",25/03/2022 00:00:00,4.32,"84070","Water Suppliers - Bottled","REDACTED DATA","EDEN SPRINGS (UK) LTD (NATURE SPRING)","4063744","http://opencorporates.com/companies/gb/4063744","232160411"
"London Borough of Redbridge","http://opendatacommunities.org/doc/london-borough-council/redbridge","1BCENTRALPUB","Central Services to the Public","1CTRADSURDEF","Trading Account Surpluses & Deficits","REV","Revenue","R5754","Income","04-SUPPLIES","Supplies And Services","04H","Grants and subscriptions","5954","Professional Fees","60487692","202301",15/04/2022 00:00:00,6,"48582","Loans and Debt - Management","REDACTED DATA","MOORCROFT DEBT RECOVERY LTD","1703704","http://opencorporates.com/companies/gb/1703704","453109273"
"London Borough of Redbridge","http://opendatacommunities.org/doc/london-borough-council/redbridge","1BCORPDEM","Corporate & Democratic Core","1CCORPMGT","Corporate Management","REV","Revenue","R0029","Chief Executive","04-SUPPLIES","Supplies And Services","04K","Miscellaneous expenses","6280","Miscellaneous Expenditure","60486899","202301",31/03/2022 00:00:00,404,"61820","Printers' Services and Supplies","REDACTED DATA","Radclyffe Culross & Sproston LTD","391378","http://opencorporates.com/companies/gb/391378","232832087"
"London Borough of Redbridge","http://opendatacommunities.org/doc/london-borough-council/redbridge","1BOTHEROPI&E","Other Operating Income & Expenditure","1CELECTIONS","Elections","REV","Revenue","R9362","Electoral Registration","04-SUPPLIES","Supplies And Services","04D","Printing, stationery and general office expenses","5705","Postage","60487705","202301",27/12/2021 00:00:00,354.64,"24510","Delivery Services","REDACTED DATA","ROYAL MAIL GROUP LTD","4138203","http://opencorporates.com/companies/gb/4138203","243170002"
"London Borough of Redbridge","http://opendatacommunities.org/doc/london-borough-council/redbridge","1BOTHEROPI&E","Other Operating Income & Expenditure","1CELECTIONS","Elections","REV","Revenue","R9362","Electoral Registration","04-SUPPLIES","Supplies And Services","04D","Printing, stationery and general office expenses","5705","Postage","60486690","202301",10/01/2022 00:00:00,80,"24510","Delivery Services","REDACTED DATA","ROYAL MAIL GROUP LTD","4138203","http://opencorporates.com/companies/gb/4138203","243170002"
"London Borough of Redbridge","http://opendatacommunities.org/doc/london-borough-council/redbridge","1BOTHEROPI&E","Other Operating Income & Expenditure","1CTRADSURDEF","Trading Account Surpluses & Deficits","REV","Revenue","R7207","Capital Team Staffing","04-SUPPLIES","Supplies And Services","04F","Communications and computing","5852","Computer Equipment - Repairs & Maintenance","70123599","202301",31/03/2022 00:00:00,20,"20703","Computer Systems and Software","REDACTED DATA","ANFOLD SOFTWARE LTD","6784037","http://opencorporates.com/companies/gb/6784037","972830303"
"London Borough of Redbridge","http://opendatacommunities.org/doc/london-borough-council/redbridge","1BOTHEROPI&E","Other Operating Income & Expenditure","1CTRADSURDEF","Trading Account Surpluses & Deficits","REV","Revenue","R9001","Customer Contact Centre","04-SUPPLIES","Supplies And Services","04A","Equipment, furniture and materials","5502","Equipment Purchase","3692833","202301",25/04/2022 00:00:00,750,"30045","Electrical Engineers","REDACTED DATA","COUNTY ELECTRICAL SOLUTIONS LTD","6476990","http://opencorporates.com/companies/gb/6476990","924889474"
"London Borough of Redbridge","http://opendatacommunities.org/doc/london-borough-council/redbridge","1BOTHEROPI&E","Other Operating Income & Expenditure","1CTRADSURDEF","Trading Account Surpluses & Deficits","REV","Revenue","R9001","Customer Contact Centre","04-SUPPLIES","Supplies And Services","04A","Equipment, furniture and materials","5502","Equipment Purchase","3692833","202301",25/04/2022 00:00:00,325,"30045","Electrical Engineers","REDACTED DATA","COUNTY ELECTRICAL SOLUTIONS LTD","6476990","http://opencorporates.com/companies/gb/6476990","924889474"
"London Borough of Redbridge","http://opendatacommunities.org/doc/london-borough-council/redbridge","1BOTHEROPI&E","Other Operating Income & Expenditure","1CTRADSURDEF","Trading Account Surpluses & Deficits","REV","Revenue","R9001","Customer Contact Centre","04-SUPPLIES","Supplies And Services","04A","Equipment, furniture and materials","5502","Equipment Purchase","3691367","202301",11/04/2022 00:00:00,650,"36555","Fire Training","REDACTED DATA","MY FIRE SAFETY LTD","8031387","http://opencorporates.com/companies/gb/8031387","136128821"
"London Borough of Redbridge","http://opendatacommunities.org/doc/london-borough-council/redbridge","1BOTHEROPI&E","Other Operating Income & Expenditure","1CTRADSURDEF","Trading Account Surpluses & Deficits","REV","Revenue","R9001","Customer Contact Centre","04-SUPPLIES","Supplies And Services","04A","Equipment, furniture and materials","5502","Equipment Purchase","60486372","202301",29/03/2022 00:00:00,237,"25800","Disability Equipment - Mnfrs and Suppliers","REDACTED DATA","HANDS FREE COMPUTING LTD","3415976","http://opencorporates.com/companies/gb/3415976","700602494"
"London Borough of Redbridge","http://opendatacommunities.org/doc/london-borough-council/redbridge","1BOTHEROPI&E","Other Operating Income & Expenditure","1CTRADSURDEF","Trading Account Surpluses & Deficits","REV","Revenue","R9148","Tree Holding Account","02-PREMISES","Premises","02I","Grounds maintenance costs","4753","Trees / Recreational","60486970","202301",28/03/2022 00:00:00,140,"47051","Landscape Contractors and Gardening Services","REDACTED DATA","P.THOMAS T/A P THOMAS LANDSCAPES","",,"701352973"
"London Borough of Redbridge","http://opendatacommunities.org/doc/london-borough-council/redbridge","1BOTHEROPI&E","Other Operating Income & Expenditure","1CTRADSURDEF","Trading Account Surpluses & Deficits","REV","Revenue","R9148","Tree Holding Account","02-PREMISES","Premises","02I","Grounds maintenance costs","4753","Trees / Recreational","60484498","202301",07/03/2022 00:00:00,360,"47051","Landscape Contractors and Gardening Services","REDACTED DATA","P.THOMAS T/A P THOMAS LANDSCAPES","",,"701352973"
"London Borough of Redbridge","http://opendatacommunities.org/doc/london-borough-council/redbridge","1BOTHEROPI&E","Other Operating Income & Expenditure","1CTRADSURDEF","Trading Account Surpluses & Deficits","REV","Revenue","R9148","Tree Holding Account","02-PREMISES","Premises","02I","Grounds maintenance costs","4753","Trees / Recreational","60486969","202301",31/03/2022 00:00:00,196.95,"47051","Landscape Contractors and Gardening Services","REDACTED DATA","P.THOMAS T/A P THOMAS LANDSCAPES","",,"701352973"
"London Borough of Redbridge","http://opendatacommunities.org/doc/london-borough-council/redbridge","1BOTHEROPI&E","Other Operating Income & Expenditure","1CTRADSURDEF","Trading Account Surpluses & Deficits","REV","Revenue","R9148","Tree Holding Account","02-PREMISES","Premises","02I","Grounds maintenance costs","4753","Trees / Recreational","60486200","202301",25/03/2022 00:00:00,165.62,"80228","Tree Work and Forestry Services","REDACTED DATA","CSG USHERS LTD","6496317","http://opencorporates.com/companies/gb/6496317","928409601"
"London Borough of Redbridge","http://opendatacommunities.org/doc/london-borough-council/redbridge","1BOTHEROPI&E","Other Operating Income & Expenditure","1CTRADSURDEF","Trading Account Surpluses & Deficits","REV","Revenue","R9148","Tree Holding Account","02-PREMISES","Premises","02I","Grounds maintenance costs","4753","Trees / Recreational","60486106","202301",23/03/2022 00:00:00,200,"47051","Landscape Contractors and Gardening Services","REDACTED DATA","P.THOMAS T/A P THOMAS LANDSCAPES","",,"701352973"
"London Borough of Redbridge","http://opendatacommunities.org/doc/london-borough-council/redbridge","1BOTHEROPI&E","Other Operating Income & Expenditure","1CTRADSURDEF","Trading Account Surpluses & Deficits","REV","Revenue","R9148","Tree Holding Account","02-PREMISES","Premises","02I","Grounds maintenance costs","4753","Trees / Recreational","60486201","202301",08/04/2022 00:00:00,10825.17,"80228","Tree Work and Forestry Services","REDACTED DATA","CSG USHERS LTD","6496317","http://opencorporates.com/companies/gb/6496317","928409601"
"London Borough of Redbridge","http://opendatacommunities.org/doc/london-borough-council/redbridge","1BOTHEROPI&E","Other Operating Income & Expenditure","1CTRADSURDEF","Trading Account Surpluses & Deficits","REV","Revenue","R9148","Tree Holding Account","02-PREMISES","Premises","02I","Grounds maintenance costs","4753","Trees / Recreational","60486184","202301",25/03/2022 00:00:00,346,"80228","Tree Work and Forestry Services","REDACTED DATA","CSG USHERS LTD","6496317","http://opencorporates.com/companies/gb/6496317","928409601"
"London Borough of Redbridge","http://opendatacommunities.org/doc/london-borough-council/redbridge","1BOTHEROPI&E","Other Operating Income & Expenditure","1CTRADSURDEF","Trading Account Surpluses & Deficits","REV","Revenue","R9148","Tree Holding Account","02-PREMISES","Premises","02I","Grounds maintenance costs","4753","Trees / Recreational","60487850","202301",20/04/2022 00:00:00,6090,"80228","Tree Work and Forestry Services","REDACTED DATA","BECKER TREE CONTRACTS LIMITED","3668415","http://opencorporates.com/companies/gb/3668415","726078330"
"London Borough of Redbridge","http://opendatacommunities.org/doc/london-borough-council/redbridge","1BOTHEROPI&E","Other Operating Income & Expenditure","1CTRADSURDEF","Trading Account Surpluses & Deficits","REV","Revenue","R9148","Tree Holding Account","02-PREMISES","Premises","02I","Grounds maintenance costs","4753","Trees / Recreational","60487732","202301",14/04/2022 00:00:00,7975.66,"90043","Highway Maintenance","REDACTED DATA","S H GOSS & CO LTD","",,""
"London Borough of Redbridge","http://opendatacommunities.org/doc/london-borough-council/redbridge","1BOTHEROPI&E","Other Operating Income & Expenditure","1CTRADSURDEF","Trading Account Surpluses & Deficits","REV","Revenue","R9148","Tree Holding Account","02-PREMISES","Premises","02I","Grounds maintenance costs","4753","Trees / Recreational","60486196","202301",09/08/2021 00:00:00,265,"91569","Nurserymen - Trees, Shrubs and Bonsai","REDACTED DATA","PRINCIPAL TREES LTD","7035737","http://opencorporates.com/companies/gb/7035737","980080328"
"London Borough of Redbridge","http://opendatacommunities.org/doc/london-borough-council/redbridge","1BOTHEROPI&E","Other Operating Income & Expenditure","1CTRADSURDEF","Trading Account Surpluses & Deficits","REV","Revenue","R9148","Tree Holding Account","02-PREMISES","Premises","02I","Grounds maintenance costs","4753","Trees / Recreational","60486518","202301",30/03/2022 00:00:00,252.2,"91569","Nurserymen - Trees, Shrubs and Bonsai","REDACTED DATA","PRINCIPAL TREES LTD","7035737","http://opencorporates.com/companies/gb/7035737","980080328"
"London Borough of Redbridge","http://opendatacommunities.org/doc/london-borough-council/redbridge","1BOTHEROPI&E","Other Operating Income & Expenditure","1CTRADSURDEF","Trading Account Surpluses & Deficits","REV","Revenue","R9148","Tree Holding Account","02-PREMISES","Premises","02I","Grounds maintenance costs","4753","Trees / Recreational","60488254","202301",25/04/2022 00:00:00,3995,"80228","Tree Work and Forestry Services","REDACTED DATA","DEAN TUCKER LTD","9178711","http://opencorporates.com/companies/gb/9178711","193245792"
"London Borough of Redbridge","http://opendatacommunities.org/doc/london-borough-council/redbridge","1BOTHEROPI&E","Other Operating Income & Expenditure","1CTRADSURDEF","Trading Account Surpluses & Deficits","REV","Revenue","R9148","Tree Holding Account","02-PREMISES","Premises","02I","Grounds maintenance costs","4753","Trees / Recreational","60487823","202301",20/04/2022 00:00:00,14907.5,"80228","Tree Work and Forestry Services","REDACTED DATA","MR J L OSBORNE (ESSEX TREE CARE LTD)","9692713","http://opencorporates.com/companies/gb/9692713","225650911"
"London Borough of Redbridge","http://opendatacommunities.org/doc/london-borough-council/redbridge","1BOTHEROPI&E","Other Operating Income & Expenditure","1CTRADSURDEF","Trading Account Surpluses & Deficits","REV","Revenue","R9148","Tree Holding Account","02-PREMISES","Premises","02I","Grounds maintenance costs","4753","Trees / Recreational","60487824","202301",20/04/2022 00:00:00,9304.55,"80228","Tree Work and Forestry Services","REDACTED DATA","MR J L OSBORNE (ESSEX TREE CARE LTD)","9692713","http://opencorporates.com/companies/gb/9692713","225650911"
"London Borough of Redbridge","http://opendatacommunities.org/doc/london-borough-council/redbridge","1BOTHEROPI&E","Other Operating Income & Expenditure","1CTRADSURDEF","Trading Account Surpluses & Deficits","REV","Revenue","R9150","Bank Charges / Audit Fees","09-INCOME","Income","09B","Other Grants/Reimbursements and Contributions","8350","Prompt Payment Discount","70123531","202301",22/03/2022 00:00:00,82.19,"67290","Schools and Colleges - Art and Design","REDACTED DATA","THE BRIT SCHOOL LTD","2369239","http://opencorporates.com/companies/gb/2369239",""
"London Borough of Redbridge","http://opendatacommunities.org/doc/london-borough-council/redbridge","1BOTHEROPI&E","Other Operating Income & Expenditure","1CTRADSURDEF","Trading Account Surpluses & Deficits","REV","Revenue","R9152","Operational Accounting","01-EMPLOYEES","Employees","01B","Indirect employee expenses","2403","External Training","60482677","202301",22/02/2022 00:00:00,210,"29380","Educational Training Providers","REDACTED DATA","KAPLAN FINANCIAL","1028790","http://opencorporates.com/companies/gb/1028790","719008837"
"London Borough of Redbridge","http://opendatacommunities.org/doc/london-borough-council/redbridge","1BOTHEROPI&E","Other Operating Income & Expenditure","1CTRADSURDEF","Trading Account Surpluses & Deficits","REV","Revenue","R9252","Programme Services","04-SUPPLIES","Supplies And Services","04F","Communications and computing","5851","Computer Equipment - Purchases","60487513","202301",06/04/2022 00:00:00,9.36,"20703","Computer Systems and Software","REDACTED DATA","Kingsfield Computer Products Ltd","3357539","http://opencorporates.com/companies/gb/3357539","687 3912 87"
"London Borough of Redbridge","http://opendatacommunities.org/doc/london-borough-council/redbridge","1BOTHEROPI&E","Other Operating Income & Expenditure","1CTRADSURDEF","Trading Account Surpluses & Deficits","REV","Revenue","R9252","Programme Services","04-SUPPLIES","Supplies And Services","04F","Communications and computing","5851","Computer Equipment - Purchases","60487775","202301",10/03/2022 00:00:00,119.6,"20703","Computer Systems and Software","REDACTED DATA","INSIGHT DIRECT (UK) LTD.","2579852","http://opencorporates.com/companies/gb/2579852","746075129"
"London Borough of Redbridge","http://opendatacommunities.org/doc/london-borough-council/redbridge","1BOTHEROPI&E","Other Operating Income & Expenditure","1CTRADSURDEF","Trading Account Surpluses & Deficits","REV","Revenue","R9254","Infrastructure","04-SUPPLIES","Supplies And Services","04F","Communications and computing","5854","Exchange Line Rental","60486388","202301",28/03/2022 00:00:00,47,"76510","Telecommunication Services","REDACTED DATA","VIRGIN MEDIA PAYMENTS LTD(MAIN ACCT)","1785381","http://opencorporates.com/companies/gb/1785381","591819014"
"London Borough of Redbridge","http://opendatacommunities.org/doc/london-borough-council/redbridge","1BOTHEROPI&E","Other Operating Income & Expenditure","1CTRADSURDEF","Trading Account Surpluses & Deficits","REV","Revenue","R9254","Infrastructure","04-SUPPLIES","Supplies And Services","04F","Communications and computing","5854","Exchange Line Rental","3692339","202301",28/03/2022 00:00:00,7,"76510","Telecommunication Services","REDACTED DATA","VIRGIN MEDIA PAYMENTS LTD(MAIN ACCT)","1785381","http://opencorporates.com/companies/gb/1785381","591819014"
"London Borough of Redbridge","http://opendatacommunities.org/doc/london-borough-council/redbridge","1BOTHEROPI&E","Other Operating Income & Expenditure","1CTRADSURDEF","Trading Account Surpluses & Deficits","REV","Revenue","R9254","Infrastructure","04-SUPPLIES","Supplies And Services","04F","Communications and computing","5854","Exchange Line Rental","3692340","202301",28/03/2022 00:00:00,7,"76510","Telecommunication Services","REDACTED DATA","VIRGIN MEDIA PAYMENTS LTD(MAIN ACCT)","1785381","http://opencorporates.com/companies/gb/1785381","591819014"
"London Borough of Redbridge","http://opendatacommunities.org/doc/london-borough-council/redbridge","1BOTHEROPI&E","Other Operating Income & Expenditure","1CTRADSURDEF","Trading Account Surpluses & Deficits","REV","Revenue","R9254","Infrastructure","04-SUPPLIES","Supplies And Services","04F","Communications and computing","5854","Exchange Line Rental","3692341","202301",28/03/2022 00:00:00,7,"76510","Telecommunication Services","REDACTED DATA","VIRGIN MEDIA PAYMENTS LTD(MAIN ACCT)","1785381","http://opencorporates.com/companies/gb/1785381","591819014"
"London Borough of Redbridge","http://opendatacommunities.org/doc/london-borough-council/redbridge","1BOTHEROPI&E","Other Operating Income & Expenditure","1CTRADSURDEF","Trading Account Surpluses & Deficits","REV","Revenue","R9254","Infrastructure","04-SUPPLIES","Supplies And Services","04F","Communications and computing","5854","Exchange Line Rental","3692346","202301",28/03/2022 00:00:00,7,"76510","Telecommunication Services","REDACTED DATA","VIRGIN MEDIA PAYMENTS LTD(MAIN ACCT)","1785381","http://opencorporates.com/companies/gb/1785381","591819014"
"London Borough of Redbridge","http://opendatacommunities.org/doc/london-borough-council/redbridge","1BOTHEROPI&E","Other Operating Income & Expenditure","1CTRADSURDEF","Trading Account Surpluses & Deficits","REV","Revenue","R9254","Infrastructure","04-SUPPLIES","Supplies And Services","04F","Communications and computing","5854","Exchange Line Rental","3692344","202301",28/03/2022 00:00:00,7,"76510","Telecommunication Services","REDACTED DATA","VIRGIN MEDIA PAYMENTS LTD(MAIN ACCT)","1785381","http://opencorporates.com/companies/gb/1785381","591819014"
"London Borough of Redbridge","http://opendatacommunities.org/doc/london-borough-council/redbridge","1BOTHEROPI&E","Other Operating Income & Expenditure","1CTRADSURDEF","Trading Account Surpluses & Deficits","REV","Revenue","R9254","Infrastructure","04-SUPPLIES","Supplies And Services","04F","Communications and computing","5854","Exchange Line Rental","3692345","202301",28/03/2022 00:00:00,7,"76510","Telecommunication Services","REDACTED DATA","VIRGIN MEDIA PAYMENTS LTD(MAIN ACCT)","1785381","http://opencorporates.com/companies/gb/1785381","591819014"
"London Borough of Redbridge","http://opendatacommunities.org/doc/london-borough-council/redbridge","1BOTHEROPI&E","Other Operating Income & Expenditure","1CTRADSURDEF","Trading Account Surpluses & Deficits","REV","Revenue","R9254","Infrastructure","04-SUPPLIES","Supplies And Services","04F","Communications and computing","5854","Exchange Line Rental","3692334","202301",02/04/2022 00:00:00,27.8,"76510","Telecommunication Services","REDACTED DATA","VIRGIN MEDIA PAYMENTS LTD(MAIN ACCT)","1785381","http://opencorporates.com/companies/gb/1785381","591819014"
"London Borough of Redbridge","http://opendatacommunities.org/doc/london-borough-council/redbridge","1BOTHEROPI&E","Other Operating Income & Expenditure","1CTRADSURDEF","Trading Account Surpluses & Deficits","REV","Revenue","R9254","Infrastructure","04-SUPPLIES","Supplies And Services","04F","Communications and computing","5854","Exchange Line Rental","3692335","202301",02/04/2022 00:00:00,50.76,"76510","Telecommunication Services","REDACTED DATA","VIRGIN MEDIA PAYMENTS LTD(MAIN ACCT)","1785381","http://opencorporates.com/companies/gb/1785381","591819014"
"London Borough of Redbridge","http://opendatacommunities.org/doc/london-borough-council/redbridge","1BOTHEROPI&E","Other Operating Income & Expenditure","1CTRADSURDEF","Trading Account Surpluses & Deficits","REV","Revenue","R9254","Infrastructure","04-SUPPLIES","Supplies And Services","04F","Communications and computing","5854","Exchange Line Rental","3692342","202301",28/03/2022 00:00:00,7,"76510","Telecommunication Services","REDACTED DATA","VIRGIN MEDIA PAYMENTS LTD(MAIN ACCT)","1785381","http://opencorporates.com/companies/gb/1785381","591819014"
"London Borough of Redbridge","http://opendatacommunities.org/doc/london-borough-council/redbridge","1BOTHEROPI&E","Other Operating Income & Expenditure","1CTRADSURDEF","Trading Account Surpluses & Deficits","REV","Revenue","R9254","Infrastructure","04-SUPPLIES","Supplies And Services","04F","Communications and computing","5854","Exchange Line Rental","3692343","202301",28/03/2022 00:00:00,7,"76510","Telecommunication Services","REDACTED DATA","VIRGIN MEDIA PAYMENTS LTD(MAIN ACCT)","1785381","http://opencorporates.com/companies/gb/1785381","591819014"
"London Borough of Redbridge","http://opendatacommunities.org/doc/london-borough-council/redbridge","1BOTHEROPI&E","Other Operating Income & Expenditure","1CTRADSURDEF","Trading Account Surpluses & Deficits","REV","Revenue","R9254","Infrastructure","04-SUPPLIES","Supplies And Services","04F","Communications and computing","5854","Exchange Line Rental","3692176","202301",13/04/2022 00:00:00,301,"76520","Telecommunications Equipment and Systems","REDACTED DATA","O2 (UK) LTD","",,""
"London Borough of Redbridge","http://opendatacommunities.org/doc/london-borough-council/redbridge","1BOTHEROPI&E","Other Operating Income & Expenditure","1CTRADSURDEF","Trading Account Surpluses & Deficits","REV","Revenue","R9254","Infrastructure","04-SUPPLIES","Supplies And Services","04F","Communications and computing","5854","Exchange Line Rental","3692176","202301",13/04/2022 00:00:00,301,"76520","Telecommunications Equipment and Systems","REDACTED DATA","O2 (UK) LTD","",,""
"London Borough of Redbridge","http://opendatacommunities.org/doc/london-borough-council/redbridge","1BOTHEROPI&E","Other Operating Income & Expenditure","1CTRADSURDEF","Trading Account Surpluses & Deficits","REV","Revenue","R9254","Infrastructure","04-SUPPLIES","Supplies And Services","04F","Communications and computing","5868","IT Support Contract","60487223","202301",08/04/2022 00:00:00,1061.85,"20703","Computer Systems and Software","REDACTED DATA","TRUSTMARQUE SOLUTIONS LTD","2183240","http://opencorporates.com/companies/gb/2183240","618184140"
"London Borough of Redbridge","http://opendatacommunities.org/doc/london-borough-council/redbridge","1BOTHEROPI&E","Other Operating Income & Expenditure","1CTRADSURDEF","Trading Account Surpluses & Deficits","REV","Revenue","R9255","Support","04-SUPPLIES","Supplies And Services","04D","Printing, stationery and general office expenses","5706","Printing","60487405","202301",07/04/2022 00:00:00,2.17,"57614","Photocopiers","REDACTED DATA","CANON UK LTD","1264300","http://opencorporates.com/companies/gb/1264300","523797128"
"London Borough of Redbridge","http://opendatacommunities.org/doc/london-borough-council/redbridge","1BOTHEROPI&E","Other Operating Income & Expenditure","1CTRADSURDEF","Trading Account Surpluses & Deficits","REV","Revenue","R9255","Support","04-SUPPLIES","Supplies And Services","04F","Communications and computing","5858","Phones","3692176","202301",13/04/2022 00:00:00,10,"76520","Telecommunications Equipment and Systems","REDACTED DATA","O2 (UK) LTD","",,""
"London Borough of Redbridge","http://opendatacommunities.org/doc/london-borough-council/redbridge","1BOTHEROPI&E","Other Operating Income & Expenditure","1CTRADSURDEF","Trading Account Surpluses & Deficits","REV","Revenue","R9255","Support","04-SUPPLIES","Supplies And Services","04F","Communications and computing","5858","Phones","3692176","202301",13/04/2022 00:00:00,10.57,"76520","Telecommunications Equipment and Systems","REDACTED DATA","O2 (UK) LTD","",,""
"London Borough of Redbridge","http://opendatacommunities.org/doc/london-borough-council/redbridge","1BOTHEROPI&E","Other Operating Income & Expenditure","1CTRADSURDEF","Trading Account Surpluses & Deficits","REV","Revenue","R9255","Support","04-SUPPLIES","Supplies And Services","04F","Communications and computing","5858","Phones","3692176","202301",13/04/2022 00:00:00,10,"76520","Telecommunications Equipment and Systems","REDACTED DATA","O2 (UK) LTD","",,""
"London Borough of Redbridge","http://opendatacommunities.org/doc/london-borough-council/redbridge","1BOTHEROPI&E","Other Operating Income & Expenditure","1CTRADSURDEF","Trading Account Surpluses & Deficits","REV","Revenue","R9255","Support","04-SUPPLIES","Supplies And Services","04F","Communications and computing","5858","Phones","3692176","202301",13/04/2022 00:00:00,10.02,"76520","Telecommunications Equipment and Systems","REDACTED DATA","O2 (UK) LTD","",,""
"London Borough of Redbridge","http://opendatacommunities.org/doc/london-borough-council/redbridge","1BOTHEROPI&E","Other Operating Income & Expenditure","1CTRADSURDEF","Trading Account Surpluses & Deficits","REV","Revenue","R9255","Support","04-SUPPLIES","Supplies And Services","04F","Communications and computing","5858","Phones","3692176","202301",13/04/2022 00:00:00,10,"76520","Telecommunications Equipment and Systems","REDACTED DATA","O2 (UK) LTD","",,""
"London Borough of Redbridge","http://opendatacommunities.org/doc/london-borough-council/redbridge","1BOTHEROPI&E","Other Operating Income & Expenditure","1CTRADSURDEF","Trading Account Surpluses & Deficits","REV","Revenue","R9255","Support","04-SUPPLIES","Supplies And Services","04F","Communications and computing","5858","Phones","3692176","202301",13/04/2022 00:00:00,10,"76520","Telecommunications Equipment and Systems","REDACTED DATA","O2 (UK) LTD","",,""
"London Borough of Redbridge","http://opendatacommunities.org/doc/london-borough-council/redbridge","1BOTHEROPI&E","Other Operating Income & Expenditure","1CTRADSURDEF","Trading Account Surpluses & Deficits","REV","Revenue","R9255","Support","04-SUPPLIES","Supplies And Services","04F","Communications and computing","5858","Phones","3692176","202301",13/04/2022 00:00:00,10,"76520","Telecommunications Equipment and Systems","REDACTED DATA","O2 (UK) LTD","",,""
"London Borough of Redbridge","http://opendatacommunities.org/doc/london-borough-council/redbridge","1BOTHEROPI&E","Other Operating Income & Expenditure","1CTRADSURDEF","Trading Account Surpluses & Deficits","REV","Revenue","R9255","Support","04-SUPPLIES","Supplies And Services","04F","Communications and computing","5858","Phones","3692176","202301",13/04/2022 00:00:00,10,"76520","Telecommunications Equipment and Systems","REDACTED DATA","O2 (UK) LTD","",,""
"London Borough of Redbridge","http://opendatacommunities.org/doc/london-borough-council/redbridge","1BOTHEROPI&E","Other Operating Income & Expenditure","1CTRADSURDEF","Trading Account Surpluses & Deficits","REV","Revenue","R9255","Support","04-SUPPLIES","Supplies And Services","04F","Communications and computing","5858","Phones","3692176","202301",13/04/2022 00:00:00,19.77,"76520","Telecommunications Equipment and Systems","REDACTED DATA","O2 (UK) LTD","",,""
"London Borough of Redbridge","http://opendatacommunities.org/doc/london-borough-council/redbridge","1BOTHEROPI&E","Other Operating Income & Expenditure","1CTRADSURDEF","Trading Account Surpluses & Deficits","REV","Revenue","R9255","Support","04-SUPPLIES","Supplies And Services","04F","Communications and computing","5858","Phones","3692176","202301",13/04/2022 00:00:00,10,"76520","Telecommunications Equipment and Systems","REDACTED DATA","O2 (UK) LTD","",,""
"London Borough of Redbridge","http://opendatacommunities.org/doc/london-borough-council/redbridge","1BOTHEROPI&E","Other Operating Income & Expenditure","1CTRADSURDEF","Trading Account Surpluses & Deficits","REV","Revenue","R9255","Support","04-SUPPLIES","Supplies And Services","04F","Communications and computing","5858","Phones","3692176","202301",13/04/2022 00:00:00,10,"76520","Telecommunications Equipment and Systems","REDACTED DATA","O2 (UK) LTD","",,""
"London Borough of Redbridge","http://opendatacommunities.org/doc/london-borough-council/redbridge","1BOTHEROPI&E","Other Operating Income & Expenditure","1CTRADSURDEF","Trading Account Surpluses & Deficits","REV","Revenue","R9255","Support","04-SUPPLIES","Supplies And Services","04F","Communications and computing","5858","Phones","3692176","202301",13/04/2022 00:00:00,10,"76520","Telecommunications Equipment and Systems","REDACTED DATA","O2 (UK) LTD","",,""
"London Borough of Redbridge","http://opendatacommunities.org/doc/london-borough-council/redbridge","1BOTHEROPI&E","Other Operating Income & Expenditure","1CTRADSURDEF","Trading Account Surpluses & Deficits","REV","Revenue","R9255","Support","04-SUPPLIES","Supplies And Services","04F","Communications and computing","5858","Phones","3692176","202301",13/04/2022 00:00:00,10.73,"76520","Telecommunications Equipment and Systems","REDACTED DATA","O2 (UK) LTD","",,""
"London Borough of Redbridge","http://opendatacommunities.org/doc/london-borough-council/redbridge","1BOTHEROPI&E","Other Operating Income & Expenditure","1CTRADSURDEF","Trading Account Surpluses & Deficits","REV","Revenue","R9255","Support","04-SUPPLIES","Supplies And Services","04F","Communications and computing","5858","Phones","3692176","202301",13/04/2022 00:00:00,21.15,"76520","Telecommunications Equipment and Systems","REDACTED DATA","O2 (UK) LTD","",,""
"London Borough of Redbridge","http://opendatacommunities.org/doc/london-borough-council/redbridge","1BOTHEROPI&E","Other Operating Income & Expenditure","1CTRADSURDEF","Trading Account Surpluses & Deficits","REV","Revenue","R9255","Support","04-SUPPLIES","Supplies And Services","04F","Communications and computing","5858","Phones","3692176","202301",13/04/2022 00:00:00,10,"76520","Telecommunications Equipment and Systems","REDACTED DATA","O2 (UK) LTD","",,""
"London Borough of Redbridge","http://opendatacommunities.org/doc/london-borough-council/redbridge","1BOTHEROPI&E","Other Operating Income & Expenditure","1CTRADSURDEF","Trading Account Surpluses & Deficits","REV","Revenue","R9255","Support","04-SUPPLIES","Supplies And Services","04F","Communications and computing","5858","Phones","3692176","202301",13/04/2022 00:00:00,40,"76520","Telecommunications Equipment and Systems","REDACTED DATA","O2 (UK) LTD","",,""
"London Borough of Redbridge","http://opendatacommunities.org/doc/london-borough-council/redbridge","1BOTHEROPI&E","Other Operating Income & Expenditure","1CTRADSURDEF","Trading Account Surpluses & Deficits","REV","Revenue","R9255","Support","04-SUPPLIES","Supplies And Services","04F","Communications and computing","5858","Phones","3692176","202301",13/04/2022 00:00:00,11,"76520","Telecommunications Equipment and Systems","REDACTED DATA","O2 (UK) LTD","",,""
"London Borough of Redbridge","http://opendatacommunities.org/doc/london-borough-council/redbridge","1BOTHEROPI&E","Other Operating Income & Expenditure","1CTRADSURDEF","Trading Account Surpluses & Deficits","REV","Revenue","R9255","Support","04-SUPPLIES","Supplies And Services","04F","Communications and computing","5858","Phones","3692176","202301",13/04/2022 00:00:00,85.7,"76520","Telecommunications Equipment and Systems","REDACTED DATA","O2 (UK) LTD","",,""
"London Borough of Redbridge","http://opendatacommunities.org/doc/london-borough-council/redbridge","1BOTHEROPI&E","Other Operating Income & Expenditure","1CTRADSURDEF","Trading Account Surpluses & Deficits","REV","Revenue","R9255","Support","04-SUPPLIES","Supplies And Services","04F","Communications and computing","5858","Phones","3692176","202301",13/04/2022 00:00:00,10,"76520","Telecommunications Equipment and Systems","REDACTED DATA","O2 (UK) LTD","",,""
"London Borough of Redbridge","http://opendatacommunities.org/doc/london-borough-council/redbridge","1BOTHEROPI&E","Other Operating Income & Expenditure","1CTRADSURDEF","Trading Account Surpluses & Deficits","REV","Revenue","R9255","Support","04-SUPPLIES","Supplies And Services","04F","Communications and computing","5858","Phones","3692176","202301",13/04/2022 00:00:00,10,"76520","Telecommunications Equipment and Systems","REDACTED DATA","O2 (UK) LTD","",,""
"London Borough of Redbridge","http://opendatacommunities.org/doc/london-borough-council/redbridge","1BOTHEROPI&E","Other Operating Income & Expenditure","1CTRADSURDEF","Trading Account Surpluses & Deficits","REV","Revenue","R9255","Support","04-SUPPLIES","Supplies And Services","04F","Communications and computing","5858","Phones","3692176","202301",13/04/2022 00:00:00,10.02,"76520","Telecommunications Equipment and Systems","REDACTED DATA","O2 (UK) LTD","",,""
"London Borough of Redbridge","http://opendatacommunities.org/doc/london-borough-council/redbridge","1BOTHEROPI&E","Other Operating Income & Expenditure","1CTRADSURDEF","Trading Account Surpluses & Deficits","REV","Revenue","R9255","Support","04-SUPPLIES","Supplies And Services","04F","Communications and computing","5858","Phones","3692176","202301",13/04/2022 00:00:00,10,"76520","Telecommunications Equipment and Systems","REDACTED DATA","O2 (UK) LTD","",,""
"London Borough of Redbridge","http://opendatacommunities.org/doc/london-borough-council/redbridge","1BOTHEROPI&E","Other Operating Income & Expenditure","1CTRADSURDEF","Trading Account Surpluses & Deficits","REV","Revenue","R9255","Support","04-SUPPLIES","Supplies And Services","04F","Communications and computing","5858","Phones","3692176","202301",13/04/2022 00:00:00,20,"76520","Telecommunications Equipment and Systems","REDACTED DATA","O2 (UK) LTD","",,""
"London Borough of Redbridge","http://opendatacommunities.org/doc/london-borough-council/redbridge","1BOTHEROPI&E","Other Operating Income & Expenditure","1CTRADSURDEF","Trading Account Surpluses & Deficits","REV","Revenue","R9255","Support","04-SUPPLIES","Supplies And Services","04F","Communications and computing","5858","Phones","3692176","202301",13/04/2022 00:00:00,10,"76520","Telecommunications Equipment and Systems","REDACTED DATA","O2 (UK) LTD","",,""
"London Borough of Redbridge","http://opendatacommunities.org/doc/london-borough-council/redbridge","1BOTHEROPI&E","Other Operating Income & Expenditure","1CTRADSURDEF","Trading Account Surpluses & Deficits","REV","Revenue","R9255","Support","04-SUPPLIES","Supplies And Services","04F","Communications and computing","5858","Phones","3692176","202301",13/04/2022 00:00:00,10,"76520","Telecommunications Equipment and Systems","REDACTED DATA","O2 (UK) LTD","",,""
"London Borough of Redbridge","http://opendatacommunities.org/doc/london-borough-council/redbridge","1BOTHEROPI&E","Other Operating Income & Expenditure","1CTRADSURDEF","Trading Account Surpluses & Deficits","REV","Revenue","R9255","Support","04-SUPPLIES","Supplies And Services","04F","Communications and computing","5858","Phones","3692176","202301",13/04/2022 00:00:00,10,"76520","Telecommunications Equipment and Systems","REDACTED DATA","O2 (UK) LTD","",,""
"London Borough of Redbridge","http://opendatacommunities.org/doc/london-borough-council/redbridge","1BOTHEROPI&E","Other Operating Income & Expenditure","1CTRADSURDEF","Trading Account Surpluses & Deficits","REV","Revenue","R9255","Support","04-SUPPLIES","Supplies And Services","04F","Communications and computing","5858","Phones","3692176","202301",13/04/2022 00:00:00,10,"76520","Telecommunications Equipment and Systems","REDACTED DATA","O2 (UK) LTD","",,""
"London Borough of Redbridge","http://opendatacommunities.org/doc/london-borough-council/redbridge","1BOTHEROPI&E","Other Operating Income & Expenditure","1CTRADSURDEF","Trading Account Surpluses & Deficits","REV","Revenue","R9255","Support","04-SUPPLIES","Supplies And Services","04F","Communications and computing","5858","Phones","3692176","202301",13/04/2022 00:00:00,10,"76520","Telecommunications Equipment and Systems","REDACTED DATA","O2 (UK) LTD","",,""
"London Borough of Redbridge","http://opendatacommunities.org/doc/london-borough-council/redbridge","1BOTHEROPI&E","Other Operating Income & Expenditure","1CTRADSURDEF","Trading Account Surpluses & Deficits","REV","Revenue","R9255","Support","04-SUPPLIES","Supplies And Services","04F","Communications and computing","5858","Phones","3692176","202301",13/04/2022 00:00:00,10,"76520","Telecommunications Equipment and Systems","REDACTED DATA","O2 (UK) LTD","",,""
"London Borough of Redbridge","http://opendatacommunities.org/doc/london-borough-council/redbridge","1BOTHEROPI&E","Other Operating Income & Expenditure","1CTRADSURDEF","Trading Account Surpluses & Deficits","REV","Revenue","R9255","Support","04-SUPPLIES","Supplies And Services","04F","Communications and computing","5858","Phones","3692176","202301",13/04/2022 00:00:00,10,"76520","Telecommunications Equipment and Systems","REDACTED DATA","O2 (UK) LTD","",,""
"London Borough of Redbridge","http://opendatacommunities.org/doc/london-borough-council/redbridge","1BOTHEROPI&E","Other Operating Income & Expenditure","1CTRADSURDEF","Trading Account Surpluses & Deficits","REV","Revenue","R9255","Support","04-SUPPLIES","Supplies And Services","04F","Communications and computing","5858","Phones","3692176","202301",13/04/2022 00:00:00,10,"76520","Telecommunications Equipment and Systems","REDACTED DATA","O2 (UK) LTD","",,""
"London Borough of Redbridge","http://opendatacommunities.org/doc/london-borough-council/redbridge","1BOTHEROPI&E","Other Operating Income & Expenditure","1CTRADSURDEF","Trading Account Surpluses & Deficits","REV","Revenue","R9255","Support","04-SUPPLIES","Supplies And Services","04F","Communications and computing","5858","Phones","3692176","202301",13/04/2022 00:00:00,10,"76520","Telecommunications Equipment and Systems","REDACTED DATA","O2 (UK) LTD","",,""
"London Borough of Redbridge","http://opendatacommunities.org/doc/london-borough-council/redbridge","1BOTHEROPI&E","Other Operating Income & Expenditure","1CTRADSURDEF","Trading Account Surpluses & Deficits","REV","Revenue","R9255","Support","04-SUPPLIES","Supplies And Services","04F","Communications and computing","5858","Phones","3692176","202301",13/04/2022 00:00:00,10,"76520","Telecommunications Equipment and Systems","REDACTED DATA","O2 (UK) LTD","",,""
"London Borough of Redbridge","http://opendatacommunities.org/doc/london-borough-council/redbridge","1BOTHEROPI&E","Other Operating Income & Expenditure","1CTRADSURDEF","Trading Account Surpluses & Deficits","REV","Revenue","R9255","Support","04-SUPPLIES","Supplies And Services","04F","Communications and computing","5858","Phones","3692176","202301",13/04/2022 00:00:00,28.27,"76520","Telecommunications Equipment and Systems","REDACTED DATA","O2 (UK) LTD","",,""
"London Borough of Redbridge","http://opendatacommunities.org/doc/london-borough-council/redbridge","1BOTHEROPI&E","Other Operating Income & Expenditure","1CTRADSURDEF","Trading Account Surpluses & Deficits","REV","Revenue","R9255","Support","04-SUPPLIES","Supplies And Services","04F","Communications and computing","5858","Phones","3692176","202301",13/04/2022 00:00:00,10,"76520","Telecommunications Equipment and Systems","REDACTED DATA","O2 (UK) LTD","",,""
"London Borough of Redbridge","http://opendatacommunities.org/doc/london-borough-council/redbridge","1BOTHEROPI&E","Other Operating Income & Expenditure","1CTRADSURDEF","Trading Account Surpluses & Deficits","REV","Revenue","R9255","Support","04-SUPPLIES","Supplies And Services","04F","Communications and computing","5858","Phones","3692176","202301",13/04/2022 00:00:00,10,"76520","Telecommunications Equipment and Systems","REDACTED DATA","O2 (UK) LTD","",,""
"London Borough of Redbridge","http://opendatacommunities.org/doc/london-borough-council/redbridge","1BOTHEROPI&E","Other Operating Income & Expenditure","1CTRADSURDEF","Trading Account Surpluses & Deficits","REV","Revenue","R9255","Support","04-SUPPLIES","Supplies And Services","04F","Communications and computing","5858","Phones","3692176","202301",13/04/2022 00:00:00,0,"76520","Telecommunications Equipment and Systems","REDACTED DATA","O2 (UK) LTD","",,""
"London Borough of Redbridge","http://opendatacommunities.org/doc/london-borough-council/redbridge","1BOTHEROPI&E","Other Operating Income & Expenditure","1CTRADSURDEF","Trading Account Surpluses & Deficits","REV","Revenue","R9255","Support","04-SUPPLIES","Supplies And Services","04F","Communications and computing","5858","Phones","3692176","202301",13/04/2022 00:00:00,10,"76520","Telecommunications Equipment and Systems","REDACTED DATA","O2 (UK) LTD","",,""
"London Borough of Redbridge","http://opendatacommunities.org/doc/london-borough-council/redbridge","1BOTHEROPI&E","Other Operating Income & Expenditure","1CTRADSURDEF","Trading Account Surpluses & Deficits","REV","Revenue","R9255","Support","04-SUPPLIES","Supplies And Services","04F","Communications and computing","5858","Phones","3692176","202301",13/04/2022 00:00:00,10,"76520","Telecommunications Equipment and Systems","REDACTED DATA","O2 (UK) LTD","",,""
"London Borough of Redbridge","http://opendatacommunities.org/doc/london-borough-council/redbridge","1BOTHEROPI&E","Other Operating Income & Expenditure","1CTRADSURDEF","Trading Account Surpluses & Deficits","REV","Revenue","R9255","Support","04-SUPPLIES","Supplies And Services","04F","Communications and computing","5858","Phones","3692176","202301",13/04/2022 00:00:00,10,"76520","Telecommunications Equipment and Systems","REDACTED DATA","O2 (UK) LTD","",,""
"London Borough of Redbridge","http://opendatacommunities.org/doc/london-borough-council/redbridge","1BOTHEROPI&E","Other Operating Income & Expenditure","1CTRADSURDEF","Trading Account Surpluses & Deficits","REV","Revenue","R9255","Support","04-SUPPLIES","Supplies And Services","04F","Communications and computing","5858","Phones","3692176","202301",13/04/2022 00:00:00,10,"76520","Telecommunications Equipment and Systems","REDACTED DATA","O2 (UK) LTD","",,""
"London Borough of Redbridge","http://opendatacommunities.org/doc/london-borough-council/redbridge","1BOTHEROPI&E","Other Operating Income & Expenditure","1CTRADSURDEF","Trading Account Surpluses & Deficits","REV","Revenue","R9255","Support","04-SUPPLIES","Supplies And Services","04F","Communications and computing","5858","Phones","3692176","202301",13/04/2022 00:00:00,10,"76520","Telecommunications Equipment and Systems","REDACTED DATA","O2 (UK) LTD","",,""
"London Borough of Redbridge","http://opendatacommunities.org/doc/london-borough-council/redbridge","1BOTHEROPI&E","Other Operating Income & Expenditure","1CTRADSURDEF","Trading Account Surpluses & Deficits","REV","Revenue","R9255","Support","04-SUPPLIES","Supplies And Services","04F","Communications and computing","5858","Phones","3692176","202301",13/04/2022 00:00:00,10,"76520","Telecommunications Equipment and Systems","REDACTED DATA","O2 (UK) LTD","",,""
"London Borough of Redbridge","http://opendatacommunities.org/doc/london-borough-council/redbridge","1BOTHEROPI&E","Other Operating Income & Expenditure","1CTRADSURDEF","Trading Account Surpluses & Deficits","REV","Revenue","R9255","Support","04-SUPPLIES","Supplies And Services","04F","Communications and computing","5858","Phones","3692176","202301",13/04/2022 00:00:00,11.83,"76520","Telecommunications Equipment and Systems","REDACTED DATA","O2 (UK) LTD","",,""
"London Borough of Redbridge","http://opendatacommunities.org/doc/london-borough-council/redbridge","1BOTHEROPI&E","Other Operating Income & Expenditure","1CTRADSURDEF","Trading Account Surpluses & Deficits","REV","Revenue","R9255","Support","04-SUPPLIES","Supplies And Services","04F","Communications and computing","5858","Phones","3692176","202301",13/04/2022 00:00:00,16.55,"76520","Telecommunications Equipment and Systems","REDACTED DATA","O2 (UK) LTD","",,""
"London Borough of Redbridge","http://opendatacommunities.org/doc/london-borough-council/redbridge","1BOTHEROPI&E","Other Operating Income & Expenditure","1CTRADSURDEF","Trading Account Surpluses & Deficits","REV","Revenue","R9255","Support","04-SUPPLIES","Supplies And Services","04F","Communications and computing","5858","Phones","3692176","202301",13/04/2022 00:00:00,10,"76520","Telecommunications Equipment and Systems","REDACTED DATA","O2 (UK) LTD","",,""
"London Borough of Redbridge","http://opendatacommunities.org/doc/london-borough-council/redbridge","1BOTHEROPI&E","Other Operating Income & Expenditure","1CTRADSURDEF","Trading Account Surpluses & Deficits","REV","Revenue","R9255","Support","04-SUPPLIES","Supplies And Services","04F","Communications and computing","5858","Phones","3692176","202301",13/04/2022 00:00:00,10,"76520","Telecommunications Equipment and Systems","REDACTED DATA","O2 (UK) LTD","",,""
"London Borough of Redbridge","http://opendatacommunities.org/doc/london-borough-council/redbridge","1BOTHEROPI&E","Other Operating Income & Expenditure","1CTRADSURDEF","Trading Account Surpluses & Deficits","REV","Revenue","R9255","Support","04-SUPPLIES","Supplies And Services","04F","Communications and computing","5858","Phones","3692176","202301",13/04/2022 00:00:00,10,"76520","Telecommunications Equipment and Systems","REDACTED DATA","O2 (UK) LTD","",,""
"London Borough of Redbridge","http://opendatacommunities.org/doc/london-borough-council/redbridge","1BOTHEROPI&E","Other Operating Income & Expenditure","1CTRADSURDEF","Trading Account Surpluses & Deficits","REV","Revenue","R9255","Support","04-SUPPLIES","Supplies And Services","04F","Communications and computing","5858","Phones","3692176","202301",13/04/2022 00:00:00,10,"76520","Telecommunications Equipment and Systems","REDACTED DATA","O2 (UK) LTD","",,""
"London Borough of Redbridge","http://opendatacommunities.org/doc/london-borough-council/redbridge","1BOTHEROPI&E","Other Operating Income & Expenditure","1CTRADSURDEF","Trading Account Surpluses & Deficits","REV","Revenue","R9255","Support","04-SUPPLIES","Supplies And Services","04F","Communications and computing","5858","Phones","3692176","202301",13/04/2022 00:00:00,10,"76520","Telecommunications Equipment and Systems","REDACTED DATA","O2 (UK) LTD","",,""
"London Borough of Redbridge","http://opendatacommunities.org/doc/london-borough-council/redbridge","1BOTHEROPI&E","Other Operating Income & Expenditure","1CTRADSURDEF","Trading Account Surpluses & Deficits","REV","Revenue","R9255","Support","04-SUPPLIES","Supplies And Services","04F","Communications and computing","5858","Phones","3692176","202301",13/04/2022 00:00:00,10,"76520","Telecommunications Equipment and Systems","REDACTED DATA","O2 (UK) LTD","",,""
"London Borough of Redbridge","http://opendatacommunities.org/doc/london-borough-council/redbridge","1BOTHEROPI&E","Other Operating Income & Expenditure","1CTRADSURDEF","Trading Account Surpluses & Deficits","REV","Revenue","R9255","Support","04-SUPPLIES","Supplies And Services","04F","Communications and computing","5858","Phones","3692176","202301",13/04/2022 00:00:00,10,"76520","Telecommunications Equipment and Systems","REDACTED DATA","O2 (UK) LTD","",,""
"London Borough of Redbridge","http://opendatacommunities.org/doc/london-borough-council/redbridge","1BOTHEROPI&E","Other Operating Income & Expenditure","1CTRADSURDEF","Trading Account Surpluses & Deficits","REV","Revenue","R9255","Support","04-SUPPLIES","Supplies And Services","04F","Communications and computing","5858","Phones","3692176","202301",13/04/2022 00:00:00,10,"76520","Telecommunications Equipment and Systems","REDACTED DATA","O2 (UK) LTD","",,""
"London Borough of Redbridge","http://opendatacommunities.org/doc/london-borough-council/redbridge","1BOTHEROPI&E","Other Operating Income & Expenditure","1CTRADSURDEF","Trading Account Surpluses & Deficits","REV","Revenue","R9255","Support","04-SUPPLIES","Supplies And Services","04F","Communications and computing","5858","Phones","3692176","202301",13/04/2022 00:00:00,10,"76520","Telecommunications Equipment and Systems","REDACTED DATA","O2 (UK) LTD","",,""
"London Borough of Redbridge","http://opendatacommunities.org/doc/london-borough-council/redbridge","1BOTHEROPI&E","Other Operating Income & Expenditure","1CTRADSURDEF","Trading Account Surpluses & Deficits","REV","Revenue","R9255","Support","04-SUPPLIES","Supplies And Services","04F","Communications and computing","5858","Phones","3692176","202301",13/04/2022 00:00:00,10,"76520","Telecommunications Equipment and Systems","REDACTED DATA","O2 (UK) LTD","",,""
"London Borough of Redbridge","http://opendatacommunities.org/doc/london-borough-council/redbridge","1BOTHEROPI&E","Other Operating Income & Expenditure","1CTRADSURDEF","Trading Account Surpluses & Deficits","REV","Revenue","R9255","Support","04-SUPPLIES","Supplies And Services","04F","Communications and computing","5858","Phones","3692176","202301",13/04/2022 00:00:00,13.53,"76520","Telecommunications Equipment and Systems","REDACTED DATA","O2 (UK) LTD","",,""
"London Borough of Redbridge","http://opendatacommunities.org/doc/london-borough-council/redbridge","1BOTHEROPI&E","Other Operating Income & Expenditure","1CTRADSURDEF","Trading Account Surpluses & Deficits","REV","Revenue","R9255","Support","04-SUPPLIES","Supplies And Services","04F","Communications and computing","5858","Phones","3692176","202301",13/04/2022 00:00:00,11.84,"76520","Telecommunications Equipment and Systems","REDACTED DATA","O2 (UK) LTD","",,""
"London Borough of Redbridge","http://opendatacommunities.org/doc/london-borough-council/redbridge","1BOTHEROPI&E","Other Operating Income & Expenditure","1CTRADSURDEF","Trading Account Surpluses & Deficits","REV","Revenue","R9255","Support","04-SUPPLIES","Supplies And Services","04F","Communications and computing","5858","Phones","3692176","202301",13/04/2022 00:00:00,10,"76520","Telecommunications Equipment and Systems","REDACTED DATA","O2 (UK) LTD","",,""
"London Borough of Redbridge","http://opendatacommunities.org/doc/london-borough-council/redbridge","1BOTHEROPI&E","Other Operating Income & Expenditure","1CTRADSURDEF","Trading Account Surpluses & Deficits","REV","Revenue","R9255","Support","04-SUPPLIES","Supplies And Services","04F","Communications and computing","5858","Phones","3692176","202301",13/04/2022 00:00:00,10,"76520","Telecommunications Equipment and Systems","REDACTED DATA","O2 (UK) LTD","",,""
"London Borough of Redbridge","http://opendatacommunities.org/doc/london-borough-council/redbridge","1BOTHEROPI&E","Other Operating Income & Expenditure","1CTRADSURDEF","Trading Account Surpluses & Deficits","REV","Revenue","R9255","Support","04-SUPPLIES","Supplies And Services","04F","Communications and computing","5858","Phones","3692176","202301",13/04/2022 00:00:00,10,"76520","Telecommunications Equipment and Systems","REDACTED DATA","O2 (UK) LTD","",,""
"London Borough of Redbridge","http://opendatacommunities.org/doc/london-borough-council/redbridge","1BOTHEROPI&E","Other Operating Income & Expenditure","1CTRADSURDEF","Trading Account Surpluses & Deficits","REV","Revenue","R9255","Support","04-SUPPLIES","Supplies And Services","04F","Communications and computing","5858","Phones","3692176","202301",13/04/2022 00:00:00,10,"76520","Telecommunications Equipment and Systems","REDACTED DATA","O2 (UK) LTD","",,""
"London Borough of Redbridge","http://opendatacommunities.org/doc/london-borough-council/redbridge","1BOTHEROPI&E","Other Operating Income & Expenditure","1CTRADSURDEF","Trading Account Surpluses & Deficits","REV","Revenue","R9255","Support","04-SUPPLIES","Supplies And Services","04F","Communications and computing","5858","Phones","3692176","202301",13/04/2022 00:00:00,10,"76520","Telecommunications Equipment and Systems","REDACTED DATA","O2 (UK) LTD","",,""
"London Borough of Redbridge","http://opendatacommunities.org/doc/london-borough-council/redbridge","1BOTHEROPI&E","Other Operating Income & Expenditure","1CTRADSURDEF","Trading Account Surpluses & Deficits","REV","Revenue","R9255","Support","04-SUPPLIES","Supplies And Services","04F","Communications and computing","5858","Phones","3692176","202301",13/04/2022 00:00:00,10,"76520","Telecommunications Equipment and Systems","REDACTED DATA","O2 (UK) LTD","",,""
"London Borough of Redbridge","http://opendatacommunities.org/doc/london-borough-council/redbridge","1BOTHEROPI&E","Other Operating Income & Expenditure","1CTRADSURDEF","Trading Account Surpluses & Deficits","REV","Revenue","R9255","Support","04-SUPPLIES","Supplies And Services","04F","Communications and computing","5858","Phones","3692176","202301",13/04/2022 00:00:00,10,"76520","Telecommunications Equipment and Systems","REDACTED DATA","O2 (UK) LTD","",,""
"London Borough of Redbridge","http://opendatacommunities.org/doc/london-borough-council/redbridge","1BOTHEROPI&E","Other Operating Income & Expenditure","1CTRADSURDEF","Trading Account Surpluses & Deficits","REV","Revenue","R9255","Support","04-SUPPLIES","Supplies And Services","04F","Communications and computing","5858","Phones","3692176","202301",13/04/2022 00:00:00,11.88,"76520","Telecommunications Equipment and Systems","REDACTED DATA","O2 (UK) LTD","",,""
"London Borough of Redbridge","http://opendatacommunities.org/doc/london-borough-council/redbridge","1BOTHEROPI&E","Other Operating Income & Expenditure","1CTRADSURDEF","Trading Account Surpluses & Deficits","REV","Revenue","R9255","Support","04-SUPPLIES","Supplies And Services","04F","Communications and computing","5858","Phones","3692176","202301",13/04/2022 00:00:00,13.59,"76520","Telecommunications Equipment and Systems","REDACTED DATA","O2 (UK) LTD","",,""
"London Borough of Redbridge","http://opendatacommunities.org/doc/london-borough-council/redbridge","1BOTHEROPI&E","Other Operating Income & Expenditure","1CTRADSURDEF","Trading Account Surpluses & Deficits","REV","Revenue","R9255","Support","04-SUPPLIES","Supplies And Services","04F","Communications and computing","5858","Phones","3692176","202301",13/04/2022 00:00:00,10,"76520","Telecommunications Equipment and Systems","REDACTED DATA","O2 (UK) LTD","",,""
"London Borough of Redbridge","http://opendatacommunities.org/doc/london-borough-council/redbridge","1BOTHEROPI&E","Other Operating Income & Expenditure","1CTRADSURDEF","Trading Account Surpluses & Deficits","REV","Revenue","R9255","Support","04-SUPPLIES","Supplies And Services","04F","Communications and computing","5858","Phones","3692176","202301",13/04/2022 00:00:00,13.31,"76520","Telecommunications Equipment and Systems","REDACTED DATA","O2 (UK) LTD","",,""
"London Borough of Redbridge","http://opendatacommunities.org/doc/london-borough-council/redbridge","1BOTHEROPI&E","Other Operating Income & Expenditure","1CTRADSURDEF","Trading Account Surpluses & Deficits","REV","Revenue","R9255","Support","04-SUPPLIES","Supplies And Services","04F","Communications and computing","5858","Phones","3692176","202301",13/04/2022 00:00:00,10,"76520","Telecommunications Equipment and Systems","REDACTED DATA","O2 (UK) LTD","",,""
"London Borough of Redbridge","http://opendatacommunities.org/doc/london-borough-council/redbridge","1BOTHEROPI&E","Other Operating Income & Expenditure","1CTRADSURDEF","Trading Account Surpluses & Deficits","REV","Revenue","R9255","Support","04-SUPPLIES","Supplies And Services","04F","Communications and computing","5858","Phones","3692176","202301",13/04/2022 00:00:00,14.26,"76520","Telecommunications Equipment and Systems","REDACTED DATA","O2 (UK) LTD","",,""
"London Borough of Redbridge","http://opendatacommunities.org/doc/london-borough-council/redbridge","1BOTHEROPI&E","Other Operating Income & Expenditure","1CTRADSURDEF","Trading Account Surpluses & Deficits","REV","Revenue","R9255","Support","04-SUPPLIES","Supplies And Services","04F","Communications and computing","5858","Phones","3692176","202301",13/04/2022 00:00:00,10,"76520","Telecommunications Equipment and Systems","REDACTED DATA","O2 (UK) LTD","",,""
"London Borough of Redbridge","http://opendatacommunities.org/doc/london-borough-council/redbridge","1BOTHEROPI&E","Other Operating Income & Expenditure","1CTRADSURDEF","Trading Account Surpluses & Deficits","REV","Revenue","R9255","Support","04-SUPPLIES","Supplies And Services","04F","Communications and computing","5858","Phones","3692176","202301",13/04/2022 00:00:00,10,"76520","Telecommunications Equipment and Systems","REDACTED DATA","O2 (UK) LTD","",,""
"London Borough of Redbridge","http://opendatacommunities.org/doc/london-borough-council/redbridge","1BOTHEROPI&E","Other Operating Income & Expenditure","1CTRADSURDEF","Trading Account Surpluses & Deficits","REV","Revenue","R9255","Support","04-SUPPLIES","Supplies And Services","04F","Communications and computing","5858","Phones","3692176","202301",13/04/2022 00:00:00,10,"76520","Telecommunications Equipment and Systems","REDACTED DATA","O2 (UK) LTD","",,""
"London Borough of Redbridge","http://opendatacommunities.org/doc/london-borough-council/redbridge","1BOTHEROPI&E","Other Operating Income & Expenditure","1CTRADSURDEF","Trading Account Surpluses & Deficits","REV","Revenue","R9255","Support","04-SUPPLIES","Supplies And Services","04F","Communications and computing","5858","Phones","3692176","202301",13/04/2022 00:00:00,10.5,"76520","Telecommunications Equipment and Systems","REDACTED DATA","O2 (UK) LTD","",,""
"London Borough of Redbridge","http://opendatacommunities.org/doc/london-borough-council/redbridge","1BOTHEROPI&E","Other Operating Income & Expenditure","1CTRADSURDEF","Trading Account Surpluses & Deficits","REV","Revenue","R9255","Support","04-SUPPLIES","Supplies And Services","04F","Communications and computing","5858","Phones","3692176","202301",13/04/2022 00:00:00,10,"76520","Telecommunications Equipment and Systems","REDACTED DATA","O2 (UK) LTD","",,""
"London Borough of Redbridge","http://opendatacommunities.org/doc/london-borough-council/redbridge","1BOTHEROPI&E","Other Operating Income & Expenditure","1CTRADSURDEF","Trading Account Surpluses & Deficits","REV","Revenue","R9255","Support","04-SUPPLIES","Supplies And Services","04F","Communications and computing","5858","Phones","3692176","202301",13/04/2022 00:00:00,10.02,"76520","Telecommunications Equipment and Systems","REDACTED DATA","O2 (UK) LTD","",,""
"London Borough of Redbridge","http://opendatacommunities.org/doc/london-borough-council/redbridge","1BOTHEROPI&E","Other Operating Income & Expenditure","1CTRADSURDEF","Trading Account Surpluses & Deficits","REV","Revenue","R9255","Support","04-SUPPLIES","Supplies And Services","04F","Communications and computing","5858","Phones","3692176","202301",13/04/2022 00:00:00,10,"76520","Telecommunications Equipment and Systems","REDACTED DATA","O2 (UK) LTD","",,""
"London Borough of Redbridge","http://opendatacommunities.org/doc/london-borough-council/redbridge","1BOTHEROPI&E","Other Operating Income & Expenditure","1CTRADSURDEF","Trading Account Surpluses & Deficits","REV","Revenue","R9255","Support","04-SUPPLIES","Supplies And Services","04F","Communications and computing","5858","Phones","3692176","202301",13/04/2022 00:00:00,10,"76520","Telecommunications Equipment and Systems","REDACTED DATA","O2 (UK) LTD","",,""
"London Borough of Redbridge","http://opendatacommunities.org/doc/london-borough-council/redbridge","1BOTHEROPI&E","Other Operating Income & Expenditure","1CTRADSURDEF","Trading Account Surpluses & Deficits","REV","Revenue","R9255","Support","04-SUPPLIES","Supplies And Services","04F","Communications and computing","5858","Phones","3692176","202301",13/04/2022 00:00:00,10,"76520","Telecommunications Equipment and Systems","REDACTED DATA","O2 (UK) LTD","",,""
"London Borough of Redbridge","http://opendatacommunities.org/doc/london-borough-council/redbridge","1BOTHEROPI&E","Other Operating Income & Expenditure","1CTRADSURDEF","Trading Account Surpluses & Deficits","REV","Revenue","R9255","Support","04-SUPPLIES","Supplies And Services","04F","Communications and computing","5858","Phones","3692176","202301",13/04/2022 00:00:00,11,"76520","Telecommunications Equipment and Systems","REDACTED DATA","O2 (UK) LTD","",,""
"London Borough of Redbridge","http://opendatacommunities.org/doc/london-borough-council/redbridge","1BOTHEROPI&E","Other Operating Income & Expenditure","1CTRADSURDEF","Trading Account Surpluses & Deficits","REV","Revenue","R9255","Support","04-SUPPLIES","Supplies And Services","04F","Communications and computing","5858","Phones","3692176","202301",13/04/2022 00:00:00,10,"76520","Telecommunications Equipment and Systems","REDACTED DATA","O2 (UK) LTD","",,""
"London Borough of Redbridge","http://opendatacommunities.org/doc/london-borough-council/redbridge","1BOTHEROPI&E","Other Operating Income & Expenditure","1CTRADSURDEF","Trading Account Surpluses & Deficits","REV","Revenue","R9255","Support","04-SUPPLIES","Supplies And Services","04F","Communications and computing","5858","Phones","3692176","202301",13/04/2022 00:00:00,17.72,"76520","Telecommunications Equipment and Systems","REDACTED DATA","O2 (UK) LTD","",,""
"London Borough of Redbridge","http://opendatacommunities.org/doc/london-borough-council/redbridge","1BOTHEROPI&E","Other Operating Income & Expenditure","1CTRADSURDEF","Trading Account Surpluses & Deficits","REV","Revenue","R9255","Support","04-SUPPLIES","Supplies And Services","04F","Communications and computing","5858","Phones","3692176","202301",13/04/2022 00:00:00,10,"76520","Telecommunications Equipment and Systems","REDACTED DATA","O2 (UK) LTD","",,""
"London Borough of Redbridge","http://opendatacommunities.org/doc/london-borough-council/redbridge","1BOTHEROPI&E","Other Operating Income & Expenditure","1CTRADSURDEF","Trading Account Surpluses & Deficits","REV","Revenue","R9255","Support","04-SUPPLIES","Supplies And Services","04F","Communications and computing","5858","Phones","3692176","202301",13/04/2022 00:00:00,10,"76520","Telecommunications Equipment and Systems","REDACTED DATA","O2 (UK) LTD","",,""
"London Borough of Redbridge","http://opendatacommunities.org/doc/london-borough-council/redbridge","1BOTHEROPI&E","Other Operating Income & Expenditure","1CTRADSURDEF","Trading Account Surpluses & Deficits","REV","Revenue","R9278","IT - Vision RCL Costs","04-SUPPLIES","Supplies And Services","04F","Communications and computing","5854","Exchange Line Rental","3692338","202301",02/04/2022 00:00:00,40,"76510","Telecommunication Services","REDACTED DATA","VIRGIN MEDIA PAYMENTS LTD(MAIN ACCT)","1785381","http://opencorporates.com/companies/gb/1785381","591819014"
"London Borough of Redbridge","http://opendatacommunities.org/doc/london-borough-council/redbridge","1BOTHEROPI&E","Other Operating Income & Expenditure","1CTRADSURDEF","Trading Account Surpluses & Deficits","REV","Revenue","R9278","IT - Vision RCL Costs","04-SUPPLIES","Supplies And Services","04F","Communications and computing","5854","Exchange Line Rental","3692327","202301",02/04/2022 00:00:00,25.08,"76510","Telecommunication Services","REDACTED DATA","VIRGIN MEDIA PAYMENTS LTD(MAIN ACCT)","1785381","http://opencorporates.com/companies/gb/1785381","591819014"
"London Borough of Redbridge","http://opendatacommunities.org/doc/london-borough-council/redbridge","1BOTHEROPI&E","Other Operating Income & Expenditure","1CTRADSURDEF","Trading Account Surpluses & Deficits","REV","Revenue","R9278","IT - Vision RCL Costs","04-SUPPLIES","Supplies And Services","04F","Communications and computing","5854","Exchange Line Rental","3692331","202301",02/04/2022 00:00:00,43.35,"76510","Telecommunication Services","REDACTED DATA","VIRGIN MEDIA PAYMENTS LTD(MAIN ACCT)","1785381","http://opencorporates.com/companies/gb/1785381","591819014"
"London Borough of Redbridge","http://opendatacommunities.org/doc/london-borough-council/redbridge","1BOTHEROPI&E","Other Operating Income & Expenditure","1CTRADSURDEF","Trading Account Surpluses & Deficits","REV","Revenue","R9278","IT - Vision RCL Costs","04-SUPPLIES","Supplies And Services","04F","Communications and computing","5854","Exchange Line Rental","3692332","202301",02/04/2022 00:00:00,41.21,"76510","Telecommunication Services","REDACTED DATA","VIRGIN MEDIA PAYMENTS LTD(MAIN ACCT)","1785381","http://opencorporates.com/companies/gb/1785381","591819014"
"London Borough of Redbridge","http://opendatacommunities.org/doc/london-borough-council/redbridge","1BOTHEROPI&E","Other Operating Income & Expenditure","1CTRADSURDEF","Trading Account Surpluses & Deficits","REV","Revenue","R9352","Legal Supplies & Services","01-EMPLOYEES","Employees","01B","Indirect employee expenses","2403","External Training","60486768","202301",31/03/2022 00:00:00,330,"79980","Training Services","REDACTED DATA","Governance Training and Consultancy Ltd","1470659537","http://opencorporates.com/companies/gb/1470659537","398252457"
"London Borough of Redbridge","http://opendatacommunities.org/doc/london-borough-council/redbridge","1BOTHEROPI&E","Other Operating Income & Expenditure","1CTRADSURDEF","Trading Account Surpluses & Deficits","REV","Revenue","R9352","Legal Supplies & Services","04-SUPPLIES","Supplies And Services","04B","Catering","5602","Refreshments","80041849","202301",25/03/2022 00:00:00,2.16,"84070","Water Suppliers - Bottled","REDACTED DATA","EDEN SPRINGS (UK) LTD (NATURE SPRING)","4063744","http://opencorporates.com/companies/gb/4063744","232160411"
"London Borough of Redbridge","http://opendatacommunities.org/doc/london-borough-council/redbridge","1BOTHEROPI&E","Other Operating Income & Expenditure","1CTRADSURDEF","Trading Account Surpluses & Deficits","REV","Revenue","R9352","Legal Supplies & Services","04-SUPPLIES","Supplies And Services","04D","Printing, stationery and general office expenses","5705","Postage","60487536","202301",28/02/2022 00:00:00,25.65,"22620","Courier and Messenger Services","REDACTED DATA","ANGELS COURIER SERVICE LTD","2949091","http://opencorporates.com/companies/gb/2949091","648831896"
"London Borough of Redbridge","http://opendatacommunities.org/doc/london-borough-council/redbridge","1BOTHEROPI&E","Other Operating Income & Expenditure","1CTRADSURDEF","Trading Account Surpluses & Deficits","REV","Revenue","R9352","Legal Supplies & Services","04-SUPPLIES","Supplies And Services","04D","Printing, stationery and general office expenses","5705","Postage","60487238","202301",09/04/2022 00:00:00,47.5,"22620","Courier and Messenger Services","REDACTED DATA","ANGELS COURIER SERVICE LTD","2949091","http://opencorporates.com/companies/gb/2949091","648831896"
"London Borough of Redbridge","http://opendatacommunities.org/doc/london-borough-council/redbridge","1BOTHEROPI&E","Other Operating Income & Expenditure","1CTRADSURDEF","Trading Account Surpluses & Deficits","REV","Revenue","R9352","Legal Supplies & Services","04-SUPPLIES","Supplies And Services","04H","Grants and subscriptions","5954","Professional Fees","60486913","202301",01/04/2022 00:00:00,115,"52570","National Associations","REDACTED DATA","LAWYERS IN LOCAL GOVERNMENT - LLG","8379439","http://opencorporates.com/companies/gb/8379439",""
"London Borough of Redbridge","http://opendatacommunities.org/doc/london-borough-council/redbridge","1BOTHEROPI&E","Other Operating Income & Expenditure","1CTRADSURDEF","Trading Account Surpluses & Deficits","REV","Revenue","R9352","Legal Supplies & Services","04-SUPPLIES","Supplies And Services","04H","Grants and subscriptions","5956","Subscriptions","60487164","202301",01/01/2022 00:00:00,367,"45255","Institutes - Professional","REDACTED DATA","INSTITUTE OF LEGAL EXECUTIVES","",,""
"London Borough of Redbridge","http://opendatacommunities.org/doc/london-borough-council/redbridge","1BOTHEROPI&E","Other Operating Income & Expenditure","1CTRADSURDEF","Trading Account Surpluses & Deficits","REV","Revenue","R9353","Advisory Team","04-SUPPLIES","Supplies And Services","04H","Grants and subscriptions","5954","Professional Fees","60487054","202301",01/04/2022 00:00:00,133.89,"21950","Conveyancing Services","REDACTED DATA","Infotrack Ltd","9474590","http://opencorporates.com/companies/gb/9474590","228 5306 12"
"London Borough of Redbridge","http://opendatacommunities.org/doc/london-borough-council/redbridge","1BOTHEROPI&E","Other Operating Income & Expenditure","1CTRADSURDEF","Trading Account Surpluses & Deficits","REV","Revenue","R9354","Legal Disbursements","04-SUPPLIES","Supplies And Services","04H","Grants and subscriptions","5954","Professional Fees","60488161","202301",31/03/2022 00:00:00,96.34,"47830","Legal Services","REDACTED DATA","SHARPE PRITCHARD LLP","OC378650","http://opencorporates.com/companies/gb/OC378650","233214995"
"London Borough of Redbridge","http://opendatacommunities.org/doc/london-borough-council/redbridge","1BOTHEROPI&E","Other Operating Income & Expenditure","1CTRADSURDEF","Trading Account Surpluses & Deficits","REV","Revenue","R9354","Legal Disbursements","04-SUPPLIES","Supplies And Services","04H","Grants and subscriptions","5954","Professional Fees","60486807","202301",30/03/2022 00:00:00,50,"6700","Barristers","REDACTED DATA","RADCLIFFE CHAMBERS","",,"788233003"
"London Borough of Redbridge","http://opendatacommunities.org/doc/london-borough-council/redbridge","1BOTHEROPI&E","Other Operating Income & Expenditure","1CTRADSURDEF","Trading Account Surpluses & Deficits","REV","Revenue","R9354","Legal Disbursements","04-SUPPLIES","Supplies And Services","04H","Grants and subscriptions","5954","Professional Fees","60488247","202301",21/04/2022 00:00:00,1406.25,"12100","Business and Management Consultants","REDACTED DATA","THIRTYNINE ESSEX STREET CHAMBERS PROFESSIONAL FEES ACCOUNT","OC360005","http://opencorporates.com/companies/gb/OC360005","164143525"
"London Borough of Redbridge","http://opendatacommunities.org/doc/london-borough-council/redbridge","1BOTHEROPI&E","Other Operating Income & Expenditure","1CTRADSURDEF","Trading Account Surpluses & Deficits","REV","Revenue","R9354","Legal Disbursements","04-SUPPLIES","Supplies And Services","04H","Grants and subscriptions","5954","Professional Fees","60486565","202301",22/02/2022 00:00:00,100,"24510","Delivery Services","REDACTED DATA","ILN Limited","7782662","http://opencorporates.com/companies/gb/7782662","124 1131 73"
"London Borough of Redbridge","http://opendatacommunities.org/doc/london-borough-council/redbridge","1BOTHEROPI&E","Other Operating Income & Expenditure","1CTRADSURDEF","Trading Account Surpluses & Deficits","REV","Revenue","R9354","Legal Disbursements","04-SUPPLIES","Supplies And Services","04H","Grants and subscriptions","5954","Professional Fees","60486549","202301",13/01/2022 00:00:00,350,"6700","Barristers","REDACTED DATA","DRYSTONE CHAMBERS","",,""
"London Borough of Redbridge","http://opendatacommunities.org/doc/london-borough-council/redbridge","1BOTHEROPI&E","Other Operating Income & Expenditure","1CTRADSURDEF","Trading Account Surpluses & Deficits","REV","Revenue","R9354","Legal Disbursements","04-SUPPLIES","Supplies And Services","04H","Grants and subscriptions","5954","Professional Fees","60486566","202301",10/03/2022 00:00:00,100,"24510","Delivery Services","REDACTED DATA","ILN Limited","7782662","http://opencorporates.com/companies/gb/7782662","124 1131 73"
"London Borough of Redbridge","http://opendatacommunities.org/doc/london-borough-council/redbridge","1BOTHEROPI&E","Other Operating Income & Expenditure","1CTRADSURDEF","Trading Account Surpluses & Deficits","REV","Revenue","R9354","Legal Disbursements","04-SUPPLIES","Supplies And Services","04H","Grants and subscriptions","5954","Professional Fees","60487646","202301",03/08/2021 00:00:00,118.4,"72460","Solicitors","REDACTED DATA","A&M BACON LTD","3694494","http://opencorporates.com/companies/gb/3694494","817021168"
"London Borough of Redbridge","http://opendatacommunities.org/doc/london-borough-council/redbridge","1BOTHEROPI&E","Other Operating Income & Expenditure","1CTRADSURDEF","Trading Account Surpluses & Deficits","REV","Revenue","R9459","Pensions Team","01-EMPLOYEES","Employees","01B","Indirect employee expenses","2403","External Training","60486716","202301",31/03/2022 00:00:00,280,"12118","Business and Trade Organisations","REDACTED DATA","LOCAL GOVERNMENT ASSOCIATION","11177145","http://opencorporates.com/companies/gb/11177145","318342219"
"London Borough of Redbridge","http://opendatacommunities.org/doc/london-borough-council/redbridge","1BOTHEROPI&E","Other Operating Income & Expenditure","1CTRADSURDEF","Trading Account Surpluses & Deficits","REV","Revenue","R9459","Pensions Team","01-EMPLOYEES","Employees","01B","Indirect employee expenses","2403","External Training","60486127","202301",24/03/2022 00:00:00,230,"12118","Business and Trade Organisations","REDACTED DATA","LOCAL GOVERNMENT ASSOCIATION","11177145","http://opencorporates.com/companies/gb/11177145","318342219"
"London Borough of Redbridge","http://opendatacommunities.org/doc/london-borough-council/redbridge","1BOTHEROPI&E","Other Operating Income & Expenditure","1CTRADSURDEF","Trading Account Surpluses & Deficits","REV","Revenue","R9459","Pensions Team","01-EMPLOYEES","Employees","01B","Indirect employee expenses","2403","External Training","60486128","202301",24/03/2022 00:00:00,230,"12118","Business and Trade Organisations","REDACTED DATA","LOCAL GOVERNMENT ASSOCIATION","11177145","http://opencorporates.com/companies/gb/11177145","318342219"
"London Borough of Redbridge","http://opendatacommunities.org/doc/london-borough-council/redbridge","1BOTHEROPI&E","Other Operating Income & Expenditure","1CTRADSURDEF","Trading Account Surpluses & Deficits","REV","Revenue","R9462","Human Resources","04-SUPPLIES","Supplies And Services","04H","Grants and subscriptions","5954","Professional Fees","60486505","202301",30/03/2022 00:00:00,240,"31230","Employment and Recruitment Agencies","REDACTED DATA","Waddington Brown Ltd","5951684","http://opencorporates.com/companies/gb/5951684","900 0347 84"
"London Borough of Redbridge","http://opendatacommunities.org/doc/london-borough-council/redbridge","1BOTHEROPI&E","Other Operating Income & Expenditure","1CTRADSURDEF","Trading Account Surpluses & Deficits","REV","Revenue","R9462","Human Resources","04-SUPPLIES","Supplies And Services","04H","Grants and subscriptions","5954","Professional Fees","60487226","202301",01/04/2022 00:00:00,5.5,"24080","Database Services","REDACTED DATA","ATLANTIC DATA LTD","4085856","http://opencorporates.com/companies/gb/4085856","755878078"
"London Borough of Redbridge","http://opendatacommunities.org/doc/london-borough-council/redbridge","1BOTHEROPI&E","Other Operating Income & Expenditure","1CTRADSURDEF","Trading Account Surpluses & Deficits","REV","Revenue","R9551","CLM Maintenance","02-PREMISES","Premises","02A","Repairs, alteration and maintenance of buildings","3001","Major Works Programme","3692780","202301",20/04/2022 00:00:00,890,"61961","Property Maintenance and Repairs","REDACTED DATA","Integrated Water Services Ltd","5283349","http://opencorporates.com/companies/gb/5283349","918 455 404"
"London Borough of Redbridge","http://opendatacommunities.org/doc/london-borough-council/redbridge","1BOTHEROPI&E","Other Operating Income & Expenditure","1CTRADSURDEF","Trading Account Surpluses & Deficits","REV","Revenue","R9551","CLM Maintenance","02-PREMISES","Premises","02A","Repairs, alteration and maintenance of buildings","3016","General Premises Costs","3692860","202301",03/03/2022 00:00:00,200,"36555","Fire Training","REDACTED DATA","MY FIRE SAFETY LTD","8031387","http://opencorporates.com/companies/gb/8031387","136128821"
"London Borough of Redbridge","http://opendatacommunities.org/doc/london-borough-council/redbridge","1BOTHEROPI&E","Other Operating Income & Expenditure","1CTRADSURDEF","Trading Account Surpluses & Deficits","REV","Revenue","R9551","CLM Maintenance","02-PREMISES","Premises","02A","Repairs, alteration and maintenance of buildings","3026","Minor Maintenance","3692839","202301",25/04/2022 00:00:00,0,"84085","Water Treatment Equipment and Service","REDACTED DATA","P H WATER TECHNOLOGIES LTD","5042025","http://opencorporates.com/companies/gb/5042025","834219240"
"London Borough of Redbridge","http://opendatacommunities.org/doc/london-borough-council/redbridge","1BOTHEROPI&E","Other Operating Income & Expenditure","1CTRADSURDEF","Trading Account Surpluses & Deficits","REV","Revenue","R9551","CLM Maintenance","02-PREMISES","Premises","02A","Repairs, alteration and maintenance of buildings","3026","Minor Maintenance","3690108","202301",24/03/2022 00:00:00,330,"65451","Roller Shutter Mnfrs","REDACTED DATA","ELLIOTT SECURITIES LONDON LTD T/A EXPRESS SHUTTERS & GOSPORT ENGINEERING","8417405","http://opencorporates.com/companies/gb/8417405","835715613"
"London Borough of Redbridge","http://opendatacommunities.org/doc/london-borough-council/redbridge","1BOTHEROPI&E","Other Operating Income & Expenditure","1CTRADSURDEF","Trading Account Surpluses & Deficits","REV","Revenue","R9551","CLM Maintenance","02-PREMISES","Premises","02A","Repairs, alteration and maintenance of buildings","3026","Minor Maintenance","3692839","202301",25/04/2022 00:00:00,495,"84085","Water Treatment Equipment and Service","REDACTED DATA","P H WATER TECHNOLOGIES LTD","5042025","http://opencorporates.com/companies/gb/5042025","834219240"
"London Borough of Redbridge","http://opendatacommunities.org/doc/london-borough-council/redbridge","1BOTHEROPI&E","Other Operating Income & Expenditure","1CTRADSURDEF","Trading Account Surpluses & Deficits","REV","Revenue","R9551","CLM Maintenance","02-PREMISES","Premises","02A","Repairs, alteration and maintenance of buildings","3026","Minor Maintenance","3692852","202301",19/04/2022 00:00:00,220,"65451","Roller Shutter Mnfrs","REDACTED DATA","ELLIOTT SECURITIES LONDON LTD T/A EXPRESS SHUTTERS & GOSPORT ENGINEERING","8417405","http://opencorporates.com/companies/gb/8417405","835715613"
"London Borough of Redbridge","http://opendatacommunities.org/doc/london-borough-council/redbridge","1BOTHEROPI&E","Other Operating Income & Expenditure","1CTRADSURDEF","Trading Account Surpluses & Deficits","REV","Revenue","R9551","CLM Maintenance","02-PREMISES","Premises","02A","Repairs, alteration and maintenance of buildings","3026","Minor Maintenance","3691389","202301",08/04/2022 00:00:00,240,"47960","Lifts - Servicing and Repairs","REDACTED DATA","GRIFFIN ELEVATORS LTD","3719819","http://opencorporates.com/companies/gb/3719819","731279340"
"London Borough of Redbridge","http://opendatacommunities.org/doc/london-borough-council/redbridge","1BOTHEROPI&E","Other Operating Income & Expenditure","1CTRADSURDEF","Trading Account Surpluses & Deficits","REV","Revenue","R9551","CLM Maintenance","02-PREMISES","Premises","02A","Repairs, alteration and maintenance of buildings","3026","Minor Maintenance","3690072","202301",31/03/2022 00:00:00,96,"30580","Electricians and Electrical Contractors","REDACTED DATA","EVANS & SHEA LTD","9365711","http://opencorporates.com/companies/gb/9365711","212776513"
"London Borough of Redbridge","http://opendatacommunities.org/doc/london-borough-council/redbridge","1BOTHEROPI&E","Other Operating Income & Expenditure","1CTRADSURDEF","Trading Account Surpluses & Deficits","REV","Revenue","R9551","CLM Maintenance","02-PREMISES","Premises","02A","Repairs, alteration and maintenance of buildings","3026","Minor Maintenance","3690049","202301",26/03/2022 00:00:00,108,"30580","Electricians and Electrical Contractors","REDACTED DATA","EVANS & SHEA LTD","9365711","http://opencorporates.com/companies/gb/9365711","212776513"
"London Borough of Redbridge","http://opendatacommunities.org/doc/london-borough-council/redbridge","1BOTHEROPI&E","Other Operating Income & Expenditure","1CTRADSURDEF","Trading Account Surpluses & Deficits","REV","Revenue","R9551","CLM Maintenance","02-PREMISES","Premises","02A","Repairs, alteration and maintenance of buildings","3026","Minor Maintenance","3691374","202301",08/04/2022 00:00:00,0,"30580","Electricians and Electrical Contractors","REDACTED DATA","EVANS & SHEA LTD","9365711","http://opencorporates.com/companies/gb/9365711","212776513"
"London Borough of Redbridge","http://opendatacommunities.org/doc/london-borough-council/redbridge","1BOTHEROPI&E","Other Operating Income & Expenditure","1CTRADSURDEF","Trading Account Surpluses & Deficits","REV","Revenue","R9551","CLM Maintenance","02-PREMISES","Premises","02A","Repairs, alteration and maintenance of buildings","3026","Minor Maintenance","3691374","202301",08/04/2022 00:00:00,145,"30580","Electricians and Electrical Contractors","REDACTED DATA","EVANS & SHEA LTD","9365711","http://opencorporates.com/companies/gb/9365711","212776513"
"London Borough of Redbridge","http://opendatacommunities.org/doc/london-borough-council/redbridge","1BOTHEROPI&E","Other Operating Income & Expenditure","1CTRADSURDEF","Trading Account Surpluses & Deficits","REV","Revenue","R9551","CLM Maintenance","02-PREMISES","Premises","02A","Repairs, alteration and maintenance of buildings","3026","Minor Maintenance","3690049","202301",26/03/2022 00:00:00,0,"30580","Electricians and Electrical Contractors","REDACTED DATA","EVANS & SHEA LTD","9365711","http://opencorporates.com/companies/gb/9365711","212776513"
"London Borough of Redbridge","http://opendatacommunities.org/doc/london-borough-council/redbridge","1BOTHEROPI&E","Other Operating Income & Expenditure","1CTRADSURDEF","Trading Account Surpluses & Deficits","REV","Revenue","R9551","CLM Maintenance","02-PREMISES","Premises","02A","Repairs, alteration and maintenance of buildings","3026","Minor Maintenance","3690050","202301",21/03/2022 00:00:00,75,"30580","Electricians and Electrical Contractors","REDACTED DATA","EVANS & SHEA LTD","9365711","http://opencorporates.com/companies/gb/9365711","212776513"
"London Borough of Redbridge","http://opendatacommunities.org/doc/london-borough-council/redbridge","1BOTHEROPI&E","Other Operating Income & Expenditure","1CTRADSURDEF","Trading Account Surpluses & Deficits","REV","Revenue","R9551","CLM Maintenance","02-PREMISES","Premises","02A","Repairs, alteration and maintenance of buildings","3026","Minor Maintenance","3690091","202301",01/04/2022 00:00:00,120,"30250","Electrical Heating Equipment and Systems","REDACTED DATA","OAKRAY LTD","1458147","http://opencorporates.com/companies/gb/1458147","327787712"
"London Borough of Redbridge","http://opendatacommunities.org/doc/london-borough-council/redbridge","1BOTHEROPI&E","Other Operating Income & Expenditure","1CTRADSURDEF","Trading Account Surpluses & Deficits","REV","Revenue","R9551","CLM Maintenance","02-PREMISES","Premises","02A","Repairs, alteration and maintenance of buildings","3026","Minor Maintenance","3690076","202301",31/03/2022 00:00:00,120,"30250","Electrical Heating Equipment and Systems","REDACTED DATA","OAKRAY LTD","1458147","http://opencorporates.com/companies/gb/1458147","327787712"
"London Borough of Redbridge","http://opendatacommunities.org/doc/london-borough-council/redbridge","1BOTHEROPI&E","Other Operating Income & Expenditure","1CTRADSURDEF","Trading Account Surpluses & Deficits","REV","Revenue","R9551","CLM Maintenance","02-PREMISES","Premises","02A","Repairs, alteration and maintenance of buildings","3026","Minor Maintenance","3691414","202301",19/04/2022 00:00:00,567.18,"30250","Electrical Heating Equipment and Systems","REDACTED DATA","OAKRAY LTD","1458147","http://opencorporates.com/companies/gb/1458147","327787712"
"London Borough of Redbridge","http://opendatacommunities.org/doc/london-borough-council/redbridge","1BOTHEROPI&E","Other Operating Income & Expenditure","1CTRADSURDEF","Trading Account Surpluses & Deficits","REV","Revenue","R9551","CLM Maintenance","02-PREMISES","Premises","02A","Repairs, alteration and maintenance of buildings","3026","Minor Maintenance","3691423","202301",19/04/2022 00:00:00,120,"30250","Electrical Heating Equipment and Systems","REDACTED DATA","OAKRAY LTD","1458147","http://opencorporates.com/companies/gb/1458147","327787712"
"London Borough of Redbridge","http://opendatacommunities.org/doc/london-borough-council/redbridge","1BOTHEROPI&E","Other Operating Income & Expenditure","1CTRADSURDEF","Trading Account Surpluses & Deficits","REV","Revenue","R9551","CLM Maintenance","02-PREMISES","Premises","02A","Repairs, alteration and maintenance of buildings","3026","Minor Maintenance","3691417","202301",19/04/2022 00:00:00,460.4,"30250","Electrical Heating Equipment and Systems","REDACTED DATA","OAKRAY LTD","1458147","http://opencorporates.com/companies/gb/1458147","327787712"
"London Borough of Redbridge","http://opendatacommunities.org/doc/london-borough-council/redbridge","1BOTHEROPI&E","Other Operating Income & Expenditure","1CTRADSURDEF","Trading Account Surpluses & Deficits","REV","Revenue","R9551","CLM Maintenance","02-PREMISES","Premises","02A","Repairs, alteration and maintenance of buildings","3026","Minor Maintenance","3690080","202301",01/04/2022 00:00:00,124.2,"30250","Electrical Heating Equipment and Systems","REDACTED DATA","OAKRAY LTD","1458147","http://opencorporates.com/companies/gb/1458147","327787712"
"London Borough of Redbridge","http://opendatacommunities.org/doc/london-borough-council/redbridge","1BOTHEROPI&E","Other Operating Income & Expenditure","1CTRADSURDEF","Trading Account Surpluses & Deficits","REV","Revenue","R9551","CLM Maintenance","02-PREMISES","Premises","02A","Repairs, alteration and maintenance of buildings","3026","Minor Maintenance","3691347","202301",06/04/2022 00:00:00,120,"30250","Electrical Heating Equipment and Systems","REDACTED DATA","OAKRAY LTD","1458147","http://opencorporates.com/companies/gb/1458147","327787712"
"London Borough of Redbridge","http://opendatacommunities.org/doc/london-borough-council/redbridge","1BOTHEROPI&E","Other Operating Income & Expenditure","1CTRADSURDEF","Trading Account Surpluses & Deficits","REV","Revenue","R9551","CLM Maintenance","02-PREMISES","Premises","02A","Repairs, alteration and maintenance of buildings","3026","Minor Maintenance","3690082","202301",01/04/2022 00:00:00,80,"30250","Electrical Heating Equipment and Systems","REDACTED DATA","OAKRAY LTD","1458147","http://opencorporates.com/companies/gb/1458147","327787712"
"London Borough of Redbridge","http://opendatacommunities.org/doc/london-borough-council/redbridge","1BOTHEROPI&E","Other Operating Income & Expenditure","1CTRADSURDEF","Trading Account Surpluses & Deficits","REV","Revenue","R9551","CLM Maintenance","02-PREMISES","Premises","02A","Repairs, alteration and maintenance of buildings","3026","Minor Maintenance","3689999","202301",13/12/2021 00:00:00,25,"26625","Do It Yourself Wholesalers","REDACTED DATA","SCREWFIX DIRECT LIMITED T/A TRADE UK","3006378","http://opencorporates.com/companies/gb/3006378","232555575"
"London Borough of Redbridge","http://opendatacommunities.org/doc/london-borough-council/redbridge","1BOTHEROPI&E","Other Operating Income & Expenditure","1CTRADSURDEF","Trading Account Surpluses & Deficits","REV","Revenue","R9551","CLM Maintenance","02-PREMISES","Premises","02A","Repairs, alteration and maintenance of buildings","3026","Minor Maintenance","3690000","202301",14/12/2021 00:00:00,33.98,"26625","Do It Yourself Wholesalers","REDACTED DATA","SCREWFIX DIRECT LIMITED T/A TRADE UK","3006378","http://opencorporates.com/companies/gb/3006378","232555575"
"London Borough of Redbridge","http://opendatacommunities.org/doc/london-borough-council/redbridge","1BOTHEROPI&E","Other Operating Income & Expenditure","1CTRADSURDEF","Trading Account Surpluses & Deficits","REV","Revenue","R9551","CLM Maintenance","02-PREMISES","Premises","02A","Repairs, alteration and maintenance of buildings","3026","Minor Maintenance","3690001","202301",14/12/2021 00:00:00,9.98,"26625","Do It Yourself Wholesalers","REDACTED DATA","SCREWFIX DIRECT LIMITED T/A TRADE UK","3006378","http://opencorporates.com/companies/gb/3006378","232555575"
"London Borough of Redbridge","http://opendatacommunities.org/doc/london-borough-council/redbridge","1BOTHEROPI&E","Other Operating Income & Expenditure","1CTRADSURDEF","Trading Account Surpluses & Deficits","REV","Revenue","R9551","CLM Maintenance","02-PREMISES","Premises","02A","Repairs, alteration and maintenance of buildings","3026","Minor Maintenance","3689998","202301",07/12/2021 00:00:00,44.06,"26625","Do It Yourself Wholesalers","REDACTED DATA","SCREWFIX DIRECT LIMITED T/A TRADE UK","3006378","http://opencorporates.com/companies/gb/3006378","232555575"
"London Borough of Redbridge","http://opendatacommunities.org/doc/london-borough-council/redbridge","1BOTHEROPI&E","Other Operating Income & Expenditure","1CTRADSURDEF","Trading Account Surpluses & Deficits","REV","Revenue","R9551","CLM Maintenance","02-PREMISES","Premises","02A","Repairs, alteration and maintenance of buildings","3026","Minor Maintenance","3691346","202301",31/07/2021 00:00:00,345.45,"32489","Environmental Engineers","REDACTED DATA","PHOENIX PRODUCT DEVELOPMENT LTD T/AS PROPELAIR","3681995","http://opencorporates.com/companies/gb/3681995","726586992"
"London Borough of Redbridge","http://opendatacommunities.org/doc/london-borough-council/redbridge","1BOTHEROPI&E","Other Operating Income & Expenditure","1CTRADSURDEF","Trading Account Surpluses & Deficits","REV","Revenue","R9551","CLM Maintenance","02-PREMISES","Premises","02A","Repairs, alteration and maintenance of buildings","3026","Minor Maintenance","3690050","202301",21/03/2022 00:00:00,0,"30580","Electricians and Electrical Contractors","REDACTED DATA","EVANS & SHEA LTD","9365711","http://opencorporates.com/companies/gb/9365711","212776513"
"London Borough of Redbridge","http://opendatacommunities.org/doc/london-borough-council/redbridge","1BOTHEROPI&E","Other Operating Income & Expenditure","1CTRADSURDEF","Trading Account Surpluses & Deficits","REV","Revenue","R9551","CLM Maintenance","02-PREMISES","Premises","02A","Repairs, alteration and maintenance of buildings","3026","Minor Maintenance","3690072","202301",31/03/2022 00:00:00,0,"30580","Electricians and Electrical Contractors","REDACTED DATA","EVANS & SHEA LTD","9365711","http://opencorporates.com/companies/gb/9365711","212776513"
"London Borough of Redbridge","http://opendatacommunities.org/doc/london-borough-council/redbridge","1BOTHEROPI&E","Other Operating Income & Expenditure","1CTRADSURDEF","Trading Account Surpluses & Deficits","REV","Revenue","R9551","CLM Maintenance","02-PREMISES","Premises","02A","Repairs, alteration and maintenance of buildings","3026","Minor Maintenance","3691365","202301",31/03/2022 00:00:00,114.5,"35290","Fire Alarm Systems","REDACTED DATA","R & M CLARKSON LTD","1176505","http://opencorporates.com/companies/gb/1176505","2594005516"
"London Borough of Redbridge","http://opendatacommunities.org/doc/london-borough-council/redbridge","1BOTHEROPI&E","Other Operating Income & Expenditure","1CTRADSURDEF","Trading Account Surpluses & Deficits","REV","Revenue","R9551","CLM Maintenance","02-PREMISES","Premises","02A","Repairs, alteration and maintenance of buildings","3026","Minor Maintenance","3692813","202301",19/04/2022 00:00:00,102,"35290","Fire Alarm Systems","REDACTED DATA","R & M CLARKSON LTD","1176505","http://opencorporates.com/companies/gb/1176505","2594005516"
"London Borough of Redbridge","http://opendatacommunities.org/doc/london-borough-council/redbridge","1BOTHEROPI&E","Other Operating Income & Expenditure","1CTRADSURDEF","Trading Account Surpluses & Deficits","REV","Revenue","R9551","CLM Maintenance","02-PREMISES","Premises","02A","Repairs, alteration and maintenance of buildings","3026","Minor Maintenance","3690104","202301",30/03/2022 00:00:00,50,"35290","Fire Alarm Systems","REDACTED DATA","R & M CLARKSON LTD","1176505","http://opencorporates.com/companies/gb/1176505","2594005516"
"London Borough of Redbridge","http://opendatacommunities.org/doc/london-borough-council/redbridge","1BOTHEROPI&E","Other Operating Income & Expenditure","1CTRADSURDEF","Trading Account Surpluses & Deficits","REV","Revenue","R9551","CLM Maintenance","02-PREMISES","Premises","02A","Repairs, alteration and maintenance of buildings","3026","Minor Maintenance","3692817","202301",19/04/2022 00:00:00,244.32,"35290","Fire Alarm Systems","REDACTED DATA","R & M CLARKSON LTD","1176505","http://opencorporates.com/companies/gb/1176505","2594005516"
"London Borough of Redbridge","http://opendatacommunities.org/doc/london-borough-council/redbridge","1BOTHEROPI&E","Other Operating Income & Expenditure","1CTRADSURDEF","Trading Account Surpluses & Deficits","REV","Revenue","R9551","CLM Maintenance","02-PREMISES","Premises","02A","Repairs, alteration and maintenance of buildings","3026","Minor Maintenance","3692815","202301",19/04/2022 00:00:00,185,"35290","Fire Alarm Systems","REDACTED DATA","R & M CLARKSON LTD","1176505","http://opencorporates.com/companies/gb/1176505","2594005516"
"London Borough of Redbridge","http://opendatacommunities.org/doc/london-borough-council/redbridge","1BOTHEROPI&E","Other Operating Income & Expenditure","1CTRADSURDEF","Trading Account Surpluses & Deficits","REV","Revenue","R9551","CLM Maintenance","02-PREMISES","Premises","02A","Repairs, alteration and maintenance of buildings","3026","Minor Maintenance","3690098","202301",30/03/2022 00:00:00,307.88,"35290","Fire Alarm Systems","REDACTED DATA","R & M CLARKSON LTD","1176505","http://opencorporates.com/companies/gb/1176505","2594005516"
"London Borough of Redbridge","http://opendatacommunities.org/doc/london-borough-council/redbridge","1BOTHEROPI&E","Other Operating Income & Expenditure","1CTRADSURDEF","Trading Account Surpluses & Deficits","REV","Revenue","R9551","CLM Maintenance","02-PREMISES","Premises","02A","Repairs, alteration and maintenance of buildings","3026","Minor Maintenance","3691409","202301",14/04/2022 00:00:00,396.9,"35290","Fire Alarm Systems","REDACTED DATA","R & M CLARKSON LTD","1176505","http://opencorporates.com/companies/gb/1176505","2594005516"
"London Borough of Redbridge","http://opendatacommunities.org/doc/london-borough-council/redbridge","1BOTHEROPI&E","Other Operating Income & Expenditure","1CTRADSURDEF","Trading Account Surpluses & Deficits","REV","Revenue","R9551","CLM Maintenance","02-PREMISES","Premises","02A","Repairs, alteration and maintenance of buildings","3026","Minor Maintenance","3690105","202301",31/03/2022 00:00:00,62.5,"35290","Fire Alarm Systems","REDACTED DATA","R & M CLARKSON LTD","1176505","http://opencorporates.com/companies/gb/1176505","2594005516"
"London Borough of Redbridge","http://opendatacommunities.org/doc/london-borough-council/redbridge","1BOTHEROPI&E","Other Operating Income & Expenditure","1CTRADSURDEF","Trading Account Surpluses & Deficits","REV","Revenue","R9551","CLM Maintenance","02-PREMISES","Premises","02A","Repairs, alteration and maintenance of buildings","3026","Minor Maintenance","3691354","202301",31/03/2022 00:00:00,142.5,"35290","Fire Alarm Systems","REDACTED DATA","R & M CLARKSON LTD","1176505","http://opencorporates.com/companies/gb/1176505","2594005516"
"London Borough of Redbridge","http://opendatacommunities.org/doc/london-borough-council/redbridge","1BOTHEROPI&E","Other Operating Income & Expenditure","1CTRADSURDEF","Trading Account Surpluses & Deficits","REV","Revenue","R9551","CLM Maintenance","02-PREMISES","Premises","02A","Repairs, alteration and maintenance of buildings","3026","Minor Maintenance","3691364","202301",31/03/2022 00:00:00,169.4,"35290","Fire Alarm Systems","REDACTED DATA","R & M CLARKSON LTD","1176505","http://opencorporates.com/companies/gb/1176505","2594005516"
"London Borough of Redbridge","http://opendatacommunities.org/doc/london-borough-council/redbridge","1BOTHEROPI&E","Other Operating Income & Expenditure","1CTRADSURDEF","Trading Account Surpluses & Deficits","REV","Revenue","R9551","CLM Maintenance","02-PREMISES","Premises","02A","Repairs, alteration and maintenance of buildings","3026","Minor Maintenance","3690101","202301",30/03/2022 00:00:00,92,"11040","Builders","REDACTED DATA","M & G CONSTRUCTION LTD.","1918880","http://opencorporates.com/companies/gb/1918880","406392853"
"London Borough of Redbridge","http://opendatacommunities.org/doc/london-borough-council/redbridge","1BOTHEROPI&E","Other Operating Income & Expenditure","1CTRADSURDEF","Trading Account Surpluses & Deficits","REV","Revenue","R9551","CLM Maintenance","02-PREMISES","Premises","02A","Repairs, alteration and maintenance of buildings","3026","Minor Maintenance","3692788","202301",19/04/2022 00:00:00,386,"11040","Builders","REDACTED DATA","M & G CONSTRUCTION LTD.","1918880","http://opencorporates.com/companies/gb/1918880","406392853"
"London Borough of Redbridge","http://opendatacommunities.org/doc/london-borough-council/redbridge","1BOTHEROPI&E","Other Operating Income & Expenditure","1CTRADSURDEF","Trading Account Surpluses & Deficits","REV","Revenue","R9551","CLM Maintenance","02-PREMISES","Premises","02A","Repairs, alteration and maintenance of buildings","3026","Minor Maintenance","3692789","202301",19/04/2022 00:00:00,152,"11040","Builders","REDACTED DATA","M & G CONSTRUCTION LTD.","1918880","http://opencorporates.com/companies/gb/1918880","406392853"
"London Borough of Redbridge","http://opendatacommunities.org/doc/london-borough-council/redbridge","1BOTHEROPI&E","Other Operating Income & Expenditure","1CTRADSURDEF","Trading Account Surpluses & Deficits","REV","Revenue","R9551","CLM Maintenance","02-PREMISES","Premises","02A","Repairs, alteration and maintenance of buildings","3026","Minor Maintenance","3692792","202301",19/04/2022 00:00:00,412,"11040","Builders","REDACTED DATA","M & G CONSTRUCTION LTD.","1918880","http://opencorporates.com/companies/gb/1918880","406392853"
"London Borough of Redbridge","http://opendatacommunities.org/doc/london-borough-council/redbridge","6BADULTSOCIA","Adult Social Care","6CLONGT65","Long-Term Support 65+ Years","REV","Revenue","R4440","Learning Disabilities - Seven Kings","05-THIRD","Third Party Payments","05H","Private contractors","6904","Day Centres","91306421","202301",30/03/2022 00:00:00,130.5,"17020","Charities and Voluntary Organisations","REDACTED DATA","ELHAP","",,""
"London Borough of Redbridge","http://opendatacommunities.org/doc/london-borough-council/redbridge","6BADULTSOCIA","Adult Social Care","6CLONGT65","Long-Term Support 65+ Years","REV","Revenue","R4440","Learning Disabilities - Seven Kings","05-THIRD","Third Party Payments","05H","Private contractors","6904","Day Centres","91306421","202301",30/03/2022 00:00:00,130.5,"17020","Charities and Voluntary Organisations","REDACTED DATA","ELHAP","",,""
"London Borough of Redbridge","http://opendatacommunities.org/doc/london-borough-council/redbridge","6BADULTSOCIA","Adult Social Care","6CLONGT65","Long-Term Support 65+ Years","REV","Revenue","R4440","Learning Disabilities - Seven Kings","05-THIRD","Third Party Payments","05H","Private contractors","6904","Day Centres","91306486","202301",04/04/2022 00:00:00,0,"24200","Day Centres","REDACTED DATA","INCLUSIVE COMMUNITIES LTD","6642491","http://opencorporates.com/companies/gb/6642491",""
"London Borough of Redbridge","http://opendatacommunities.org/doc/london-borough-council/redbridge","6BADULTSOCIA","Adult Social Care","6CLONGT65","Long-Term Support 65+ Years","REV","Revenue","R4440","Learning Disabilities - Seven Kings","05-THIRD","Third Party Payments","05H","Private contractors","6904","Day Centres","91310746","202301",25/04/2022 00:00:00,136.5,"24200","Day Centres","REDACTED DATA","INCLUSIVE COMMUNITIES LTD","6642491","http://opencorporates.com/companies/gb/6642491",""
"London Borough of Redbridge","http://opendatacommunities.org/doc/london-borough-council/redbridge","6BADULTSOCIA","Adult Social Care","6CLONGT65","Long-Term Support 65+ Years","REV","Revenue","R4440","Learning Disabilities - Seven Kings","05-THIRD","Third Party Payments","05H","Private contractors","6904","Day Centres","91306431","202301",30/03/2022 00:00:00,165,"17020","Charities and Voluntary Organisations","REDACTED DATA","ELHAP","",,""
"London Borough of Redbridge","http://opendatacommunities.org/doc/london-borough-council/redbridge","6BADULTSOCIA","Adult Social Care","6CLONGT65","Long-Term Support 65+ Years","REV","Revenue","R4440","Learning Disabilities - Seven Kings","05-THIRD","Third Party Payments","05H","Private contractors","6904","Day Centres","91306431","202301",30/03/2022 00:00:00,165,"17020","Charities and Voluntary Organisations","REDACTED DATA","ELHAP","",,""
"London Borough of Redbridge","http://opendatacommunities.org/doc/london-borough-council/redbridge","6BADULTSOCIA","Adult Social Care","6CLONGT65","Long-Term Support 65+ Years","REV","Revenue","R4440","Learning Disabilities - Seven Kings","05-THIRD","Third Party Payments","05H","Private contractors","6904","Day Centres","91306432","202301",30/03/2022 00:00:00,130.5,"17020","Charities and Voluntary Organisations","REDACTED DATA","ELHAP","",,""
"London Borough of Redbridge","http://opendatacommunities.org/doc/london-borough-council/redbridge","6BADULTSOCIA","Adult Social Care","6CLONGT65","Long-Term Support 65+ Years","REV","Revenue","R4440","Learning Disabilities - Seven Kings","05-THIRD","Third Party Payments","05H","Private contractors","6904","Day Centres","91306432","202301",30/03/2022 00:00:00,130.5,"17020","Charities and Voluntary Organisations","REDACTED DATA","ELHAP","",,""
"London Borough of Redbridge","http://opendatacommunities.org/doc/london-borough-council/redbridge","6BADULTSOCIA","Adult Social Care","6CLONGT65","Long-Term Support 65+ Years","REV","Revenue","R4440","Learning Disabilities - Seven Kings","05-THIRD","Third Party Payments","05H","Private contractors","6904","Day Centres","91306433","202301",30/03/2022 00:00:00,165,"17020","Charities and Voluntary Organisations","REDACTED DATA","ELHAP","",,""
"London Borough of Redbridge","http://opendatacommunities.org/doc/london-borough-council/redbridge","6BADULTSOCIA","Adult Social Care","6CLONGT65","Long-Term Support 65+ Years","REV","Revenue","R4440","Learning Disabilities - Seven Kings","05-THIRD","Third Party Payments","05H","Private contractors","6904","Day Centres","91310716","202301",19/04/2022 00:00:00,0,"24200","Day Centres","REDACTED DATA","INCLUSIVE COMMUNITIES LTD","6642491","http://opencorporates.com/companies/gb/6642491",""
"London Borough of Redbridge","http://opendatacommunities.org/doc/london-borough-council/redbridge","6BADULTSOCIA","Adult Social Care","6CLONGT65","Long-Term Support 65+ Years","REV","Revenue","R4440","Learning Disabilities - Seven Kings","05-THIRD","Third Party Payments","05H","Private contractors","6904","Day Centres","91306467","202301",28/03/2022 00:00:00,0,"24200","Day Centres","REDACTED DATA","INCLUSIVE COMMUNITIES LTD","6642491","http://opencorporates.com/companies/gb/6642491",""
"London Borough of Redbridge","http://opendatacommunities.org/doc/london-borough-council/redbridge","6BADULTSOCIA","Adult Social Care","6CLONGT65","Long-Term Support 65+ Years","REV","Revenue","R4440","Learning Disabilities - Seven Kings","05-THIRD","Third Party Payments","05H","Private contractors","6904","Day Centres","91306467","202301",28/03/2022 00:00:00,0,"24200","Day Centres","REDACTED DATA","INCLUSIVE COMMUNITIES LTD","6642491","http://opencorporates.com/companies/gb/6642491",""
"London Borough of Redbridge","http://opendatacommunities.org/doc/london-borough-council/redbridge","1BOTHEROPI&E","Other Operating Income & Expenditure","1CTRADSURDEF","Trading Account Surpluses & Deficits","REV","Revenue","R9551","CLM Maintenance","02-PREMISES","Premises","02A","Repairs, alteration and maintenance of buildings","3026","Minor Maintenance","3690096","202301",30/03/2022 00:00:00,280,"11040","Builders","REDACTED DATA","M & G CONSTRUCTION LTD.","1918880","http://opencorporates.com/companies/gb/1918880","406392853"
"London Borough of Redbridge","http://opendatacommunities.org/doc/london-borough-council/redbridge","1BOTHEROPI&E","Other Operating Income & Expenditure","1CTRADSURDEF","Trading Account Surpluses & Deficits","REV","Revenue","R9551","CLM Maintenance","02-PREMISES","Premises","02A","Repairs, alteration and maintenance of buildings","3026","Minor Maintenance","3690020","202301",22/03/2022 00:00:00,362,"11040","Builders","REDACTED DATA","M & G CONSTRUCTION LTD.","1918880","http://opencorporates.com/companies/gb/1918880","406392853"
"London Borough of Redbridge","http://opendatacommunities.org/doc/london-borough-council/redbridge","1BOTHEROPI&E","Other Operating Income & Expenditure","1CTRADSURDEF","Trading Account Surpluses & Deficits","REV","Revenue","R9551","CLM Maintenance","02-PREMISES","Premises","02A","Repairs, alteration and maintenance of buildings","3026","Minor Maintenance","3690100","202301",30/03/2022 00:00:00,381.59,"11040","Builders","REDACTED DATA","M & G CONSTRUCTION LTD.","1918880","http://opencorporates.com/companies/gb/1918880","406392853"
"London Borough of Redbridge","http://opendatacommunities.org/doc/london-borough-council/redbridge","1BOTHEROPI&E","Other Operating Income & Expenditure","1CTRADSURDEF","Trading Account Surpluses & Deficits","REV","Revenue","R9551","CLM Maintenance","02-PREMISES","Premises","02A","Repairs, alteration and maintenance of buildings","3026","Minor Maintenance","3692805","202301",19/04/2022 00:00:00,93,"11040","Builders","REDACTED DATA","M & G CONSTRUCTION LTD.","1918880","http://opencorporates.com/companies/gb/1918880","406392853"
"London Borough of Redbridge","http://opendatacommunities.org/doc/london-borough-council/redbridge","1BOTHEROPI&E","Other Operating Income & Expenditure","1CTRADSURDEF","Trading Account Surpluses & Deficits","REV","Revenue","R9551","CLM Maintenance","02-PREMISES","Premises","02A","Repairs, alteration and maintenance of buildings","3026","Minor Maintenance","3690877","202301",30/03/2022 00:00:00,120,"11040","Builders","REDACTED DATA","M & G CONSTRUCTION LTD.","1918880","http://opencorporates.com/companies/gb/1918880","406392853"
"London Borough of Redbridge","http://opendatacommunities.org/doc/london-borough-council/redbridge","1BOTHEROPI&E","Other Operating Income & Expenditure","1CTRADSURDEF","Trading Account Surpluses & Deficits","REV","Revenue","R9551","CLM Maintenance","02-PREMISES","Premises","02A","Repairs, alteration and maintenance of buildings","3026","Minor Maintenance","3690878","202301",30/03/2022 00:00:00,128,"11040","Builders","REDACTED DATA","M & G CONSTRUCTION LTD.","1918880","http://opencorporates.com/companies/gb/1918880","406392853"
"London Borough of Redbridge","http://opendatacommunities.org/doc/london-borough-council/redbridge","1BOTHEROPI&E","Other Operating Income & Expenditure","1CTRADSURDEF","Trading Account Surpluses & Deficits","REV","Revenue","R9551","CLM Maintenance","02-PREMISES","Premises","02A","Repairs, alteration and maintenance of buildings","3026","Minor Maintenance","3690881","202301",30/03/2022 00:00:00,120,"11040","Builders","REDACTED DATA","M & G CONSTRUCTION LTD.","1918880","http://opencorporates.com/companies/gb/1918880","406392853"
"London Borough of Redbridge","http://opendatacommunities.org/doc/london-borough-council/redbridge","1BOTHEROPI&E","Other Operating Income & Expenditure","1CTRADSURDEF","Trading Account Surpluses & Deficits","REV","Revenue","R9551","CLM Maintenance","02-PREMISES","Premises","02A","Repairs, alteration and maintenance of buildings","3026","Minor Maintenance","3690882","202301",30/03/2022 00:00:00,92,"11040","Builders","REDACTED DATA","M & G CONSTRUCTION LTD.","1918880","http://opencorporates.com/companies/gb/1918880","406392853"
"London Borough of Redbridge","http://opendatacommunities.org/doc/london-borough-council/redbridge","1BOTHEROPI&E","Other Operating Income & Expenditure","1CTRADSURDEF","Trading Account Surpluses & Deficits","REV","Revenue","R9551","CLM Maintenance","02-PREMISES","Premises","02A","Repairs, alteration and maintenance of buildings","3026","Minor Maintenance","3690883","202301",30/03/2022 00:00:00,120,"11040","Builders","REDACTED DATA","M & G CONSTRUCTION LTD.","1918880","http://opencorporates.com/companies/gb/1918880","406392853"
"London Borough of Redbridge","http://opendatacommunities.org/doc/london-borough-council/redbridge","1BOTHEROPI&E","Other Operating Income & Expenditure","1CTRADSURDEF","Trading Account Surpluses & Deficits","REV","Revenue","R9551","CLM Maintenance","02-PREMISES","Premises","02A","Repairs, alteration and maintenance of buildings","3026","Minor Maintenance","3690015","202301",18/03/2022 00:00:00,243,"11040","Builders","REDACTED DATA","M & G CONSTRUCTION LTD.","1918880","http://opencorporates.com/companies/gb/1918880","406392853"
"London Borough of Redbridge","http://opendatacommunities.org/doc/london-borough-council/redbridge","1BOTHEROPI&E","Other Operating Income & Expenditure","1CTRADSURDEF","Trading Account Surpluses & Deficits","REV","Revenue","R9551","CLM Maintenance","02-PREMISES","Premises","02A","Repairs, alteration and maintenance of buildings","3026","Minor Maintenance","3690016","202301",21/03/2022 00:00:00,378,"11040","Builders","REDACTED DATA","M & G CONSTRUCTION LTD.","1918880","http://opencorporates.com/companies/gb/1918880","406392853"
"London Borough of Redbridge","http://opendatacommunities.org/doc/london-borough-council/redbridge","6BADULTSOCIA","Adult Social Care","6CLONGT65","Long-Term Support 65+ Years","REV","Revenue","R4440","Learning Disabilities - Seven Kings","05-THIRD","Third Party Payments","05H","Private contractors","6904","Day Centres","91306433","202301",30/03/2022 00:00:00,165,"17020","Charities and Voluntary Organisations","REDACTED DATA","ELHAP","",,""
"London Borough of Redbridge","http://opendatacommunities.org/doc/london-borough-council/redbridge","6BADULTSOCIA","Adult Social Care","6CLONGT65","Long-Term Support 65+ Years","REV","Revenue","R4440","Learning Disabilities - Seven Kings","05-THIRD","Third Party Payments","05H","Private contractors","6904","Day Centres","91306412","202301",30/03/2022 00:00:00,70.83,"17020","Charities and Voluntary Organisations","REDACTED DATA","ELHAP","",,""
"London Borough of Redbridge","http://opendatacommunities.org/doc/london-borough-council/redbridge","6BADULTSOCIA","Adult Social Care","6CLONGT65","Long-Term Support 65+ Years","REV","Revenue","R4440","Learning Disabilities - Seven Kings","05-THIRD","Third Party Payments","05H","Private contractors","6904","Day Centres","91306412","202301",30/03/2022 00:00:00,70.83,"17020","Charities and Voluntary Organisations","REDACTED DATA","ELHAP","",,""
"London Borough of Redbridge","http://opendatacommunities.org/doc/london-borough-council/redbridge","6BADULTSOCIA","Adult Social Care","6CLONGT65","Long-Term Support 65+ Years","REV","Revenue","R4440","Learning Disabilities - Seven Kings","05-THIRD","Third Party Payments","05H","Private contractors","6904","Day Centres","91310692","202301",12/04/2022 00:00:00,36.05,"24200","Day Centres","REDACTED DATA","EASTWAY CARE LTD","",,""
"London Borough of Redbridge","http://opendatacommunities.org/doc/london-borough-council/redbridge","6BADULTSOCIA","Adult Social Care","6CLONGT65","Long-Term Support 65+ Years","REV","Revenue","R4440","Learning Disabilities - Seven Kings","05-THIRD","Third Party Payments","05H","Private contractors","6904","Day Centres","91306490","202301",04/04/2022 00:00:00,91,"24200","Day Centres","REDACTED DATA","INCLUSIVE COMMUNITIES LTD","6642491","http://opencorporates.com/companies/gb/6642491",""
"London Borough of Redbridge","http://opendatacommunities.org/doc/london-borough-council/redbridge","6BADULTSOCIA","Adult Social Care","6CLONGT65","Long-Term Support 65+ Years","REV","Revenue","R4440","Learning Disabilities - Seven Kings","05-THIRD","Third Party Payments","05H","Private contractors","6904","Day Centres","91306452","202301",30/03/2022 00:00:00,165,"17020","Charities and Voluntary Organisations","REDACTED DATA","ELHAP","",,""
"London Borough of Redbridge","http://opendatacommunities.org/doc/london-borough-council/redbridge","6BADULTSOCIA","Adult Social Care","6CLONGT65","Long-Term Support 65+ Years","REV","Revenue","R4440","Learning Disabilities - Seven Kings","05-THIRD","Third Party Payments","05H","Private contractors","6904","Day Centres","91306452","202301",30/03/2022 00:00:00,165,"17020","Charities and Voluntary Organisations","REDACTED DATA","ELHAP","",,""
"London Borough of Redbridge","http://opendatacommunities.org/doc/london-borough-council/redbridge","6BADULTSOCIA","Adult Social Care","6CLONGT65","Long-Term Support 65+ Years","REV","Revenue","R4440","Learning Disabilities - Seven Kings","05-THIRD","Third Party Payments","05H","Private contractors","6904","Day Centres","91310678","202301",12/04/2022 00:00:00,224.91,"24200","Day Centres","REDACTED DATA","EASTWAY CARE LTD","",,""
"London Borough of Redbridge","http://opendatacommunities.org/doc/london-borough-council/redbridge","6BADULTSOCIA","Adult Social Care","6CLONGT65","Long-Term Support 65+ Years","REV","Revenue","R4440","Learning Disabilities - Seven Kings","05-THIRD","Third Party Payments","05H","Private contractors","6904","Day Centres","91310678","202301",12/04/2022 00:00:00,224.4,"24200","Day Centres","REDACTED DATA","EASTWAY CARE LTD","",,""
"London Borough of Redbridge","http://opendatacommunities.org/doc/london-borough-council/redbridge","6BADULTSOCIA","Adult Social Care","6CLONGT65","Long-Term Support 65+ Years","REV","Revenue","R4440","Learning Disabilities - Seven Kings","05-THIRD","Third Party Payments","05H","Private contractors","6904","Day Centres","91310698","202301",22/04/2022 00:00:00,224.91,"24200","Day Centres","REDACTED DATA","EASTWAY CARE LTD","",,""
"London Borough of Redbridge","http://opendatacommunities.org/doc/london-borough-council/redbridge","6BADULTSOCIA","Adult Social Care","6CLONGT65","Long-Term Support 65+ Years","REV","Revenue","R4440","Learning Disabilities - Seven Kings","05-THIRD","Third Party Payments","05H","Private contractors","6904","Day Centres","91310698","202301",22/04/2022 00:00:00,224.4,"24200","Day Centres","REDACTED DATA","EASTWAY CARE LTD","",,""
"London Borough of Redbridge","http://opendatacommunities.org/doc/london-borough-council/redbridge","6BADULTSOCIA","Adult Social Care","6CLONGT65","Long-Term Support 65+ Years","REV","Revenue","R4440","Learning Disabilities - Seven Kings","05-THIRD","Third Party Payments","05H","Private contractors","6904","Day Centres","91310719","202301",19/04/2022 00:00:00,91,"24200","Day Centres","REDACTED DATA","INCLUSIVE COMMUNITIES LTD","6642491","http://opencorporates.com/companies/gb/6642491",""
"London Borough of Redbridge","http://opendatacommunities.org/doc/london-borough-council/redbridge","6BADULTSOCIA","Adult Social Care","6CLONGT65","Long-Term Support 65+ Years","REV","Revenue","R4440","Learning Disabilities - Seven Kings","05-THIRD","Third Party Payments","05H","Private contractors","6904","Day Centres","91310719","202301",19/04/2022 00:00:00,91,"24200","Day Centres","REDACTED DATA","INCLUSIVE COMMUNITIES LTD","6642491","http://opencorporates.com/companies/gb/6642491",""
"London Borough of Redbridge","http://opendatacommunities.org/doc/london-borough-council/redbridge","6BADULTSOCIA","Adult Social Care","6CLONGT65","Long-Term Support 65+ Years","REV","Revenue","R4440","Learning Disabilities - Seven Kings","05-THIRD","Third Party Payments","05H","Private contractors","6904","Day Centres","91310737","202301",25/04/2022 00:00:00,0,"24200","Day Centres","REDACTED DATA","INCLUSIVE COMMUNITIES LTD","6642491","http://opencorporates.com/companies/gb/6642491",""
"London Borough of Redbridge","http://opendatacommunities.org/doc/london-borough-council/redbridge","6BADULTSOCIA","Adult Social Care","6CLONGT65","Long-Term Support 65+ Years","REV","Revenue","R4440","Learning Disabilities - Seven Kings","05-THIRD","Third Party Payments","05H","Private contractors","6904","Day Centres","91310738","202301",25/04/2022 00:00:00,0,"24200","Day Centres","REDACTED DATA","INCLUSIVE COMMUNITIES LTD","6642491","http://opencorporates.com/companies/gb/6642491",""
"London Borough of Redbridge","http://opendatacommunities.org/doc/london-borough-council/redbridge","6BADULTSOCIA","Adult Social Care","6CLONGT65","Long-Term Support 65+ Years","REV","Revenue","R4440","Learning Disabilities - Seven Kings","05-THIRD","Third Party Payments","05H","Private contractors","6904","Day Centres","91310738","202301",25/04/2022 00:00:00,0,"24200","Day Centres","REDACTED DATA","INCLUSIVE COMMUNITIES LTD","6642491","http://opencorporates.com/companies/gb/6642491",""
"London Borough of Redbridge","http://opendatacommunities.org/doc/london-borough-council/redbridge","6BADULTSOCIA","Adult Social Care","6CLONGT65","Long-Term Support 65+ Years","REV","Revenue","R4440","Learning Disabilities - Seven Kings","05-THIRD","Third Party Payments","05H","Private contractors","6904","Day Centres","91306444","202301",30/03/2022 00:00:00,130.5,"17020","Charities and Voluntary Organisations","REDACTED DATA","ELHAP","",,""
"London Borough of Redbridge","http://opendatacommunities.org/doc/london-borough-council/redbridge","6BADULTSOCIA","Adult Social Care","6CLONGT65","Long-Term Support 65+ Years","REV","Revenue","R4440","Learning Disabilities - Seven Kings","05-THIRD","Third Party Payments","05H","Private contractors","6904","Day Centres","91310681","202301",12/04/2022 00:00:00,70,"24200","Day Centres","REDACTED DATA","EASTWAY CARE LTD","",,""
"London Borough of Redbridge","http://opendatacommunities.org/doc/london-borough-council/redbridge","6BADULTSOCIA","Adult Social Care","6CLONGT65","Long-Term Support 65+ Years","REV","Revenue","R4440","Learning Disabilities - Seven Kings","05-THIRD","Third Party Payments","05H","Private contractors","6904","Day Centres","91310682","202301",12/04/2022 00:00:00,61.56,"24200","Day Centres","REDACTED DATA","EASTWAY CARE LTD","",,""
"London Borough of Redbridge","http://opendatacommunities.org/doc/london-borough-council/redbridge","6BADULTSOCIA","Adult Social Care","6CLONGT65","Long-Term Support 65+ Years","REV","Revenue","R4440","Learning Disabilities - Seven Kings","05-THIRD","Third Party Payments","05H","Private contractors","6904","Day Centres","91310682","202301",12/04/2022 00:00:00,61.55,"24200","Day Centres","REDACTED DATA","EASTWAY CARE LTD","",,""
"London Borough of Redbridge","http://opendatacommunities.org/doc/london-borough-council/redbridge","6BADULTSOCIA","Adult Social Care","6CLONGT65","Long-Term Support 65+ Years","REV","Revenue","R4440","Learning Disabilities - Seven Kings","05-THIRD","Third Party Payments","05H","Private contractors","6904","Day Centres","91310718","202301",19/04/2022 00:00:00,182,"24200","Day Centres","REDACTED DATA","INCLUSIVE COMMUNITIES LTD","6642491","http://opencorporates.com/companies/gb/6642491",""
"London Borough of Redbridge","http://opendatacommunities.org/doc/london-borough-council/redbridge","6BADULTSOCIA","Adult Social Care","6CLONGT65","Long-Term Support 65+ Years","REV","Revenue","R4440","Learning Disabilities - Seven Kings","05-THIRD","Third Party Payments","05H","Private contractors","6904","Day Centres","91310718","202301",19/04/2022 00:00:00,182,"24200","Day Centres","REDACTED DATA","INCLUSIVE COMMUNITIES LTD","6642491","http://opencorporates.com/companies/gb/6642491",""
"London Borough of Redbridge","http://opendatacommunities.org/doc/london-borough-council/redbridge","6BADULTSOCIA","Adult Social Care","6CLONGT65","Long-Term Support 65+ Years","REV","Revenue","R4440","Learning Disabilities - Seven Kings","05-THIRD","Third Party Payments","05H","Private contractors","6904","Day Centres","91310746","202301",25/04/2022 00:00:00,136.5,"24200","Day Centres","REDACTED DATA","INCLUSIVE COMMUNITIES LTD","6642491","http://opencorporates.com/companies/gb/6642491",""
"London Borough of Redbridge","http://opendatacommunities.org/doc/london-borough-council/redbridge","6BADULTSOCIA","Adult Social Care","6CLONGT65","Long-Term Support 65+ Years","REV","Revenue","R4440","Learning Disabilities - Seven Kings","05-THIRD","Third Party Payments","05H","Private contractors","6904","Day Centres","91310702","202301",22/04/2022 00:00:00,36.05,"24200","Day Centres","REDACTED DATA","EASTWAY CARE LTD","",,""
"London Borough of Redbridge","http://opendatacommunities.org/doc/london-borough-council/redbridge","6BADULTSOCIA","Adult Social Care","6CLONGT65","Long-Term Support 65+ Years","REV","Revenue","R4440","Learning Disabilities - Seven Kings","05-THIRD","Third Party Payments","05H","Private contractors","6904","Day Centres","91310645","202301",25/04/2022 00:00:00,216.92,"25820","Disability and Special Needs - Services","REDACTED DATA","BR3AK FREE LTD","6274766","http://opencorporates.com/companies/gb/6274766",""
"London Borough of Redbridge","http://opendatacommunities.org/doc/london-borough-council/redbridge","6BADULTSOCIA","Adult Social Care","6CLONGT65","Long-Term Support 65+ Years","REV","Revenue","R4440","Learning Disabilities - Seven Kings","05-THIRD","Third Party Payments","05H","Private contractors","6904","Day Centres","91310645","202301",25/04/2022 00:00:00,216.92,"25820","Disability and Special Needs - Services","REDACTED DATA","BR3AK FREE LTD","6274766","http://opencorporates.com/companies/gb/6274766",""
"London Borough of Redbridge","http://opendatacommunities.org/doc/london-borough-council/redbridge","6BADULTSOCIA","Adult Social Care","6CLONGT65","Long-Term Support 65+ Years","REV","Revenue","R4440","Learning Disabilities - Seven Kings","05-THIRD","Third Party Payments","05H","Private contractors","6904","Day Centres","91310645","202301",25/04/2022 00:00:00,60,"25820","Disability and Special Needs - Services","REDACTED DATA","BR3AK FREE LTD","6274766","http://opencorporates.com/companies/gb/6274766",""
"London Borough of Redbridge","http://opendatacommunities.org/doc/london-borough-council/redbridge","6BADULTSOCIA","Adult Social Care","6CLONGT65","Long-Term Support 65+ Years","REV","Revenue","R4440","Learning Disabilities - Seven Kings","05-THIRD","Third Party Payments","05H","Private contractors","6904","Day Centres","91310639","202301",25/04/2022 00:00:00,216.92,"25820","Disability and Special Needs - Services","REDACTED DATA","BR3AK FREE LTD","6274766","http://opencorporates.com/companies/gb/6274766",""
"London Borough of Redbridge","http://opendatacommunities.org/doc/london-borough-council/redbridge","6BADULTSOCIA","Adult Social Care","6CLONGT65","Long-Term Support 65+ Years","REV","Revenue","R4440","Learning Disabilities - Seven Kings","05-THIRD","Third Party Payments","05H","Private contractors","6904","Day Centres","91310639","202301",25/04/2022 00:00:00,216.92,"25820","Disability and Special Needs - Services","REDACTED DATA","BR3AK FREE LTD","6274766","http://opencorporates.com/companies/gb/6274766",""
"London Borough of Redbridge","http://opendatacommunities.org/doc/london-borough-council/redbridge","6BADULTSOCIA","Adult Social Care","6CLONGT65","Long-Term Support 65+ Years","REV","Revenue","R4440","Learning Disabilities - Seven Kings","05-THIRD","Third Party Payments","05H","Private contractors","6904","Day Centres","91310663","202301",25/04/2022 00:00:00,162.69,"25820","Disability and Special Needs - Services","REDACTED DATA","BR3AK FREE LTD","6274766","http://opencorporates.com/companies/gb/6274766",""
"London Borough of Redbridge","http://opendatacommunities.org/doc/london-borough-council/redbridge","6BADULTSOCIA","Adult Social Care","6CLONGT65","Long-Term Support 65+ Years","REV","Revenue","R4440","Learning Disabilities - Seven Kings","05-THIRD","Third Party Payments","05H","Private contractors","6904","Day Centres","91310663","202301",25/04/2022 00:00:00,162.69,"25820","Disability and Special Needs - Services","REDACTED DATA","BR3AK FREE LTD","6274766","http://opencorporates.com/companies/gb/6274766",""
"London Borough of Redbridge","http://opendatacommunities.org/doc/london-borough-council/redbridge","6BADULTSOCIA","Adult Social Care","6CLONGT65","Long-Term Support 65+ Years","REV","Revenue","R4440","Learning Disabilities - Seven Kings","05-THIRD","Third Party Payments","05H","Private contractors","6904","Day Centres","91310663","202301",25/04/2022 00:00:00,45,"25820","Disability and Special Needs - Services","REDACTED DATA","BR3AK FREE LTD","6274766","http://opencorporates.com/companies/gb/6274766",""
"London Borough of Redbridge","http://opendatacommunities.org/doc/london-borough-council/redbridge","6BADULTSOCIA","Adult Social Care","6CLONGT65","Long-Term Support 65+ Years","REV","Revenue","R4440","Learning Disabilities - Seven Kings","05-THIRD","Third Party Payments","05H","Private contractors","6904","Day Centres","91310657","202301",25/04/2022 00:00:00,216.92,"25820","Disability and Special Needs - Services","REDACTED DATA","BR3AK FREE LTD","6274766","http://opencorporates.com/companies/gb/6274766",""
"London Borough of Redbridge","http://opendatacommunities.org/doc/london-borough-council/redbridge","6BADULTSOCIA","Adult Social Care","6CLONGT65","Long-Term Support 65+ Years","REV","Revenue","R4440","Learning Disabilities - Seven Kings","05-THIRD","Third Party Payments","05H","Private contractors","6904","Day Centres","91310657","202301",25/04/2022 00:00:00,216.92,"25820","Disability and Special Needs - Services","REDACTED DATA","BR3AK FREE LTD","6274766","http://opencorporates.com/companies/gb/6274766",""
"London Borough of Redbridge","http://opendatacommunities.org/doc/london-borough-council/redbridge","6BADULTSOCIA","Adult Social Care","6CLONGT65","Long-Term Support 65+ Years","REV","Revenue","R4440","Learning Disabilities - Seven Kings","05-THIRD","Third Party Payments","05H","Private contractors","6904","Day Centres","91310657","202301",25/04/2022 00:00:00,60,"25820","Disability and Special Needs - Services","REDACTED DATA","BR3AK FREE LTD","6274766","http://opencorporates.com/companies/gb/6274766",""
"London Borough of Redbridge","http://opendatacommunities.org/doc/london-borough-council/redbridge","6BADULTSOCIA","Adult Social Care","6CLONGT65","Long-Term Support 65+ Years","REV","Revenue","R4440","Learning Disabilities - Seven Kings","05-THIRD","Third Party Payments","05H","Private contractors","6904","Day Centres","91306599","202301",06/04/2022 00:00:00,140,"24200","Day Centres","REDACTED DATA","ROSY CARE LTD","6506929","http://opencorporates.com/companies/gb/6506929",""
"London Borough of Redbridge","http://opendatacommunities.org/doc/london-borough-council/redbridge","6BADULTSOCIA","Adult Social Care","6CLONGT65","Long-Term Support 65+ Years","REV","Revenue","R4440","Learning Disabilities - Seven Kings","05-THIRD","Third Party Payments","05H","Private contractors","6904","Day Centres","91306599","202301",06/04/2022 00:00:00,140,"24200","Day Centres","REDACTED DATA","ROSY CARE LTD","6506929","http://opencorporates.com/companies/gb/6506929",""
"London Borough of Redbridge","http://opendatacommunities.org/doc/london-borough-council/redbridge","6BADULTSOCIA","Adult Social Care","6CLONGT65","Long-Term Support 65+ Years","REV","Revenue","R4440","Learning Disabilities - Seven Kings","05-THIRD","Third Party Payments","05H","Private contractors","6904","Day Centres","91310651","202301",25/04/2022 00:00:00,60,"25820","Disability and Special Needs - Services","REDACTED DATA","BR3AK FREE LTD","6274766","http://opencorporates.com/companies/gb/6274766",""
"London Borough of Redbridge","http://opendatacommunities.org/doc/london-borough-council/redbridge","6BADULTSOCIA","Adult Social Care","6CLONGT65","Long-Term Support 65+ Years","REV","Revenue","R4440","Learning Disabilities - Seven Kings","05-THIRD","Third Party Payments","05H","Private contractors","6904","Day Centres","91306520","202301",06/04/2022 00:00:00,32.5,"17020","Charities and Voluntary Organisations","REDACTED DATA","THE CAMDEN SOCIETY (JACKSON CAFE)","3023588","http://opencorporates.com/companies/gb/3023588","564609129"
"London Borough of Redbridge","http://opendatacommunities.org/doc/london-borough-council/redbridge","6BADULTSOCIA","Adult Social Care","6CLONGT65","Long-Term Support 65+ Years","REV","Revenue","R4440","Learning Disabilities - Seven Kings","05-THIRD","Third Party Payments","05H","Private contractors","6904","Day Centres","91306518","202301",06/04/2022 00:00:00,32.5,"17020","Charities and Voluntary Organisations","REDACTED DATA","THE CAMDEN SOCIETY (JACKSON CAFE)","3023588","http://opencorporates.com/companies/gb/3023588","564609129"
"London Borough of Redbridge","http://opendatacommunities.org/doc/london-borough-council/redbridge","6BADULTSOCIA","Adult Social Care","6CLONGT65","Long-Term Support 65+ Years","REV","Revenue","R4440","Learning Disabilities - Seven Kings","05-THIRD","Third Party Payments","05H","Private contractors","6904","Day Centres","91306518","202301",06/04/2022 00:00:00,32.5,"17020","Charities and Voluntary Organisations","REDACTED DATA","THE CAMDEN SOCIETY (JACKSON CAFE)","3023588","http://opencorporates.com/companies/gb/3023588","564609129"
"London Borough of Redbridge","http://opendatacommunities.org/doc/london-borough-council/redbridge","6BADULTSOCIA","Adult Social Care","6CLONGT65","Long-Term Support 65+ Years","REV","Revenue","R4440","Learning Disabilities - Seven Kings","05-THIRD","Third Party Payments","05H","Private contractors","6904","Day Centres","91306519","202301",06/04/2022 00:00:00,32.5,"17020","Charities and Voluntary Organisations","REDACTED DATA","THE CAMDEN SOCIETY (JACKSON CAFE)","3023588","http://opencorporates.com/companies/gb/3023588","564609129"
"London Borough of Redbridge","http://opendatacommunities.org/doc/london-borough-council/redbridge","6BADULTSOCIA","Adult Social Care","6CLONGT65","Long-Term Support 65+ Years","REV","Revenue","R4440","Learning Disabilities - Seven Kings","05-THIRD","Third Party Payments","05H","Private contractors","6904","Day Centres","91306520","202301",06/04/2022 00:00:00,32.5,"17020","Charities and Voluntary Organisations","REDACTED DATA","THE CAMDEN SOCIETY (JACKSON CAFE)","3023588","http://opencorporates.com/companies/gb/3023588","564609129"
"London Borough of Redbridge","http://opendatacommunities.org/doc/london-borough-council/redbridge","6BADULTSOCIA","Adult Social Care","6CLONGT65","Long-Term Support 65+ Years","REV","Revenue","R4440","Learning Disabilities - Seven Kings","05-THIRD","Third Party Payments","05H","Private contractors","6904","Day Centres","91306519","202301",06/04/2022 00:00:00,32.5,"17020","Charities and Voluntary Organisations","REDACTED DATA","THE CAMDEN SOCIETY (JACKSON CAFE)","3023588","http://opencorporates.com/companies/gb/3023588","564609129"
"London Borough of Redbridge","http://opendatacommunities.org/doc/london-borough-council/redbridge","6BADULTSOCIA","Adult Social Care","6CLONGT65","Long-Term Support 65+ Years","REV","Revenue","R4442","Physical Disabilities - Seven Kings","05-THIRD","Third Party Payments","05A","Independent units within the council","6502","Agency Homecare","91305839","202301",06/04/2022 00:00:00,301,"79980","Training Services","REDACTED DATA","ASK CARE LTD","5656634","http://opencorporates.com/companies/gb/5656634",""
"London Borough of Redbridge","http://opendatacommunities.org/doc/london-borough-council/redbridge","6BADULTSOCIA","Adult Social Care","6CLONGT65","Long-Term Support 65+ Years","REV","Revenue","R4442","Physical Disabilities - Seven Kings","05-THIRD","Third Party Payments","05A","Independent units within the council","6502","Agency Homecare","91310169","202301",19/04/2022 00:00:00,124.7,"79980","Training Services","REDACTED DATA","ASK CARE LTD","5656634","http://opencorporates.com/companies/gb/5656634",""
"London Borough of Redbridge","http://opendatacommunities.org/doc/london-borough-council/redbridge","6BADULTSOCIA","Adult Social Care","6CLONGT65","Long-Term Support 65+ Years","REV","Revenue","R4442","Physical Disabilities - Seven Kings","05-THIRD","Third Party Payments","05A","Independent units within the council","6502","Agency Homecare","91310277","202301",14/04/2022 00:00:00,301,"79980","Training Services","REDACTED DATA","ASK CARE LTD","5656634","http://opencorporates.com/companies/gb/5656634",""
"London Borough of Redbridge","http://opendatacommunities.org/doc/london-borough-council/redbridge","6BADULTSOCIA","Adult Social Care","6CLONGT65","Long-Term Support 65+ Years","REV","Revenue","R4442","Physical Disabilities - Seven Kings","05-THIRD","Third Party Payments","05A","Independent units within the council","6502","Agency Homecare","91305828","202301",01/04/2022 00:00:00,301,"79980","Training Services","REDACTED DATA","ASK CARE LTD","5656634","http://opencorporates.com/companies/gb/5656634",""
"London Borough of Redbridge","http://opendatacommunities.org/doc/london-borough-council/redbridge","6BADULTSOCIA","Adult Social Care","6CLONGT65","Long-Term Support 65+ Years","REV","Revenue","R4442","Physical Disabilities - Seven Kings","05-THIRD","Third Party Payments","05A","Independent units within the council","6502","Agency Homecare","91305712","202301",25/03/2022 00:00:00,64.5,"79980","Training Services","REDACTED DATA","ASK CARE LTD","5656634","http://opencorporates.com/companies/gb/5656634",""
"London Borough of Redbridge","http://opendatacommunities.org/doc/london-borough-council/redbridge","6BADULTSOCIA","Adult Social Care","6CLONGT65","Long-Term Support 65+ Years","REV","Revenue","R4442","Physical Disabilities - Seven Kings","05-THIRD","Third Party Payments","05A","Independent units within the council","6502","Agency Homecare","91309697","202301",25/04/2022 00:00:00,51.6,"43419","Home Care Services","REDACTED DATA","RHYTHMIC CARE UK LTD","8400115","http://opencorporates.com/companies/gb/8400115",""
"London Borough of Redbridge","http://opendatacommunities.org/doc/london-borough-council/redbridge","6BADULTSOCIA","Adult Social Care","6CLONGT65","Long-Term Support 65+ Years","REV","Revenue","R4442","Physical Disabilities - Seven Kings","05-THIRD","Third Party Payments","05A","Independent units within the council","6502","Agency Homecare","91303643","202301",11/04/2022 00:00:00,180.6,"43419","Home Care Services","REDACTED DATA","DIVERSITY HEALTH & SOCIAL CARE LTD","8238468","http://opencorporates.com/companies/gb/8238468","1367514244"
"London Borough of Redbridge","http://opendatacommunities.org/doc/london-borough-council/redbridge","6BADULTSOCIA","Adult Social Care","6CLONGT65","Long-Term Support 65+ Years","REV","Revenue","R4442","Physical Disabilities - Seven Kings","05-THIRD","Third Party Payments","05A","Independent units within the council","6502","Agency Homecare","91304013","202301",11/04/2022 00:00:00,43,"43419","Home Care Services","REDACTED DATA","GUARDIAN HOMECARE UK LTD","6991398","http://opencorporates.com/companies/gb/6991398",""
"London Borough of Redbridge","http://opendatacommunities.org/doc/london-borough-council/redbridge","6BADULTSOCIA","Adult Social Care","6CLONGT65","Long-Term Support 65+ Years","REV","Revenue","R4442","Physical Disabilities - Seven Kings","05-THIRD","Third Party Payments","05A","Independent units within the council","6502","Agency Homecare","91307987","202301",25/04/2022 00:00:00,240.8,"43419","Home Care Services","REDACTED DATA","DIVERSITY HEALTH & SOCIAL CARE LTD","8238468","http://opencorporates.com/companies/gb/8238468","1367514244"
"London Borough of Redbridge","http://opendatacommunities.org/doc/london-borough-council/redbridge","6BADULTSOCIA","Adult Social Care","6CLONGT65","Long-Term Support 65+ Years","REV","Revenue","R4442","Physical Disabilities - Seven Kings","05-THIRD","Third Party Payments","05A","Independent units within the council","6502","Agency Homecare","91309664","202301",25/04/2022 00:00:00,481.6,"43419","Home Care Services","REDACTED DATA","RHYTHMIC CARE UK LTD","8400115","http://opencorporates.com/companies/gb/8400115",""
"London Borough of Redbridge","http://opendatacommunities.org/doc/london-borough-council/redbridge","6BADULTSOCIA","Adult Social Care","6CLONGT65","Long-Term Support 65+ Years","REV","Revenue","R4442","Physical Disabilities - Seven Kings","05-THIRD","Third Party Payments","05A","Independent units within the council","6502","Agency Homecare","91308302","202301",19/04/2022 00:00:00,43,"43419","Home Care Services","REDACTED DATA","GUARDIAN HOMECARE UK LTD","6991398","http://opencorporates.com/companies/gb/6991398",""
"London Borough of Redbridge","http://opendatacommunities.org/doc/london-borough-council/redbridge","6BADULTSOCIA","Adult Social Care","6CLONGT65","Long-Term Support 65+ Years","REV","Revenue","R4442","Physical Disabilities - Seven Kings","05-THIRD","Third Party Payments","05A","Independent units within the council","6502","Agency Homecare","91307999","202301",25/04/2022 00:00:00,210.7,"43419","Home Care Services","REDACTED DATA","DIVERSITY HEALTH & SOCIAL CARE LTD","8238468","http://opencorporates.com/companies/gb/8238468","1367514244"
"London Borough of Redbridge","http://opendatacommunities.org/doc/london-borough-council/redbridge","6BADULTSOCIA","Adult Social Care","6CLONGT65","Long-Term Support 65+ Years","REV","Revenue","R4442","Physical Disabilities - Seven Kings","05-THIRD","Third Party Payments","05A","Independent units within the council","6502","Agency Homecare","91303422","202301",28/03/2022 00:00:00,25.8,"43419","Home Care Services","REDACTED DATA","DIVERSITY HEALTH & SOCIAL CARE LTD","8238468","http://opencorporates.com/companies/gb/8238468","1367514244"
"London Borough of Redbridge","http://opendatacommunities.org/doc/london-borough-council/redbridge","6BADULTSOCIA","Adult Social Care","6CLONGT65","Long-Term Support 65+ Years","REV","Revenue","R4442","Physical Disabilities - Seven Kings","05-THIRD","Third Party Payments","05A","Independent units within the council","6502","Agency Homecare","91303423","202301",28/03/2022 00:00:00,193.5,"43419","Home Care Services","REDACTED DATA","DIVERSITY HEALTH & SOCIAL CARE LTD","8238468","http://opencorporates.com/companies/gb/8238468","1367514244"
"London Borough of Redbridge","http://opendatacommunities.org/doc/london-borough-council/redbridge","6BADULTSOCIA","Adult Social Care","6CLONGT65","Long-Term Support 65+ Years","REV","Revenue","R4442","Physical Disabilities - Seven Kings","05-THIRD","Third Party Payments","05A","Independent units within the council","6502","Agency Homecare","91303446","202301",28/03/2022 00:00:00,283.8,"43419","Home Care Services","REDACTED DATA","DIVERSITY HEALTH & SOCIAL CARE LTD","8238468","http://opencorporates.com/companies/gb/8238468","1367514244"
"London Borough of Redbridge","http://opendatacommunities.org/doc/london-borough-council/redbridge","6BADULTSOCIA","Adult Social Care","6CLONGT65","Long-Term Support 65+ Years","REV","Revenue","R4442","Physical Disabilities - Seven Kings","05-THIRD","Third Party Payments","05A","Independent units within the council","6502","Agency Homecare","91303400","202301",28/03/2022 00:00:00,210.7,"43419","Home Care Services","REDACTED DATA","DIVERSITY HEALTH & SOCIAL CARE LTD","8238468","http://opencorporates.com/companies/gb/8238468","1367514244"
"London Borough of Redbridge","http://opendatacommunities.org/doc/london-borough-council/redbridge","6BADULTSOCIA","Adult Social Care","6CLONGT65","Long-Term Support 65+ Years","REV","Revenue","R4442","Physical Disabilities - Seven Kings","05-THIRD","Third Party Payments","05A","Independent units within the council","6502","Agency Homecare","91303606","202301",11/04/2022 00:00:00,210.7,"43419","Home Care Services","REDACTED DATA","DIVERSITY HEALTH & SOCIAL CARE LTD","8238468","http://opencorporates.com/companies/gb/8238468","1367514244"
"London Borough of Redbridge","http://opendatacommunities.org/doc/london-borough-council/redbridge","6BADULTSOCIA","Adult Social Care","6CLONGT65","Long-Term Support 65+ Years","REV","Revenue","R4442","Physical Disabilities - Seven Kings","05-THIRD","Third Party Payments","05A","Independent units within the council","6502","Agency Homecare","91305078","202301",04/04/2022 00:00:00,51.6,"43419","Home Care Services","REDACTED DATA","RHYTHMIC CARE UK LTD","8400115","http://opencorporates.com/companies/gb/8400115",""
"London Borough of Redbridge","http://opendatacommunities.org/doc/london-borough-council/redbridge","6BADULTSOCIA","Adult Social Care","6CLONGT65","Long-Term Support 65+ Years","REV","Revenue","R4442","Physical Disabilities - Seven Kings","05-THIRD","Third Party Payments","05A","Independent units within the council","6502","Agency Homecare","91303388","202301",28/03/2022 00:00:00,240.8,"43419","Home Care Services","REDACTED DATA","DIVERSITY HEALTH & SOCIAL CARE LTD","8238468","http://opencorporates.com/companies/gb/8238468","1367514244"
"London Borough of Redbridge","http://opendatacommunities.org/doc/london-borough-council/redbridge","6BADULTSOCIA","Adult Social Care","6CLONGT65","Long-Term Support 65+ Years","REV","Revenue","R4442","Physical Disabilities - Seven Kings","05-THIRD","Third Party Payments","05A","Independent units within the council","6502","Agency Homecare","91303650","202301",11/04/2022 00:00:00,309.6,"43419","Home Care Services","REDACTED DATA","DIVERSITY HEALTH & SOCIAL CARE LTD","8238468","http://opencorporates.com/companies/gb/8238468","1367514244"
"London Borough of Redbridge","http://opendatacommunities.org/doc/london-borough-council/redbridge","6BADULTSOCIA","Adult Social Care","6CLONGT65","Long-Term Support 65+ Years","REV","Revenue","R4442","Physical Disabilities - Seven Kings","05-THIRD","Third Party Payments","05A","Independent units within the council","6502","Agency Homecare","91307881","202301",21/04/2022 00:00:00,240.8,"43419","Home Care Services","REDACTED DATA","DIVERSITY HEALTH & SOCIAL CARE LTD","8238468","http://opencorporates.com/companies/gb/8238468","1367514244"
"London Borough of Redbridge","http://opendatacommunities.org/doc/london-borough-council/redbridge","6BADULTSOCIA","Adult Social Care","6CLONGT65","Long-Term Support 65+ Years","REV","Revenue","R4442","Physical Disabilities - Seven Kings","05-THIRD","Third Party Payments","05A","Independent units within the council","6502","Agency Homecare","91303549","202301",04/04/2022 00:00:00,331.1,"43419","Home Care Services","REDACTED DATA","DIVERSITY HEALTH & SOCIAL CARE LTD","8238468","http://opencorporates.com/companies/gb/8238468","1367514244"
"London Borough of Redbridge","http://opendatacommunities.org/doc/london-borough-council/redbridge","6BADULTSOCIA","Adult Social Care","6CLONGT65","Long-Term Support 65+ Years","REV","Revenue","R4442","Physical Disabilities - Seven Kings","05-THIRD","Third Party Payments","05A","Independent units within the council","6502","Agency Homecare","91303525","202301",04/04/2022 00:00:00,43,"43419","Home Care Services","REDACTED DATA","DIVERSITY HEALTH & SOCIAL CARE LTD","8238468","http://opencorporates.com/companies/gb/8238468","1367514244"
"London Borough of Redbridge","http://opendatacommunities.org/doc/london-borough-council/redbridge","6BADULTSOCIA","Adult Social Care","6CLONGT65","Long-Term Support 65+ Years","REV","Revenue","R4442","Physical Disabilities - Seven Kings","05-THIRD","Third Party Payments","05A","Independent units within the council","6502","Agency Homecare","91303526","202301",04/04/2022 00:00:00,94.6,"43419","Home Care Services","REDACTED DATA","DIVERSITY HEALTH & SOCIAL CARE LTD","8238468","http://opencorporates.com/companies/gb/8238468","1367514244"
"London Borough of Redbridge","http://opendatacommunities.org/doc/london-borough-council/redbridge","6BADULTSOCIA","Adult Social Care","6CLONGT65","Long-Term Support 65+ Years","REV","Revenue","R4442","Physical Disabilities - Seven Kings","05-THIRD","Third Party Payments","05A","Independent units within the council","6502","Agency Homecare","91310181","202301",12/04/2022 00:00:00,120.4,"31230","Employment and Recruitment Agencies","REDACTED DATA","HOPE SUPER JOBS LTD","5081894","http://opencorporates.com/companies/gb/5081894","872555205"
"London Borough of Redbridge","http://opendatacommunities.org/doc/london-borough-council/redbridge","6BADULTSOCIA","Adult Social Care","6CLONGT65","Long-Term Support 65+ Years","REV","Revenue","R4442","Physical Disabilities - Seven Kings","05-THIRD","Third Party Payments","05A","Independent units within the council","6502","Agency Homecare","91307917","202301",22/04/2022 00:00:00,335.4,"43419","Home Care Services","REDACTED DATA","DIVERSITY HEALTH & SOCIAL CARE LTD","8238468","http://opencorporates.com/companies/gb/8238468","1367514244"
"London Borough of Redbridge","http://opendatacommunities.org/doc/london-borough-council/redbridge","6BADULTSOCIA","Adult Social Care","6CLONGT65","Long-Term Support 65+ Years","REV","Revenue","R4442","Physical Disabilities - Seven Kings","05-THIRD","Third Party Payments","05A","Independent units within the council","6502","Agency Homecare","91303944","202301",25/03/2022 00:00:00,43,"43419","Home Care Services","REDACTED DATA","GUARDIAN HOMECARE UK LTD","6991398","http://opencorporates.com/companies/gb/6991398",""
"London Borough of Redbridge","http://opendatacommunities.org/doc/london-borough-council/redbridge","6BADULTSOCIA","Adult Social Care","6CLONGT65","Long-Term Support 65+ Years","REV","Revenue","R4442","Physical Disabilities - Seven Kings","05-THIRD","Third Party Payments","05A","Independent units within the council","6502","Agency Homecare","91305764","202301",30/03/2022 00:00:00,180.6,"31230","Employment and Recruitment Agencies","REDACTED DATA","HOPE SUPER JOBS LTD","5081894","http://opencorporates.com/companies/gb/5081894","872555205"
"London Borough of Redbridge","http://opendatacommunities.org/doc/london-borough-council/redbridge","6BADULTSOCIA","Adult Social Care","6CLONGT65","Long-Term Support 65+ Years","REV","Revenue","R4442","Physical Disabilities - Seven Kings","05-THIRD","Third Party Payments","05A","Independent units within the council","6502","Agency Homecare","91308024","202301",25/04/2022 00:00:00,335.4,"43419","Home Care Services","REDACTED DATA","DIVERSITY HEALTH & SOCIAL CARE LTD","8238468","http://opencorporates.com/companies/gb/8238468","1367514244"
"London Borough of Redbridge","http://opendatacommunities.org/doc/london-borough-council/redbridge","6BADULTSOCIA","Adult Social Care","6CLONGT65","Long-Term Support 65+ Years","REV","Revenue","R4442","Physical Disabilities - Seven Kings","05-THIRD","Third Party Payments","05A","Independent units within the council","6502","Agency Homecare","91307862","202301",21/04/2022 00:00:00,60.2,"43419","Home Care Services","REDACTED DATA","DIVERSITY HEALTH & SOCIAL CARE LTD","8238468","http://opencorporates.com/companies/gb/8238468","1367514244"
"London Borough of Redbridge","http://opendatacommunities.org/doc/london-borough-council/redbridge","6BADULTSOCIA","Adult Social Care","6CLONGT65","Long-Term Support 65+ Years","REV","Revenue","R4442","Physical Disabilities - Seven Kings","05-THIRD","Third Party Payments","05A","Independent units within the council","6502","Agency Homecare","91308042","202301",25/04/2022 00:00:00,331.1,"43419","Home Care Services","REDACTED DATA","DIVERSITY HEALTH & SOCIAL CARE LTD","8238468","http://opencorporates.com/companies/gb/8238468","1367514244"
"London Borough of Redbridge","http://opendatacommunities.org/doc/london-borough-council/redbridge","6BADULTSOCIA","Adult Social Care","6CLONGT65","Long-Term Support 65+ Years","REV","Revenue","R4442","Physical Disabilities - Seven Kings","05-THIRD","Third Party Payments","05A","Independent units within the council","6502","Agency Homecare","91303627","202301",11/04/2022 00:00:00,60.2,"43419","Home Care Services","REDACTED DATA","DIVERSITY HEALTH & SOCIAL CARE LTD","8238468","http://opencorporates.com/companies/gb/8238468","1367514244"
"London Borough of Redbridge","http://opendatacommunities.org/doc/london-borough-council/redbridge","6BADULTSOCIA","Adult Social Care","6CLONGT65","Long-Term Support 65+ Years","REV","Revenue","R4442","Physical Disabilities - Seven Kings","05-THIRD","Third Party Payments","05A","Independent units within the council","6502","Agency Homecare","91310188","202301",12/04/2022 00:00:00,180.6,"31230","Employment and Recruitment Agencies","REDACTED DATA","HOPE SUPER JOBS LTD","5081894","http://opencorporates.com/companies/gb/5081894","872555205"
"London Borough of Redbridge","http://opendatacommunities.org/doc/london-borough-council/redbridge","6BADULTSOCIA","Adult Social Care","6CLONGT65","Long-Term Support 65+ Years","REV","Revenue","R4442","Physical Disabilities - Seven Kings","05-THIRD","Third Party Payments","05A","Independent units within the council","6502","Agency Homecare","91303475","202301",04/04/2022 00:00:00,34.4,"43419","Home Care Services","REDACTED DATA","DIVERSITY HEALTH & SOCIAL CARE LTD","8238468","http://opencorporates.com/companies/gb/8238468","1367514244"
"London Borough of Redbridge","http://opendatacommunities.org/doc/london-borough-council/redbridge","6BADULTSOCIA","Adult Social Care","6CLONGT65","Long-Term Support 65+ Years","REV","Revenue","R4442","Physical Disabilities - Seven Kings","05-THIRD","Third Party Payments","05A","Independent units within the council","6502","Agency Homecare","91305768","202301",30/03/2022 00:00:00,68.8,"31230","Employment and Recruitment Agencies","REDACTED DATA","HOPE SUPER JOBS LTD","5081894","http://opencorporates.com/companies/gb/5081894","872555205"
"London Borough of Redbridge","http://opendatacommunities.org/doc/london-borough-council/redbridge","6BADULTSOCIA","Adult Social Care","6CLONGT65","Long-Term Support 65+ Years","REV","Revenue","R4442","Physical Disabilities - Seven Kings","05-THIRD","Third Party Payments","05A","Independent units within the council","6502","Agency Homecare","91303580","202301",11/04/2022 00:00:00,60.2,"43419","Home Care Services","REDACTED DATA","DIVERSITY HEALTH & SOCIAL CARE LTD","8238468","http://opencorporates.com/companies/gb/8238468","1367514244"
"London Borough of Redbridge","http://opendatacommunities.org/doc/london-borough-council/redbridge","6BADULTSOCIA","Adult Social Care","6CLONGT65","Long-Term Support 65+ Years","REV","Revenue","R4442","Physical Disabilities - Seven Kings","05-THIRD","Third Party Payments","05A","Independent units within the council","6502","Agency Homecare","91303427","202301",28/03/2022 00:00:00,335.4,"43419","Home Care Services","REDACTED DATA","DIVERSITY HEALTH & SOCIAL CARE LTD","8238468","http://opencorporates.com/companies/gb/8238468","1367514244"
"London Borough of Redbridge","http://opendatacommunities.org/doc/london-borough-council/redbridge","6BADULTSOCIA","Adult Social Care","6CLONGT65","Long-Term Support 65+ Years","REV","Revenue","R4442","Physical Disabilities - Seven Kings","05-THIRD","Third Party Payments","05A","Independent units within the council","6502","Agency Homecare","91305225","202301",11/04/2022 00:00:00,473,"43419","Home Care Services","REDACTED DATA","RHYTHMIC CARE UK LTD","8400115","http://opencorporates.com/companies/gb/8400115",""
"London Borough of Redbridge","http://opendatacommunities.org/doc/london-borough-council/redbridge","6BADULTSOCIA","Adult Social Care","6CLONGT65","Long-Term Support 65+ Years","REV","Revenue","R4442","Physical Disabilities - Seven Kings","05-THIRD","Third Party Payments","05A","Independent units within the council","6502","Agency Homecare","91303371","202301",28/03/2022 00:00:00,34.4,"43419","Home Care Services","REDACTED DATA","DIVERSITY HEALTH & SOCIAL CARE LTD","8238468","http://opencorporates.com/companies/gb/8238468","1367514244"
"London Borough of Redbridge","http://opendatacommunities.org/doc/london-borough-council/redbridge","6BADULTSOCIA","Adult Social Care","6CLONGT65","Long-Term Support 65+ Years","REV","Revenue","R4442","Physical Disabilities - Seven Kings","05-THIRD","Third Party Payments","05A","Independent units within the council","6502","Agency Homecare","91305771","202301",30/03/2022 00:00:00,180.6,"31230","Employment and Recruitment Agencies","REDACTED DATA","HOPE SUPER JOBS LTD","5081894","http://opencorporates.com/companies/gb/5081894","872555205"
"London Borough of Redbridge","http://opendatacommunities.org/doc/london-borough-council/redbridge","6BADULTSOCIA","Adult Social Care","6CLONGT65","Long-Term Support 65+ Years","REV","Revenue","R4442","Physical Disabilities - Seven Kings","05-THIRD","Third Party Payments","05A","Independent units within the council","6502","Agency Homecare","91308020","202301",25/04/2022 00:00:00,60.2,"43419","Home Care Services","REDACTED DATA","DIVERSITY HEALTH & SOCIAL CARE LTD","8238468","http://opencorporates.com/companies/gb/8238468","1367514244"
"London Borough of Redbridge","http://opendatacommunities.org/doc/london-borough-council/redbridge","6BADULTSOCIA","Adult Social Care","6CLONGT65","Long-Term Support 65+ Years","REV","Revenue","R4442","Physical Disabilities - Seven Kings","05-THIRD","Third Party Payments","05A","Independent units within the council","6502","Agency Homecare","91305174","202301",05/04/2022 00:00:00,51.6,"43419","Home Care Services","REDACTED DATA","RHYTHMIC CARE UK LTD","8400115","http://opencorporates.com/companies/gb/8400115",""
"London Borough of Redbridge","http://opendatacommunities.org/doc/london-borough-council/redbridge","6BADULTSOCIA","Adult Social Care","6CLONGT65","Long-Term Support 65+ Years","REV","Revenue","R4442","Physical Disabilities - Seven Kings","05-THIRD","Third Party Payments","05A","Independent units within the council","6502","Agency Homecare","91303492","202301",04/04/2022 00:00:00,240.8,"43419","Home Care Services","REDACTED DATA","DIVERSITY HEALTH & SOCIAL CARE LTD","8238468","http://opencorporates.com/companies/gb/8238468","1367514244"
"London Borough of Redbridge","http://opendatacommunities.org/doc/london-borough-council/redbridge","6BADULTSOCIA","Adult Social Care","6CLONGT65","Long-Term Support 65+ Years","REV","Revenue","R4442","Physical Disabilities - Seven Kings","05-THIRD","Third Party Payments","05A","Independent units within the council","6502","Agency Homecare","91303628","202301",11/04/2022 00:00:00,193.5,"43419","Home Care Services","REDACTED DATA","DIVERSITY HEALTH & SOCIAL CARE LTD","8238468","http://opencorporates.com/companies/gb/8238468","1367514244"
"London Borough of Redbridge","http://opendatacommunities.org/doc/london-borough-council/redbridge","6BADULTSOCIA","Adult Social Care","6CLONGT65","Long-Term Support 65+ Years","REV","Revenue","R4442","Physical Disabilities - Seven Kings","05-THIRD","Third Party Payments","05A","Independent units within the council","6502","Agency Homecare","91303632","202301",11/04/2022 00:00:00,335.4,"43419","Home Care Services","REDACTED DATA","DIVERSITY HEALTH & SOCIAL CARE LTD","8238468","http://opencorporates.com/companies/gb/8238468","1367514244"
"London Borough of Redbridge","http://opendatacommunities.org/doc/london-borough-council/redbridge","6BADULTSOCIA","Adult Social Care","6CLONGT65","Long-Term Support 65+ Years","REV","Revenue","R4442","Physical Disabilities - Seven Kings","05-THIRD","Third Party Payments","05A","Independent units within the council","6502","Agency Homecare","91305139","202301",05/04/2022 00:00:00,481.6,"43419","Home Care Services","REDACTED DATA","RHYTHMIC CARE UK LTD","8400115","http://opencorporates.com/companies/gb/8400115",""
"London Borough of Redbridge","http://opendatacommunities.org/doc/london-borough-council/redbridge","6BADULTSOCIA","Adult Social Care","6CLONGT65","Long-Term Support 65+ Years","REV","Revenue","R4442","Physical Disabilities - Seven Kings","05-THIRD","Third Party Payments","05A","Independent units within the council","6502","Agency Homecare","91307928","202301",22/04/2022 00:00:00,180.6,"43419","Home Care Services","REDACTED DATA","DIVERSITY HEALTH & SOCIAL CARE LTD","8238468","http://opencorporates.com/companies/gb/8238468","1367514244"
"London Borough of Redbridge","http://opendatacommunities.org/doc/london-borough-council/redbridge","6BADULTSOCIA","Adult Social Care","6CLONGT65","Long-Term Support 65+ Years","REV","Revenue","R4442","Physical Disabilities - Seven Kings","05-THIRD","Third Party Payments","05A","Independent units within the council","6502","Agency Homecare","91307892","202301",21/04/2022 00:00:00,210.7,"43419","Home Care Services","REDACTED DATA","DIVERSITY HEALTH & SOCIAL CARE LTD","8238468","http://opencorporates.com/companies/gb/8238468","1367514244"
"London Borough of Redbridge","http://opendatacommunities.org/doc/london-borough-council/redbridge","6BADULTSOCIA","Adult Social Care","6CLONGT65","Long-Term Support 65+ Years","REV","Revenue","R4442","Physical Disabilities - Seven Kings","05-THIRD","Third Party Payments","05A","Independent units within the council","6502","Agency Homecare","91305032","202301",31/03/2022 00:00:00,481.6,"43419","Home Care Services","REDACTED DATA","RHYTHMIC CARE UK LTD","8400115","http://opencorporates.com/companies/gb/8400115",""
"London Borough of Redbridge","http://opendatacommunities.org/doc/london-borough-council/redbridge","6BADULTSOCIA","Adult Social Care","6CLONGT65","Long-Term Support 65+ Years","REV","Revenue","R4442","Physical Disabilities - Seven Kings","05-THIRD","Third Party Payments","05A","Independent units within the council","6502","Agency Homecare","91303504","202301",04/04/2022 00:00:00,210.7,"43419","Home Care Services","REDACTED DATA","DIVERSITY HEALTH & SOCIAL CARE LTD","8238468","http://opencorporates.com/companies/gb/8238468","1367514244"
"London Borough of Redbridge","http://opendatacommunities.org/doc/london-borough-council/redbridge","6BADULTSOCIA","Adult Social Care","6CLONGT65","Long-Term Support 65+ Years","REV","Revenue","R4442","Physical Disabilities - Seven Kings","05-THIRD","Third Party Payments","05A","Independent units within the council","6502","Agency Homecare","91305256","202301",11/04/2022 00:00:00,51.6,"43419","Home Care Services","REDACTED DATA","RHYTHMIC CARE UK LTD","8400115","http://opencorporates.com/companies/gb/8400115",""
"London Borough of Redbridge","http://opendatacommunities.org/doc/london-borough-council/redbridge","6BADULTSOCIA","Adult Social Care","6CLONGT65","Long-Term Support 65+ Years","REV","Revenue","R4442","Physical Disabilities - Seven Kings","05-THIRD","Third Party Payments","05A","Independent units within the council","6502","Agency Homecare","91310182","202301",12/04/2022 00:00:00,180.6,"31230","Employment and Recruitment Agencies","REDACTED DATA","HOPE SUPER JOBS LTD","5081894","http://opencorporates.com/companies/gb/5081894","872555205"
"London Borough of Redbridge","http://opendatacommunities.org/doc/london-borough-council/redbridge","6BADULTSOCIA","Adult Social Care","6CLONGT65","Long-Term Support 65+ Years","REV","Revenue","R4442","Physical Disabilities - Seven Kings","05-THIRD","Third Party Payments","05A","Independent units within the council","6502","Agency Homecare","91308035","202301",25/04/2022 00:00:00,180.6,"43419","Home Care Services","REDACTED DATA","DIVERSITY HEALTH & SOCIAL CARE LTD","8238468","http://opencorporates.com/companies/gb/8238468","1367514244"
"London Borough of Redbridge","http://opendatacommunities.org/doc/london-borough-council/redbridge","6BADULTSOCIA","Adult Social Care","6CLONGT65","Long-Term Support 65+ Years","REV","Revenue","R4442","Physical Disabilities - Seven Kings","05-THIRD","Third Party Payments","05A","Independent units within the council","6502","Agency Homecare","91305093","202301",04/04/2022 00:00:00,344,"43419","Home Care Services","REDACTED DATA","RHYTHMIC CARE UK LTD","8400115","http://opencorporates.com/companies/gb/8400115",""
"London Borough of Redbridge","http://opendatacommunities.org/doc/london-borough-council/redbridge","6BADULTSOCIA","Adult Social Care","6CLONGT65","Long-Term Support 65+ Years","REV","Revenue","R4442","Physical Disabilities - Seven Kings","05-THIRD","Third Party Payments","05A","Independent units within the council","6502","Agency Homecare","91307872","202301",21/04/2022 00:00:00,120.4,"43419","Home Care Services","REDACTED DATA","DIVERSITY HEALTH & SOCIAL CARE LTD","8238468","http://opencorporates.com/companies/gb/8238468","1367514244"
"London Borough of Redbridge","http://opendatacommunities.org/doc/london-borough-council/redbridge","6BADULTSOCIA","Adult Social Care","6CLONGT65","Long-Term Support 65+ Years","REV","Revenue","R4442","Physical Disabilities - Seven Kings","05-THIRD","Third Party Payments","05A","Independent units within the council","6502","Agency Homecare","91307912","202301",22/04/2022 00:00:00,60.2,"43419","Home Care Services","REDACTED DATA","DIVERSITY HEALTH & SOCIAL CARE LTD","8238468","http://opencorporates.com/companies/gb/8238468","1367514244"
"London Borough of Redbridge","http://opendatacommunities.org/doc/london-borough-council/redbridge","6BADULTSOCIA","Adult Social Care","6CLONGT65","Long-Term Support 65+ Years","REV","Revenue","R4442","Physical Disabilities - Seven Kings","05-THIRD","Third Party Payments","05A","Independent units within the council","6502","Agency Homecare","91307913","202301",22/04/2022 00:00:00,193.5,"43419","Home Care Services","REDACTED DATA","DIVERSITY HEALTH & SOCIAL CARE LTD","8238468","http://opencorporates.com/companies/gb/8238468","1367514244"
"London Borough of Redbridge","http://opendatacommunities.org/doc/london-borough-council/redbridge","6BADULTSOCIA","Adult Social Care","6CLONGT65","Long-Term Support 65+ Years","REV","Revenue","R4442","Physical Disabilities - Seven Kings","05-THIRD","Third Party Payments","05A","Independent units within the council","6502","Agency Homecare","91303541","202301",04/04/2022 00:00:00,180.6,"43419","Home Care Services","REDACTED DATA","DIVERSITY HEALTH & SOCIAL CARE LTD","8238468","http://opencorporates.com/companies/gb/8238468","1367514244"
"London Borough of Redbridge","http://opendatacommunities.org/doc/london-borough-council/redbridge","6BADULTSOCIA","Adult Social Care","6CLONGT65","Long-Term Support 65+ Years","REV","Revenue","R4442","Physical Disabilities - Seven Kings","05-THIRD","Third Party Payments","05A","Independent units within the council","6502","Agency Homecare","91307968","202301",25/04/2022 00:00:00,60.2,"43419","Home Care Services","REDACTED DATA","DIVERSITY HEALTH & SOCIAL CARE LTD","8238468","http://opencorporates.com/companies/gb/8238468","1367514244"
"London Borough of Redbridge","http://opendatacommunities.org/doc/london-borough-council/redbridge","6BADULTSOCIA","Adult Social Care","6CLONGT65","Long-Term Support 65+ Years","REV","Revenue","R4442","Physical Disabilities - Seven Kings","05-THIRD","Third Party Payments","05A","Independent units within the council","6502","Agency Homecare","91303595","202301",11/04/2022 00:00:00,240.8,"43419","Home Care Services","REDACTED DATA","DIVERSITY HEALTH & SOCIAL CARE LTD","8238468","http://opencorporates.com/companies/gb/8238468","1367514244"
"London Borough of Redbridge","http://opendatacommunities.org/doc/london-borough-council/redbridge","6BADULTSOCIA","Adult Social Care","6CLONGT65","Long-Term Support 65+ Years","REV","Revenue","R4442","Physical Disabilities - Seven Kings","05-THIRD","Third Party Payments","05A","Independent units within the council","6502","Agency Homecare","91303979","202301",08/04/2022 00:00:00,43,"43419","Home Care Services","REDACTED DATA","GUARDIAN HOMECARE UK LTD","6991398","http://opencorporates.com/companies/gb/6991398",""
"London Borough of Redbridge","http://opendatacommunities.org/doc/london-borough-council/redbridge","6BADULTSOCIA","Adult Social Care","6CLONGT65","Long-Term Support 65+ Years","REV","Revenue","R4442","Physical Disabilities - Seven Kings","05-THIRD","Third Party Payments","05A","Independent units within the council","6502","Agency Homecare","91307935","202301",22/04/2022 00:00:00,262.3,"43419","Home Care Services","REDACTED DATA","DIVERSITY HEALTH & SOCIAL CARE LTD","8238468","http://opencorporates.com/companies/gb/8238468","1367514244"
"London Borough of Redbridge","http://opendatacommunities.org/doc/london-borough-council/redbridge","6BADULTSOCIA","Adult Social Care","6CLONGT65","Long-Term Support 65+ Years","REV","Revenue","R4442","Physical Disabilities - Seven Kings","05-THIRD","Third Party Payments","05A","Independent units within the council","6502","Agency Homecare","91309608","202301",20/04/2022 00:00:00,51.6,"43419","Home Care Services","REDACTED DATA","RHYTHMIC CARE UK LTD","8400115","http://opencorporates.com/companies/gb/8400115",""
"London Borough of Redbridge","http://opendatacommunities.org/doc/london-borough-council/redbridge","6BADULTSOCIA","Adult Social Care","6CLONGT65","Long-Term Support 65+ Years","REV","Revenue","R4442","Physical Disabilities - Seven Kings","05-THIRD","Third Party Payments","05A","Independent units within the council","6502","Agency Homecare","91303921","202301",31/03/2022 00:00:00,150.5,"43419","Home Care Services","REDACTED DATA","APASEN","4688707","http://opencorporates.com/companies/gb/4688707",""
"London Borough of Redbridge","http://opendatacommunities.org/doc/london-borough-council/redbridge","6BADULTSOCIA","Adult Social Care","6CLONGT65","Long-Term Support 65+ Years","REV","Revenue","R4442","Physical Disabilities - Seven Kings","05-THIRD","Third Party Payments","05A","Independent units within the council","6502","Agency Homecare","91303792","202301",31/03/2022 00:00:00,150.5,"43419","Home Care Services","REDACTED DATA","APASEN","4688707","http://opencorporates.com/companies/gb/4688707",""
"London Borough of Redbridge","http://opendatacommunities.org/doc/london-borough-council/redbridge","6BADULTSOCIA","Adult Social Care","6CLONGT65","Long-Term Support 65+ Years","REV","Revenue","R4442","Physical Disabilities - Seven Kings","05-THIRD","Third Party Payments","05A","Independent units within the council","6502","Agency Homecare","91303856","202301",31/03/2022 00:00:00,150.5,"43419","Home Care Services","REDACTED DATA","APASEN","4688707","http://opencorporates.com/companies/gb/4688707",""
"London Borough of Redbridge","http://opendatacommunities.org/doc/london-borough-council/redbridge","6BADULTSOCIA","Adult Social Care","6CLONGT65","Long-Term Support 65+ Years","REV","Revenue","R4442","Physical Disabilities - Seven Kings","05-THIRD","Third Party Payments","05A","Independent units within the council","6502","Agency Homecare","91303780","202301",31/03/2022 00:00:00,335.4,"43419","Home Care Services","REDACTED DATA","APASEN","4688707","http://opencorporates.com/companies/gb/4688707",""
"London Borough of Redbridge","http://opendatacommunities.org/doc/london-borough-council/redbridge","6BADULTSOCIA","Adult Social Care","6CLONGT65","Long-Term Support 65+ Years","REV","Revenue","R4442","Physical Disabilities - Seven Kings","05-THIRD","Third Party Payments","05A","Independent units within the council","6502","Agency Homecare","91308076","202301",24/02/2022 00:00:00,-180.6,"43419","Home Care Services","REDACTED DATA","APASEN","4688707","http://opencorporates.com/companies/gb/4688707",""
"London Borough of Redbridge","http://opendatacommunities.org/doc/london-borough-council/redbridge","6BADULTSOCIA","Adult Social Care","6CLONGT65","Long-Term Support 65+ Years","REV","Revenue","R4442","Physical Disabilities - Seven Kings","05-THIRD","Third Party Payments","05A","Independent units within the council","6502","Agency Homecare","91308108","202301",20/04/2022 00:00:00,64.5,"43419","Home Care Services","REDACTED DATA","APASEN","4688707","http://opencorporates.com/companies/gb/4688707",""
"London Borough of Redbridge","http://opendatacommunities.org/doc/london-borough-council/redbridge","6BADULTSOCIA","Adult Social Care","6CLONGT65","Long-Term Support 65+ Years","REV","Revenue","R4442","Physical Disabilities - Seven Kings","05-THIRD","Third Party Payments","05A","Independent units within the council","6502","Agency Homecare","91303699","202301",25/03/2022 00:00:00,64.5,"43419","Home Care Services","REDACTED DATA","APASEN","4688707","http://opencorporates.com/companies/gb/4688707",""
"London Borough of Redbridge","http://opendatacommunities.org/doc/london-borough-council/redbridge","6BADULTSOCIA","Adult Social Care","6CLONGT65","Long-Term Support 65+ Years","REV","Revenue","R4442","Physical Disabilities - Seven Kings","05-THIRD","Third Party Payments","05A","Independent units within the council","6502","Agency Homecare","91308062","202301",16/02/2022 00:00:00,-180.6,"43419","Home Care Services","REDACTED DATA","APASEN","4688707","http://opencorporates.com/companies/gb/4688707",""
"London Borough of Redbridge","http://opendatacommunities.org/doc/london-borough-council/redbridge","6BADULTSOCIA","Adult Social Care","6CLONGT65","Long-Term Support 65+ Years","REV","Revenue","R4442","Physical Disabilities - Seven Kings","05-THIRD","Third Party Payments","05A","Independent units within the council","6502","Agency Homecare","91303698","202301",25/03/2022 00:00:00,227.9,"43419","Home Care Services","REDACTED DATA","APASEN","4688707","http://opencorporates.com/companies/gb/4688707",""
"London Borough of Redbridge","http://opendatacommunities.org/doc/london-borough-council/redbridge","6BADULTSOCIA","Adult Social Care","6CLONGT65","Long-Term Support 65+ Years","REV","Revenue","R4442","Physical Disabilities - Seven Kings","05-THIRD","Third Party Payments","05A","Independent units within the council","6502","Agency Homecare","91303843","202301",31/03/2022 00:00:00,352.6,"43419","Home Care Services","REDACTED DATA","APASEN","4688707","http://opencorporates.com/companies/gb/4688707",""
"London Borough of Redbridge","http://opendatacommunities.org/doc/london-borough-council/redbridge","6BADULTSOCIA","Adult Social Care","6CLONGT65","Long-Term Support 65+ Years","REV","Revenue","R4442","Physical Disabilities - Seven Kings","05-THIRD","Third Party Payments","05A","Independent units within the council","6502","Agency Homecare","91303902","202301",31/03/2022 00:00:00,180.6,"43419","Home Care Services","REDACTED DATA","APASEN","4688707","http://opencorporates.com/companies/gb/4688707",""
"London Borough of Redbridge","http://opendatacommunities.org/doc/london-borough-council/redbridge","6BADULTSOCIA","Adult Social Care","6CLONGT65","Long-Term Support 65+ Years","REV","Revenue","R4442","Physical Disabilities - Seven Kings","05-THIRD","Third Party Payments","05A","Independent units within the council","6502","Agency Homecare","91308125","202301",20/04/2022 00:00:00,335.4,"43419","Home Care Services","REDACTED DATA","APASEN","4688707","http://opencorporates.com/companies/gb/4688707",""
"London Borough of Redbridge","http://opendatacommunities.org/doc/london-borough-council/redbridge","6BADULTSOCIA","Adult Social Care","6CLONGT65","Long-Term Support 65+ Years","REV","Revenue","R4442","Physical Disabilities - Seven Kings","05-THIRD","Third Party Payments","05A","Independent units within the council","6502","Agency Homecare","91303863","202301",31/03/2022 00:00:00,120.4,"43419","Home Care Services","REDACTED DATA","APASEN","4688707","http://opencorporates.com/companies/gb/4688707",""
"London Borough of Redbridge","http://opendatacommunities.org/doc/london-borough-council/redbridge","6BADULTSOCIA","Adult Social Care","6CLONGT65","Long-Term Support 65+ Years","REV","Revenue","R4442","Physical Disabilities - Seven Kings","05-THIRD","Third Party Payments","05A","Independent units within the council","6502","Agency Homecare","91308174","202301",20/04/2022 00:00:00,227.9,"43419","Home Care Services","REDACTED DATA","APASEN","4688707","http://opencorporates.com/companies/gb/4688707",""
"London Borough of Redbridge","http://opendatacommunities.org/doc/london-borough-council/redbridge","6BADULTSOCIA","Adult Social Care","6CLONGT65","Long-Term Support 65+ Years","REV","Revenue","R4442","Physical Disabilities - Seven Kings","05-THIRD","Third Party Payments","05A","Independent units within the council","6502","Agency Homecare","91308175","202301",20/04/2022 00:00:00,64.5,"43419","Home Care Services","REDACTED DATA","APASEN","4688707","http://opencorporates.com/companies/gb/4688707",""
"London Borough of Redbridge","http://opendatacommunities.org/doc/london-borough-council/redbridge","6BADULTSOCIA","Adult Social Care","6CLONGT65","Long-Term Support 65+ Years","REV","Revenue","R4442","Physical Disabilities - Seven Kings","05-THIRD","Third Party Payments","05A","Independent units within the council","6502","Agency Homecare","91308071","202301",16/02/2022 00:00:00,180.6,"43419","Home Care Services","REDACTED DATA","APASEN","4688707","http://opencorporates.com/companies/gb/4688707",""
"London Borough of Redbridge","http://opendatacommunities.org/doc/london-borough-council/redbridge","6BADULTSOCIA","Adult Social Care","6CLONGT65","Long-Term Support 65+ Years","REV","Revenue","R4442","Physical Disabilities - Seven Kings","05-THIRD","Third Party Payments","05A","Independent units within the council","6502","Agency Homecare","91308072","202301",16/02/2022 00:00:00,-180.6,"43419","Home Care Services","REDACTED DATA","APASEN","4688707","http://opencorporates.com/companies/gb/4688707",""
"London Borough of Redbridge","http://opendatacommunities.org/doc/london-borough-council/redbridge","6BADULTSOCIA","Adult Social Care","6CLONGT65","Long-Term Support 65+ Years","REV","Revenue","R4442","Physical Disabilities - Seven Kings","05-THIRD","Third Party Payments","05A","Independent units within the council","6502","Agency Homecare","91303708","202301",25/03/2022 00:00:00,180.6,"43419","Home Care Services","REDACTED DATA","APASEN","4688707","http://opencorporates.com/companies/gb/4688707",""
"London Borough of Redbridge","http://opendatacommunities.org/doc/london-borough-council/redbridge","6BADULTSOCIA","Adult Social Care","6CLONGT65","Long-Term Support 65+ Years","REV","Revenue","R4442","Physical Disabilities - Seven Kings","05-THIRD","Third Party Payments","05A","Independent units within the council","6502","Agency Homecare","91308188","202301",20/04/2022 00:00:00,335.4,"43419","Home Care Services","REDACTED DATA","APASEN","4688707","http://opencorporates.com/companies/gb/4688707",""
"London Borough of Redbridge","http://opendatacommunities.org/doc/london-borough-council/redbridge","6BADULTSOCIA","Adult Social Care","6CLONGT65","Long-Term Support 65+ Years","REV","Revenue","R4442","Physical Disabilities - Seven Kings","05-THIRD","Third Party Payments","05A","Independent units within the council","6502","Agency Homecare","91308254","202301",20/04/2022 00:00:00,352.6,"43419","Home Care Services","REDACTED DATA","APASEN","4688707","http://opencorporates.com/companies/gb/4688707",""
"London Borough of Redbridge","http://opendatacommunities.org/doc/london-borough-council/redbridge","6BADULTSOCIA","Adult Social Care","6CLONGT65","Long-Term Support 65+ Years","REV","Revenue","R4442","Physical Disabilities - Seven Kings","05-THIRD","Third Party Payments","05A","Independent units within the council","6502","Agency Homecare","91303726","202301",25/03/2022 00:00:00,150.5,"43419","Home Care Services","REDACTED DATA","APASEN","4688707","http://opencorporates.com/companies/gb/4688707",""
"London Borough of Redbridge","http://opendatacommunities.org/doc/london-borough-council/redbridge","6BADULTSOCIA","Adult Social Care","6CLONGT65","Long-Term Support 65+ Years","REV","Revenue","R4442","Physical Disabilities - Seven Kings","05-THIRD","Third Party Payments","05A","Independent units within the council","6502","Agency Homecare","91308067","202301",16/02/2022 00:00:00,180.6,"43419","Home Care Services","REDACTED DATA","APASEN","4688707","http://opencorporates.com/companies/gb/4688707",""
"London Borough of Redbridge","http://opendatacommunities.org/doc/london-borough-council/redbridge","6BADULTSOCIA","Adult Social Care","6CLONGT65","Long-Term Support 65+ Years","REV","Revenue","R4442","Physical Disabilities - Seven Kings","05-THIRD","Third Party Payments","05A","Independent units within the council","6502","Agency Homecare","91308068","202301",16/02/2022 00:00:00,-180.6,"43419","Home Care Services","REDACTED DATA","APASEN","4688707","http://opencorporates.com/companies/gb/4688707",""
"London Borough of Redbridge","http://opendatacommunities.org/doc/london-borough-council/redbridge","6BADULTSOCIA","Adult Social Care","6CLONGT65","Long-Term Support 65+ Years","REV","Revenue","R4442","Physical Disabilities - Seven Kings","05-THIRD","Third Party Payments","05A","Independent units within the council","6502","Agency Homecare","91303763","202301",31/03/2022 00:00:00,227.9,"43419","Home Care Services","REDACTED DATA","APASEN","4688707","http://opencorporates.com/companies/gb/4688707",""
"London Borough of Redbridge","http://opendatacommunities.org/doc/london-borough-council/redbridge","6BADULTSOCIA","Adult Social Care","6CLONGT65","Long-Term Support 65+ Years","REV","Revenue","R4442","Physical Disabilities - Seven Kings","05-THIRD","Third Party Payments","05A","Independent units within the council","6502","Agency Homecare","91303764","202301",31/03/2022 00:00:00,64.5,"43419","Home Care Services","REDACTED DATA","APASEN","4688707","http://opencorporates.com/companies/gb/4688707",""
"London Borough of Redbridge","http://opendatacommunities.org/doc/london-borough-council/redbridge","6BADULTSOCIA","Adult Social Care","6CLONGT65","Long-Term Support 65+ Years","REV","Revenue","R4442","Physical Disabilities - Seven Kings","05-THIRD","Third Party Payments","05A","Independent units within the council","6502","Agency Homecare","91303928","202301",31/03/2022 00:00:00,120.4,"43419","Home Care Services","REDACTED DATA","APASEN","4688707","http://opencorporates.com/companies/gb/4688707",""
"London Borough of Redbridge","http://opendatacommunities.org/doc/london-borough-council/redbridge","6BADULTSOCIA","Adult Social Care","6CLONGT65","Long-Term Support 65+ Years","REV","Revenue","R4442","Physical Disabilities - Seven Kings","05-THIRD","Third Party Payments","05A","Independent units within the council","6502","Agency Homecare","91303826","202301",31/03/2022 00:00:00,219.3,"43419","Home Care Services","REDACTED DATA","APASEN","4688707","http://opencorporates.com/companies/gb/4688707",""
"London Borough of Redbridge","http://opendatacommunities.org/doc/london-borough-council/redbridge","6BADULTSOCIA","Adult Social Care","6CLONGT65","Long-Term Support 65+ Years","REV","Revenue","R4442","Physical Disabilities - Seven Kings","05-THIRD","Third Party Payments","05A","Independent units within the council","6502","Agency Homecare","91308077","202301",24/02/2022 00:00:00,180.6,"43419","Home Care Services","REDACTED DATA","APASEN","4688707","http://opencorporates.com/companies/gb/4688707",""
"London Borough of Redbridge","http://opendatacommunities.org/doc/london-borough-council/redbridge","6BADULTSOCIA","Adult Social Care","6CLONGT65","Long-Term Support 65+ Years","REV","Revenue","R4442","Physical Disabilities - Seven Kings","05-THIRD","Third Party Payments","05A","Independent units within the council","6502","Agency Homecare","91308078","202301",24/02/2022 00:00:00,-180.6,"43419","Home Care Services","REDACTED DATA","APASEN","4688707","http://opencorporates.com/companies/gb/4688707",""
"London Borough of Redbridge","http://opendatacommunities.org/doc/london-borough-council/redbridge","6BADULTSOCIA","Adult Social Care","6CLONGT65","Long-Term Support 65+ Years","REV","Revenue","R4442","Physical Disabilities - Seven Kings","05-THIRD","Third Party Payments","05A","Independent units within the council","6502","Agency Homecare","91308267","202301",20/04/2022 00:00:00,150.5,"43419","Home Care Services","REDACTED DATA","APASEN","4688707","http://opencorporates.com/companies/gb/4688707",""
"London Borough of Redbridge","http://opendatacommunities.org/doc/london-borough-council/redbridge","6BADULTSOCIA","Adult Social Care","6CLONGT65","Long-Term Support 65+ Years","REV","Revenue","R4442","Physical Disabilities - Seven Kings","05-THIRD","Third Party Payments","05A","Independent units within the council","6502","Agency Homecare","91303894","202301",31/03/2022 00:00:00,227.9,"43419","Home Care Services","REDACTED DATA","APASEN","4688707","http://opencorporates.com/companies/gb/4688707",""
"London Borough of Redbridge","http://opendatacommunities.org/doc/london-borough-council/redbridge","6BADULTSOCIA","Adult Social Care","6CLONGT65","Long-Term Support 65+ Years","REV","Revenue","R4442","Physical Disabilities - Seven Kings","05-THIRD","Third Party Payments","05A","Independent units within the council","6502","Agency Homecare","91303895","202301",31/03/2022 00:00:00,64.5,"43419","Home Care Services","REDACTED DATA","APASEN","4688707","http://opencorporates.com/companies/gb/4688707",""
"London Borough of Redbridge","http://opendatacommunities.org/doc/london-borough-council/redbridge","6BADULTSOCIA","Adult Social Care","6CLONGT65","Long-Term Support 65+ Years","REV","Revenue","R4442","Physical Disabilities - Seven Kings","05-THIRD","Third Party Payments","05A","Independent units within the council","6502","Agency Homecare","91308283","202301",21/04/2022 00:00:00,154.8,"43419","Home Care Services","REDACTED DATA","APASEN","4688707","http://opencorporates.com/companies/gb/4688707",""
"London Borough of Redbridge","http://opendatacommunities.org/doc/london-borough-council/redbridge","6BADULTSOCIA","Adult Social Care","6CLONGT65","Long-Term Support 65+ Years","REV","Revenue","R4442","Physical Disabilities - Seven Kings","05-THIRD","Third Party Payments","05A","Independent units within the council","6502","Agency Homecare","91308107","202301",20/04/2022 00:00:00,227.9,"43419","Home Care Services","REDACTED DATA","APASEN","4688707","http://opencorporates.com/companies/gb/4688707",""
"London Borough of Redbridge","http://opendatacommunities.org/doc/london-borough-council/redbridge","6BADULTSOCIA","Adult Social Care","6CLONGT65","Long-Term Support 65+ Years","REV","Revenue","R4442","Physical Disabilities - Seven Kings","05-THIRD","Third Party Payments","05A","Independent units within the council","6502","Agency Homecare","91308208","202301",20/04/2022 00:00:00,120.4,"43419","Home Care Services","REDACTED DATA","APASEN","4688707","http://opencorporates.com/companies/gb/4688707",""
"London Borough of Redbridge","http://opendatacommunities.org/doc/london-borough-council/redbridge","6BADULTSOCIA","Adult Social Care","6CLONGT65","Long-Term Support 65+ Years","REV","Revenue","R4442","Physical Disabilities - Seven Kings","05-THIRD","Third Party Payments","05A","Independent units within the council","6502","Agency Homecare","91308284","202301",21/04/2022 00:00:00,154.8,"43419","Home Care Services","REDACTED DATA","APASEN","4688707","http://opencorporates.com/companies/gb/4688707",""
"London Borough of Redbridge","http://opendatacommunities.org/doc/london-borough-council/redbridge","6BADULTSOCIA","Adult Social Care","6CLONGT65","Long-Term Support 65+ Years","REV","Revenue","R4442","Physical Disabilities - Seven Kings","05-THIRD","Third Party Payments","05A","Independent units within the council","6502","Agency Homecare","91308285","202301",21/04/2022 00:00:00,137.6,"43419","Home Care Services","REDACTED DATA","APASEN","4688707","http://opencorporates.com/companies/gb/4688707",""
"London Borough of Redbridge","http://opendatacommunities.org/doc/london-borough-council/redbridge","6BADULTSOCIA","Adult Social Care","6CLONGT65","Long-Term Support 65+ Years","REV","Revenue","R4442","Physical Disabilities - Seven Kings","05-THIRD","Third Party Payments","05A","Independent units within the council","6502","Agency Homecare","91308240","202301",20/04/2022 00:00:00,227.9,"43419","Home Care Services","REDACTED DATA","APASEN","4688707","http://opencorporates.com/companies/gb/4688707",""
"London Borough of Redbridge","http://opendatacommunities.org/doc/london-borough-council/redbridge","6BADULTSOCIA","Adult Social Care","6CLONGT65","Long-Term Support 65+ Years","REV","Revenue","R4442","Physical Disabilities - Seven Kings","05-THIRD","Third Party Payments","05A","Independent units within the council","6502","Agency Homecare","91308241","202301",20/04/2022 00:00:00,64.5,"43419","Home Care Services","REDACTED DATA","APASEN","4688707","http://opencorporates.com/companies/gb/4688707",""
"London Borough of Redbridge","http://opendatacommunities.org/doc/london-borough-council/redbridge","6BADULTSOCIA","Adult Social Care","6CLONGT65","Long-Term Support 65+ Years","REV","Revenue","R4442","Physical Disabilities - Seven Kings","05-THIRD","Third Party Payments","05A","Independent units within the council","6502","Agency Homecare","91303827","202301",31/03/2022 00:00:00,64.5,"43419","Home Care Services","REDACTED DATA","APASEN","4688707","http://opencorporates.com/companies/gb/4688707",""
"London Borough of Redbridge","http://opendatacommunities.org/doc/london-borough-council/redbridge","6BADULTSOCIA","Adult Social Care","6CLONGT65","Long-Term Support 65+ Years","REV","Revenue","R4442","Physical Disabilities - Seven Kings","05-THIRD","Third Party Payments","05A","Independent units within the council","6502","Agency Homecare","91308075","202301",24/02/2022 00:00:00,180.6,"43419","Home Care Services","REDACTED DATA","APASEN","4688707","http://opencorporates.com/companies/gb/4688707",""
"London Borough of Redbridge","http://opendatacommunities.org/doc/london-borough-council/redbridge","6BADULTSOCIA","Adult Social Care","6CLONGT65","Long-Term Support 65+ Years","REV","Revenue","R4442","Physical Disabilities - Seven Kings","05-THIRD","Third Party Payments","05A","Independent units within the council","6502","Agency Homecare","91308073","202301",16/02/2022 00:00:00,189.2,"43419","Home Care Services","REDACTED DATA","APASEN","4688707","http://opencorporates.com/companies/gb/4688707",""
"London Borough of Redbridge","http://opendatacommunities.org/doc/london-borough-council/redbridge","6BADULTSOCIA","Adult Social Care","6CLONGT65","Long-Term Support 65+ Years","REV","Revenue","R4442","Physical Disabilities - Seven Kings","05-THIRD","Third Party Payments","05A","Independent units within the council","6502","Agency Homecare","91308074","202301",16/02/2022 00:00:00,-189.2,"43419","Home Care Services","REDACTED DATA","APASEN","4688707","http://opencorporates.com/companies/gb/4688707",""
"London Borough of Redbridge","http://opendatacommunities.org/doc/london-borough-council/redbridge","6BADULTSOCIA","Adult Social Care","6CLONGT65","Long-Term Support 65+ Years","REV","Revenue","R4442","Physical Disabilities - Seven Kings","05-THIRD","Third Party Payments","05A","Independent units within the council","6502","Agency Homecare","91308061","202301",16/02/2022 00:00:00,180.6,"43419","Home Care Services","REDACTED DATA","APASEN","4688707","http://opencorporates.com/companies/gb/4688707",""
"London Borough of Redbridge","http://opendatacommunities.org/doc/london-borough-council/redbridge","6BADULTSOCIA","Adult Social Care","6CLONGT65","Long-Term Support 65+ Years","REV","Revenue","R4442","Physical Disabilities - Seven Kings","05-THIRD","Third Party Payments","05A","Independent units within the council","6502","Agency Homecare","91308055","202301",16/02/2022 00:00:00,189.2,"43419","Home Care Services","REDACTED DATA","APASEN","4688707","http://opencorporates.com/companies/gb/4688707",""
"London Borough of Redbridge","http://opendatacommunities.org/doc/london-borough-council/redbridge","6BADULTSOCIA","Adult Social Care","6CLONGT65","Long-Term Support 65+ Years","REV","Revenue","R4442","Physical Disabilities - Seven Kings","05-THIRD","Third Party Payments","05A","Independent units within the council","6502","Agency Homecare","91308056","202301",16/02/2022 00:00:00,-189.2,"43419","Home Care Services","REDACTED DATA","APASEN","4688707","http://opencorporates.com/companies/gb/4688707",""
"London Borough of Redbridge","http://opendatacommunities.org/doc/london-borough-council/redbridge","6BADULTSOCIA","Adult Social Care","6CLONGT65","Long-Term Support 65+ Years","REV","Revenue","R4442","Physical Disabilities - Seven Kings","05-THIRD","Third Party Payments","05A","Independent units within the council","6502","Agency Homecare","91303733","202301",25/03/2022 00:00:00,120.4,"43419","Home Care Services","REDACTED DATA","APASEN","4688707","http://opencorporates.com/companies/gb/4688707",""
"London Borough of Redbridge","http://opendatacommunities.org/doc/london-borough-council/redbridge","6BADULTSOCIA","Adult Social Care","6CLONGT65","Long-Term Support 65+ Years","REV","Revenue","R4442","Physical Disabilities - Seven Kings","05-THIRD","Third Party Payments","05A","Independent units within the council","6502","Agency Homecare","91308079","202301",14/03/2022 00:00:00,180.6,"43419","Home Care Services","REDACTED DATA","APASEN","4688707","http://opencorporates.com/companies/gb/4688707",""
"London Borough of Redbridge","http://opendatacommunities.org/doc/london-borough-council/redbridge","6BADULTSOCIA","Adult Social Care","6CLONGT65","Long-Term Support 65+ Years","REV","Revenue","R4442","Physical Disabilities - Seven Kings","05-THIRD","Third Party Payments","05A","Independent units within the council","6502","Agency Homecare","91308080","202301",14/03/2022 00:00:00,-180.6,"43419","Home Care Services","REDACTED DATA","APASEN","4688707","http://opencorporates.com/companies/gb/4688707",""
"London Borough of Redbridge","http://opendatacommunities.org/doc/london-borough-council/redbridge","6BADULTSOCIA","Adult Social Care","6CLONGT65","Long-Term Support 65+ Years","REV","Revenue","R4442","Physical Disabilities - Seven Kings","05-THIRD","Third Party Payments","05A","Independent units within the council","6502","Agency Homecare","91308202","202301",20/04/2022 00:00:00,150.5,"43419","Home Care Services","REDACTED DATA","APASEN","4688707","http://opencorporates.com/companies/gb/4688707",""
"London Borough of Redbridge","http://opendatacommunities.org/doc/london-borough-council/redbridge","6BADULTSOCIA","Adult Social Care","6CLONGT65","Long-Term Support 65+ Years","REV","Revenue","R4442","Physical Disabilities - Seven Kings","05-THIRD","Third Party Payments","05A","Independent units within the council","6502","Agency Homecare","91308116","202301",20/04/2022 00:00:00,180.6,"43419","Home Care Services","REDACTED DATA","APASEN","4688707","http://opencorporates.com/companies/gb/4688707",""
"London Borough of Redbridge","http://opendatacommunities.org/doc/london-borough-council/redbridge","6BADULTSOCIA","Adult Social Care","6CLONGT65","Long-Term Support 65+ Years","REV","Revenue","R4442","Physical Disabilities - Seven Kings","05-THIRD","Third Party Payments","05A","Independent units within the council","6502","Agency Homecare","91308137","202301",20/04/2022 00:00:00,150.5,"43419","Home Care Services","REDACTED DATA","APASEN","4688707","http://opencorporates.com/companies/gb/4688707",""
"London Borough of Redbridge","http://opendatacommunities.org/doc/london-borough-council/redbridge","6BADULTSOCIA","Adult Social Care","6CLONGT65","Long-Term Support 65+ Years","REV","Revenue","R4442","Physical Disabilities - Seven Kings","05-THIRD","Third Party Payments","05A","Independent units within the council","6502","Agency Homecare","91303715","202301",25/03/2022 00:00:00,352.6,"43419","Home Care Services","REDACTED DATA","APASEN","4688707","http://opencorporates.com/companies/gb/4688707",""
"London Borough of Redbridge","http://opendatacommunities.org/doc/london-borough-council/redbridge","6BADULTSOCIA","Adult Social Care","6CLONGT65","Long-Term Support 65+ Years","REV","Revenue","R4442","Physical Disabilities - Seven Kings","05-THIRD","Third Party Payments","05A","Independent units within the council","6502","Agency Homecare","91303909","202301",31/03/2022 00:00:00,352.6,"43419","Home Care Services","REDACTED DATA","APASEN","4688707","http://opencorporates.com/companies/gb/4688707",""
"London Borough of Redbridge","http://opendatacommunities.org/doc/london-borough-council/redbridge","6BADULTSOCIA","Adult Social Care","6CLONGT65","Long-Term Support 65+ Years","REV","Revenue","R4442","Physical Disabilities - Seven Kings","05-THIRD","Third Party Payments","05A","Independent units within the council","6502","Agency Homecare","91303835","202301",31/03/2022 00:00:00,180.6,"43419","Home Care Services","REDACTED DATA","APASEN","4688707","http://opencorporates.com/companies/gb/4688707",""
"London Borough of Redbridge","http://opendatacommunities.org/doc/london-borough-council/redbridge","6BADULTSOCIA","Adult Social Care","6CLONGT65","Long-Term Support 65+ Years","REV","Revenue","R4442","Physical Disabilities - Seven Kings","05-THIRD","Third Party Payments","05A","Independent units within the council","6502","Agency Homecare","91303772","202301",31/03/2022 00:00:00,180.6,"43419","Home Care Services","REDACTED DATA","APASEN","4688707","http://opencorporates.com/companies/gb/4688707",""
"London Borough of Redbridge","http://opendatacommunities.org/doc/london-borough-council/redbridge","6BADULTSOCIA","Adult Social Care","6CLONGT65","Long-Term Support 65+ Years","REV","Revenue","R4442","Physical Disabilities - Seven Kings","05-THIRD","Third Party Payments","05A","Independent units within the council","6502","Agency Homecare","91309994","202301",19/04/2022 00:00:00,90.3,"43419","Home Care Services","REDACTED DATA","Spire Home Care & Training Limited","12254019","http://opencorporates.com/companies/gb/12254019",""
"London Borough of Redbridge","http://opendatacommunities.org/doc/london-borough-council/redbridge","6BADULTSOCIA","Adult Social Care","6CLONGT65","Long-Term Support 65+ Years","REV","Revenue","R4442","Physical Disabilities - Seven Kings","05-THIRD","Third Party Payments","05A","Independent units within the council","6502","Agency Homecare","91305905","202301",08/04/2022 00:00:00,37.32,"17020","Charities and Voluntary Organisations","REDACTED DATA","REDBRIDGE EPPING & HARLOW CROSSROADS","2647932","http://opencorporates.com/companies/gb/2647932",""
"London Borough of Redbridge","http://opendatacommunities.org/doc/london-borough-council/redbridge","6BADULTSOCIA","Adult Social Care","6CLONGT65","Long-Term Support 65+ Years","REV","Revenue","R4442","Physical Disabilities - Seven Kings","05-THIRD","Third Party Payments","05A","Independent units within the council","6502","Agency Homecare","91305869","202301",25/03/2022 00:00:00,154.1,"17020","Charities and Voluntary Organisations","REDACTED DATA","REDBRIDGE EPPING & HARLOW CROSSROADS","2647932","http://opencorporates.com/companies/gb/2647932",""
